{"text_format":"1","workbook":"xlsx","n_sheets":11,"sheets":["FICHA","REGLAS","DPTO","PROV","ENTIDAD","GRS","TIPOGOB","Evaluación2019","LISTA","TOTAL","ANEXO 1 GL"],"not_rendered":{"charts":0,"images":6,"macros":1,"external_links":1,"defined_names":18,"comments":0,"pivot_tables":0},"unopened":[],"bounds":{"document_bytes":16777216,"sheet_cells":100000,"rows_first":2000,"rows_last":500,"rows_between":2000,"halvings":0,"cell_chars":16384,"cell_head_chars":4096},"cells_cut":0,"cells_raw":0,"read":"whole","date_system":"1900"}

{"sheet":"FICHA","index":0,"n_rows":32,"n_cols":26,"rows_kept":32,"cut":false,"hidden":false,"merged":[[24,1,24,4],[30,1,30,4],[8,4,9,4],[0,1,0,4],[1,1,1,3],[23,1,23,4],[6,2,6,4]]}
[null,"ANEXO N° 2 : CUMPLIMIENTO DE LOS COMPROMISOS DE AJUSTE FISCAL 2025"]
[]
[null,"DEPARTAMENTO"]
[null,"PROVINCIA"]
[null,"ENTIDAD",null,null,null,null,null,null,null,null,null,null,null,null,null,null,null,null,null,null,null,null,null,null,null,"030502 : MUNICIPALIDAD DISTRITAL DE COTABAMBAS"]
[]
[null,"RESUMEN DE EVALUACIÓN",{"$f":"CONCATENATE(\"VERSIÓN  :    \",IFERROR(VLOOKUP(Z5,REGLAS!$A$3:$AD$89,2,FALSE),\" \"))","v":"VERSIÓN  :    General"},null,null,null,null,null,null,null,null,null,null,null,null,null,null,null,null,null,null,null,null,null,null,{"$f":"IFERROR(VLOOKUP(Z5,REGLAS!$A$3:$AD$69,2,FALSE),\" \")","v":"General"}]
[null,"R1: Regla Fiscal de Saldo de Deuda Total  :",{"$f":"IFERROR( VLOOKUP(Z5,REGLAS!$A$3:$AD$100,29,FALSE), \" \")","v":"No Cumple"},null,"Evaluación"]
[null,"R2: Regla Fiscal de Ahorro en cuenta corriente  :",{"$f":"IFERROR( VLOOKUP(Z5,REGLAS!$A$3:$AD$100,30,FALSE), \" \")","v":"Si Cumple"},null,{"$f":"IFERROR( VLOOKUP(Z5,REGLAS!$A$3:$AD$100,28,FALSE), \" \")","v":"Desfavorable"}]
[null,"Logro 9/ :",{"$f":"IFERROR( VLOOKUP(Z5,REGLAS!$A$3:$AD$100,27,FALSE), \" \")","v":0.30000000000000004}]
[]
[null,"COMPROMISOS DE AJUSTE FISCAL - CAF","META","RESULTADO","CUMPLIMIENTO",null,null,null,null,null,null,null,null,0,0,0]
[null,"(CF 1 )1/ Incremento de ingresos de recaudación propia",{"$f":"IFERROR(IF(VLOOKUP(Z5,REGLAS!$A$3:$AD$100,3,FALSE)=\"No aplica\",\"No aplica\", VLOOKUP(Z5,REGLAS!$A$3:$AD$100,3,FALSE)/100), \" \")","v":5.0000000000000001E-3},{"$f":"IFERROR(IF(VLOOKUP(Z5,REGLAS!$A$3:$AD$100,4,FALSE)=\"No aplica\",\"No aplica\", VLOOKUP(Z5,REGLAS!$A$3:$AD$100,4,FALSE)/100), \" \")","v":28.332930597848836},{"$f":"IFERROR( VLOOKUP(Z5,REGLAS!$A$3:$AD$100,5,FALSE), \" \")","v":"Cumple"}]
[null,"(CF 2)2/ Incremento del procentaje de ingresos por arbitrios de limpieza, parques y jardines y serenazgo que financia el gasto en los mismos rubros",{"$f":"IFERROR( IF(VLOOKUP(Z5,REGLAS!$A$3:$AD$100,6,FALSE)=\"No aplica\",\"No aplica\",VLOOKUP(Z5,REGLAS!$A$3:$AD$100,6,FALSE)/100), \" \")","v":5.0000000000000001E-3},{"$f":"IFERROR( IF(VLOOKUP(Z5,REGLAS!$A$3:$AD$100,7,FALSE)=\"No aplica\",\"No aplica\",VLOOKUP(Z5,REGLAS!$A$3:$AD$100,7,FALSE)/100), \" \")","v":0},{"$f":"IFERROR( VLOOKUP(Z5,REGLAS!$A$3:$AD$100,8,FALSE), \" \")","v":"No Cumple"}]
[null,"(CF 3)3/ Límite del gasto en personal respecto al ingreso corriente (sin incluir transferencias de canon, sobrecanon y regalías)",{"$f":"IFERROR(IF(VLOOKUP(Z5,REGLAS!$A$3:$AD$100,9,FALSE)=\"No aplica\",\"No aplica\", VLOOKUP(Z5,REGLAS!$A$3:$AD$100,9,FALSE)/100), \" \")","v":0.54400000000000004},{"$f":"IFERROR( IF(VLOOKUP(Z5,REGLAS!$A$3:$AD$100,10,FALSE)=\"No aplica\",\"No aplica\",VLOOKUP(Z5,REGLAS!$A$3:$AD$100,10,FALSE)/100), \" \")","v":0.23989656485815239},{"$f":"IFERROR( VLOOKUP(Z5,REGLAS!$A$3:$AD$100,11,FALSE), \" \")","v":"Cumple"}]
[null,"(CF 4)4/ Disminución del saldo de pasivos corrientes respecto al año fiscal anterior ",{"$f":"IFERROR( IF(VLOOKUP(Z5,REGLAS!$A$3:$AD$100,12,FALSE)=\"No aplica\",\"No aplica\", VLOOKUP(Z5,REGLAS!$A$3:$AD$100,12,FALSE)/100), \" \")","v":-3.1E-2},{"$f":"IFERROR(IF(VLOOKUP(Z5,REGLAS!$A$3:$AD$100,13,FALSE)=\"No aplica\",\"No aplica\",VLOOKUP(Z5,REGLAS!$A$3:$AD$100,13,FALSE)/100), \" \")","v":3.498998447028346E-2},{"$f":"IFERROR( VLOOKUP(Z5,REGLAS!$A$3:$AD$100,14,FALSE), \" \")","v":"No Cumple"}]
[null,"(CF 5) 5/Evaluación y corrección de errores de registro de pasivos ",{"$f":"IFERROR( VLOOKUP(Z5,REGLAS!$A$3:$AD$100,15,FALSE), \" \")","v":2},{"$f":"IFERROR( VLOOKUP(Z5,REGLAS!$A$3:$AD$100,16,FALSE), \" \")","v":0},{"$f":"IFERROR( VLOOKUP(Z5,REGLAS!$A$3:$AD$100,17,FALSE), \" \")","v":"No Cumple"}]
[null,"(CF 6)6/ Acciones relacionadas al fortalecimiento de la gestión institucional",{"$f":"IFERROR( VLOOKUP(Z5,REGLAS!$A$3:$AD$100,18,FALSE), \" \")","v":3},{"$f":"IFERROR( VLOOKUP(Z5,REGLAS!$A$3:$AD$100,19,FALSE), \" \")","v":0},{"$f":"IFERROR( VLOOKUP(Z5,REGLAS!$A$3:$AD$100,20,FALSE), \" \")","v":"No Cumple"}]
[null,"(CF 7)7/ Convergencia de la Regla Fiscal del Saldo de Deuda Total",{"$f":"IFERROR( IF( VLOOKUP(Z5,REGLAS!$A$3:$AD$100,21,FALSE)=\"No aplica\",\"No aplica\",VLOOKUP(Z5,REGLAS!$A$3:$AD$100,21,FALSE)/100), \" \")","v":"No aplica"},{"$f":"IFERROR( IF(VLOOKUP(Z5,REGLAS!$A$3:$AD$100,22,FALSE)=\"No aplica\",\"No aplica\",VLOOKUP(Z5,REGLAS!$A$3:$AD$100,22,FALSE)/100), \" \")","v":"No aplica"},{"$f":"IFERROR( VLOOKUP(Z5,REGLAS!$A$3:$AD$100,23,FALSE), \" \")","v":"No aplica"}]
[null,"(CF 8)8/Convergencia de la Regla Fiscal Ahorro en Cuenta Corriente (S/)",{"$f":"IFERROR( VLOOKUP(Z5,REGLAS!$A$3:$AD$100,24,FALSE), \" \")","v":"No aplica"},{"$f":"IFERROR( VLOOKUP(Z5,REGLAS!$A$3:$AD$100,25,FALSE), \" \")","v":"No aplica"},{"$f":"IFERROR( VLOOKUP(Z5,REGLAS!$A$3:$AD$100,26,FALSE), \" \")","v":"No aplica"}]
[]
[]
[null,"1/ Variación porcentual de los ingresos de recaudación propia del año 2025 respecto al año 2024."]
[null,"2/ Porcentaje de ingresos por arbitrios de limpieza, parques y jardines y serenazgo que financia el gasto en los mismos rubros del año 2025."]
[null,"3/ Relación entre el gasto a nivel devengado de personal CAS  (incluido todos sus beneficios sociales) sumado el gasto en servicios profesionales y técnicos, respecto al ingreso corriente excluyendo las transferencias de canon, sobrecanon y regalías del año 2025."]
[null,"4/ Variación porcentual del saldo de pasivos corrientes del año 2025 respecto al año 2024."]
[null,"5/ Cumplimiento de 2 acciones: evaluación y corrección de errores de registro de pasivos."]
[null,"6/ Cumplimiento al menos 3 acciones cada año para fortalecer su gestión institucional."]
[null,"7/ Valor obtenido del cálculo de Regla Fiscal del Saldo de Deuda Total (RFSDT) año 2025."]
[null,"8/ Valor obtenido del cálculo de la Regla Fiscal de Ahorro en Cuenta Corriente (RFACC) año 2025."]
[null,"9/ Para la determinación del porcentaje de cumplimiento de los compromisos fiscales, los compromisos fiscales establecidos dentro del CAF de cada Gobierno Regional o Gobierno Local se ponderan conforme a lo establecido en el Anexo 4: \"Ponderadores para la evaluación de los compromisos fiscales\", incorporado por el artículo 2 de la modificación de la Directiva N° 001-2019-EF/60.05, aprobado por Resolución Directoral N° 001-2024-EF/60.05."]
[null,"Fuente: MEF- SICON, Aplicativo Web: https://apps4.mineco.gob.pe/simgf/#, SUNAT, SBS, AFP."]

{"sheet":"REGLAS","index":1,"n_rows":100,"n_cols":30,"rows_kept":100,"cut":false,"hidden":true,"merged":[[0,29,1,29],[0,17,0,19],[0,20,0,22],[0,23,0,25],[0,26,1,26],[0,27,1,27],[0,28,1,28],[0,14,0,16],[0,1,1,1],[0,2,0,4],[0,5,0,7],[0,8,0,10],[0,11,0,13]]}
[null,"Tipo de CAF","CF 1",null,null,"CF 2",null,null,"CF 3",null,null,"CF 4",null,null,"CF 5",null,null,"CF 6",null,null,"CF 7",null,null,"CF 8",null,null,"LOGRO 9/\n(%)","EVALUACIÓN","REGLA FISCAL 10/\nSDT","REGLAS FISCAL 11/\nACC"]
["busqueda",null,"Meta","Resultado","CUMPLE","Meta","Resultado","CUMPLE","Meta","Resultado","CUMPLE","Meta","Resultado","CUMPLE","Meta","Resultado","CUMPLE","Meta","Resultado","CUMPLE","Meta","Resultado","CUMPLE","Meta","Resultado","CUMPLE"]
["030101 : MUNICIPALIDAD PROVINCIAL DE ABANCAY","General",2.2000000000000002,20.001575366893491,"Cumple",23,9.328340034767308,"No Cumple",40,42.538925468547781,"No Cumple",-1,7.3762946374389617,"No Cumple",2,2,"Cumple",3,3,"Cumple","No aplica","No aplica","No aplica","No aplica","No aplica","No aplica",0.60000000000000009,"Desfavorable","No Cumple","Si Cumple"]
["030201 : MUNICIPALIDAD PROVINCIAL DE ANDAHUAYLAS","General",3.9,12.635647305006428,"Cumple",3.9,6.1277357347219974,"Cumple",24.5,24.172797968295828,"Cumple",-1,7.7919427942507813,"No Cumple",2,2,"Cumple",3,3,"Cumple","No aplica","No aplica","No aplica","No aplica","No aplica","No aplica",0.89999999999999991,"Favorable","No Cumple","Si Cumple"]
["030601 : MUNICIPALIDAD PROVINCIAL DE CHINCHEROS","General",0.01,13.99668143027953,"Cumple",0,3.969018649486312,"Cumple",34.200000000000003,25.7432222189627,"Cumple",-30,-91.788031014562677,"Cumple",2,1,"No Cumple",3,3,"Cumple","No aplica","No aplica","No aplica","No aplica","No aplica","No aplica",0.8,"Favorable","No Cumple","Si Cumple"]
["030502 : MUNICIPALIDAD DISTRITAL DE COTABAMBAS","General",0.5,2833.2930597848836,"Cumple",0.5,0,"No Cumple",54.4,23.989656485815239,"Cumple",-3.1,3.4989984470283462,"No Cumple",2,0,"No Cumple",3,0,"No Cumple","No aplica","No aplica","No aplica","No aplica","No aplica","No aplica",0.30000000000000004,"Desfavorable","No Cumple","Si Cumple"]
["030701 : MUNICIPALIDAD PROVINCIAL DE GRAU - CHUQUIBAMBILLA","General",14,108.35850557153243,"Cumple",40,6.8071535202573914,"No Cumple",33,26.519645107709092,"Cumple",-4.0999999999999996,5.6969009212917792,"No Cumple",2,2,"Cumple",3,3,"Cumple","No aplica","No aplica","No aplica","No aplica","No aplica","No aplica",0.7,"Desfavorable","No Cumple","Si Cumple"]
["051101 : MUNICIPALIDAD PROVINCIAL DE VILCAS HUAMAN","General",3,-24.485875916689238,"No Cumple",1,1.9677462528857077,"Cumple",16.7,18.53274250369099,"No Cumple",-1,-85.255321319933685,"Cumple",2,2,"Cumple",3,0,"No Cumple","No aplica","No aplica","No aplica","No aplica","No aplica","No aplica",0.5,"Desfavorable","No Cumple","Si Cumple"]
["070102 : MUNICIPALIDAD DISTRITAL DE BELLAVISTA","General",3,3.0670297451358,"Cumple",54,43.279404905269189,"No Cumple",46.5,47.453486672989918,"No Cumple",-5,-5.3709707653134977,"Cumple",2,2,"Cumple",3,3,"Cumple","No aplica","No aplica","No aplica","No aplica","No aplica","No aplica",0.7,"Desfavorable","Si Cumple","Si Cumple"]
["070101 : MUNICIPALIDAD PROVINCIAL DEL CALLAO","General",2,4.1797339656589632,"Cumple",56.8,58.561545910314138,"Cumple",39.299999999999997,28.394519125807943,"Cumple",-0.5,5.1624232632761009,"No Cumple",2,2,"Cumple",3,3,"Cumple","No aplica","No aplica","No aplica","No aplica","No aplica","No aplica",0.89999999999999991,"Favorable","No Cumple","Si Cumple"]
["070103 : MUNICIPALIDAD DISTRITAL DE CARMEN DE LA LEGUA REYNOSO","General",-20,-1.1079037658108499,"Cumple",24,38.630359491606065,"Cumple",68.900000000000006,45.107648721269676,"Cumple",-3.2,2.1696174873273075,"No Cumple",2,2,"Cumple",3,3,"Cumple","No aplica","No aplica","No aplica","No aplica","No aplica","No aplica",0.89999999999999991,"Favorable","No Cumple","Si Cumple"]
["110501 : MUNICIPALIDAD PROVINCIAL DE PISCO","General",1.5,0.23109458288378004,"No Cumple",15.7,17.054912198343423,"Cumple",26,27.949286357602944,"No Cumple",-2,-92.49861176090927,"Cumple",2,2,"Cumple",3,1,"No Cumple","No aplica","No aplica","No aplica","No aplica","No aplica","No aplica",0.5,"Desfavorable","No Cumple","Si Cumple"]
["130201 : MUNICIPALIDAD PROVINCIAL DE ASCOPE","General",0.5,-5.9914206608447023,"No Cumple",10.8,0.69132189139268985,"No Cumple",30,21.518120724343472,"Cumple",-1,14.169714381570213,"No Cumple",2,0,"No Cumple",3,0,"No Cumple","No aplica","No aplica","No aplica","No aplica","No aplica","No aplica",0.1,"Desfavorable","No Cumple","Si Cumple"]
["130702 : MUNICIPALIDAD DISTRITAL DE GUADALUPE","General",6.8,-4.0372782970948515,"No Cumple",7.5,5.9557488450669549,"No Cumple",20,18.882833615807684,"Cumple",-2.8,-4.0115414855206089,"Cumple",2,0,"No Cumple",3,0,"No Cumple","No aplica","No aplica","No aplica","No aplica","No aplica","No aplica",0.2,"Desfavorable","No Cumple","Si Cumple"]
["130701 : MUNICIPALIDAD PROVINCIAL DE PACASMAYO - SAN PEDRO DE LLOC","General",1,17.275778068382401,"Cumple",10,4.4464139465641903,"No Cumple",23,17.124737511431878,"Cumple",-0.5,-27.88167905780708,"Cumple",2,0,"No Cumple",3,2,"No Cumple","No aplica","No aplica","No aplica","No aplica","No aplica","No aplica",0.4,"Desfavorable","No Cumple","Si Cumple"]
["140101 : MUNICIPALIDAD PROVINCIAL DE CHICLAYO","General",1.6,-1.7741248433154391,"No Cumple",84,58.075110655580467,"No Cumple",15.8,15.770178310934881,"Cumple",-4.5,440.07874962217528,"No Cumple",2,2,"Cumple",3,1,"No Cumple","No aplica","No aplica","No aplica","No aplica","No aplica","No aplica",0.30000000000000004,"Desfavorable","No Cumple","No Cumple"]
["140105 : MUNICIPALIDAD DISTRITAL DE JOSE LEONARDO ORTIZ","General",1,-0.87604158683950439,"No Cumple",74.2,62.585381901844499,"No Cumple",17.5,17.773951006917969,"No Cumple",-1,480.76795835186908,"No Cumple",2,2,"Cumple",3,3,"Cumple","No aplica","No aplica","No aplica","No aplica","No aplica","No aplica",0.4,"Desfavorable","No Cumple","Si Cumple"]
["140106 : MUNICIPALIDAD DISTRITAL DE LA VICTORIA","General",3,7.3545630478489699,"Cumple",40,30.499809519471658,"No Cumple",22,22.93025136287552,"No Cumple",-1,102.79687052769266,"No Cumple",2,1,"No Cumple",3,3,"Cumple","No aplica","No aplica","No aplica","No aplica","No aplica","No aplica",0.4,"Desfavorable","Si Cumple","Si Cumple"]
["140201 : MUNICIPALIDAD PROVINCIAL DE FERREÑAFE","General",null,null,null,null,null,null,null,null,null,null,null,null,2,null,null,3,0,null,"No aplica","No aplica","No aplica","No aplica","No aplica","No aplica",null,"OMISO","No Cumple","Si Cumple"]
["150501 : MUNICIPALIDAD PROVINCIAL DE CAÑETE - SAN VICENTE DE CAÑETE","General",5,9.9398700037448098,"Cumple",15,10.312039959434118,"No Cumple",20,20.399541866382041,"No Cumple",-4,1.5305346604537609,"No Cumple",2,2,"Cumple",3,3,"Cumple","No aplica","No aplica","No aplica","No aplica","No aplica","No aplica",0.60000000000000009,"Desfavorable","No Cumple","Si Cumple"]
["150102 : MUNICIPALIDAD DISTRITAL DE ANCON","General",42,23.012992677139739,"No Cumple",57.6,79.747188106538957,"Cumple",34,35.401289866236517,"No Cumple",-8,-31.8932623430922,"Cumple",2,2,"Cumple",3,3,"Cumple","No aplica","No aplica","No aplica","No aplica","No aplica","No aplica",0.7,"Desfavorable","No Cumple","Si Cumple"]
["150104 : MUNICIPALIDAD DISTRITAL DE BARRANCO","General",2.1,20.179633190843784,"Cumple",70.5,77.59723257202775,"Cumple",40.1,48.673144268281433,"No Cumple",-1.7,41.159037683752217,"No Cumple",2,2,"Cumple",3,3,"Cumple","No aplica","No aplica","No aplica","No aplica","No aplica","No aplica",0.8,"Favorable","No Cumple","Si Cumple"]
["150105 : MUNICIPALIDAD DISTRITAL DE BREÑA","General",11.5,18.558871788975903,"Cumple",78,78.351913990966409,"Cumple",42,41.820758369569596,"Cumple",-5,-8.9413141386717268,"Cumple",2,2,"Cumple",3,3,"Cumple","No aplica","No aplica","No aplica","No aplica","No aplica","No aplica",1,"Favorable","No Cumple","Si Cumple"]
["150110 : MUNICIPALIDAD DISTRITAL DE COMAS","General",9.5,5.4952370299147182,"No Cumple",30,30.936340442255126,"Cumple",22,23.551755395557802,"No Cumple",-5,-13.489468566808814,"Cumple",2,2,"Cumple",3,3,"Cumple","No aplica","No aplica","No aplica","No aplica","No aplica","No aplica",0.7,"Desfavorable","Si Cumple","Si Cumple"]
["150115 : MUNICIPALIDAD DISTRITAL DE LA VICTORIA","General",12.8,23.086367814052057,"Cumple",57.1,69.482092151290558,"Cumple",58.9,54.121687710790773,"Cumple",-12.3,14.421555404317962,"No Cumple",2,2,"Cumple",3,0,"No Cumple","No aplica","No aplica","No aplica","No aplica","No aplica","No aplica",0.7,"Desfavorable","No Cumple","Si Cumple"]
["150121 : MUNICIPALIDAD DISTRITAL DE PUEBLO LIBRE","General",1,7.4247912072403244,"Cumple",101.5,102.20960675280203,"Cumple",52.5,44.33468867842501,"Cumple",-31,376.9999816346662,"No Cumple",2,2,"Cumple",3,3,"Cumple","No aplica","No aplica","No aplica","No aplica","No aplica","No aplica",0.89999999999999991,"Favorable","No Cumple","Si Cumple"]
["150128 : MUNICIPALIDAD DISTRITAL DE RIMAC","General",8,0.75828090699060957,"No Cumple",60,52.417684616871917,"No Cumple",38,39.000459820923204,"No Cumple",30,2.1833887932334823,"Cumple",2,0,"No Cumple",3,0,"No Cumple","No aplica","No aplica","No aplica","No aplica","No aplica","No aplica",0.1,"Desfavorable","No Cumple","Si Cumple"]
["150133 : MUNICIPALIDAD DISTRITAL DE SAN JUAN DE MIRAFLORES","General",7.9,9.1299113944168315,"Cumple",57,58.443275797798442,"Cumple",34.700000000000003,37.254784735617683,"No Cumple",-1,-70.604409281447445,"Cumple",2,2,"Cumple",3,3,"Cumple","No aplica","No aplica","No aplica","No aplica","No aplica","No aplica",0.89999999999999991,"Favorable","No Cumple","Si Cumple"]
["150135 : MUNICIPALIDAD DISTRITAL DE SAN MARTIN DE PORRES","General",-9.67,5.8794491694777022,"Cumple",48.9,60.871473565620192,"Cumple",39.5,30.502790031583231,"Cumple",-25.4,-25.237370966743214,"No Cumple",2,2,"Cumple",3,3,"Cumple","No aplica","No aplica","No aplica","No aplica","No aplica","No aplica",0.89999999999999991,"Favorable","No Cumple","Si Cumple"]
["200602 : MUNICIPALIDAD DISTRITAL DE BELLAVISTA","General",3,2.7481927654595708,"No Cumple",10,13.608230592403762,"Cumple",21,16.378557705545088,"Cumple",-5,-49.605882981639667,"Cumple",2,0,"No Cumple",3,0,"No Cumple","No aplica","No aplica","No aplica","No aplica","No aplica","No aplica",0.4,"Desfavorable","No Cumple","Si Cumple"]
["240301 : MUNICIPALIDAD PROVINCIAL DE ZARUMILLA","General",null,null,null,null,null,null,null,null,null,null,null,null,2,null,null,3,null,null,"No aplica","No aplica","No aplica","No aplica","No aplica","No aplica",null,"OMISO","No Cumple","Si Cumple"]
["010105 : MUNICIPALIDAD DISTRITAL DE CHILIQUIN","Simplificado","No aplica","No aplica","No aplica","No aplica","No aplica","No aplica","No aplica","No aplica","No aplica","No aplica","No aplica","No aplica",2,0,"No Cumple","No aplica","No aplica","No aplica",24.75,6.39809681940178,"Cumple",242,-9212.6100000001024,"No Cumple",0.2,"Desfavorable","Si Cumple","No Cumple"]
["010108 : MUNICIPALIDAD DISTRITAL DE HUANCAS","Simplificado","No aplica","No aplica","No aplica","No aplica","No aplica","No aplica","No aplica","No aplica","No aplica","No aplica","No aplica","No aplica",2,0,"No Cumple","No aplica","No aplica","No aplica",9,50.909690727935754,"Cumple",0,-50181.860000000102,"No Cumple",0.2,"Desfavorable","Si Cumple","No Cumple"]
["010109 : MUNICIPALIDAD DISTRITAL DE JALCA GRANDE","Simplificado","No aplica","No aplica","No aplica","No aplica","No aplica","No aplica","No aplica","No aplica","No aplica","No aplica","No aplica","No aplica",2,0,"No Cumple","No aplica","No aplica","No aplica",90,2.9507539813779049,"Cumple",0,-96062.539999999572,"No Cumple",0.6,"Desfavorable","Si Cumple","No Cumple"]
["010120 : MUNICIPALIDAD DISTRITAL DE SOLOCO","Simplificado","No aplica","No aplica","No aplica","No aplica","No aplica","No aplica","No aplica","No aplica","No aplica","No aplica","No aplica","No aplica",2,2,"Cumple","No aplica","No aplica","No aplica",98,204.80176161594468,"No Cumple",119.2,206141.71000000031,"Cumple",0.4,"Desfavorable","No Cumple","Si Cumple"]
["010515 : MUNICIPALIDAD DISTRITAL DE PROVIDENCIA","Simplificado","No aplica","No aplica","No aplica","No aplica","No aplica","No aplica","No aplica","No aplica","No aplica","No aplica","No aplica","No aplica",2,2,"Cumple","No aplica","No aplica","No aplica",180,68.662680462240274,"Cumple",100,182830.38,"Cumple",1,"Favorable","Si Cumple","Si Cumple"]
["010604 : MUNICIPALIDAD DISTRITAL DE HUAMBO","Simplificado","No aplica","No aplica","No aplica","No aplica","No aplica","No aplica","No aplica","No aplica","No aplica","No aplica","No aplica","No aplica",2,0,"No Cumple","No aplica","No aplica","No aplica",12,7.9803039278098495,"Cumple",60,129742.31999999983,"Cumple",0.8,"Favorable","Si Cumple","Si Cumple"]
["010605 : MUNICIPALIDAD DISTRITAL DE LIMABAMBA","Simplificado","No aplica","No aplica","No aplica","No aplica","No aplica","No aplica","No aplica","No aplica","No aplica","No aplica","No aplica","No aplica",2,0,null,"No aplica","No aplica","No aplica",null,158.1582840452208,null,null,1510001.47,null,null,"OMISO","No Cumple","Si Cumple"]
["010606 : MUNICIPALIDAD DISTRITAL DE LONGAR","Simplificado","No aplica","No aplica","No aplica","No aplica","No aplica","No aplica","No aplica","No aplica","No aplica","No aplica","No aplica","No aplica",2,2,"Cumple","No aplica","No aplica","No aplica",95,599.11921427243954,"No Cumple",105,129490.6599999998,"Cumple",0.4,"Desfavorable","No Cumple","Si Cumple"]
["010707 : MUNICIPALIDAD DISTRITAL DE YAMON","Simplificado","No aplica","No aplica","No aplica","No aplica","No aplica","No aplica","No aplica","No aplica","No aplica","No aplica","No aplica","No aplica",2,0,"No Cumple","No aplica","No aplica","No aplica",99,39.207842678897521,"Cumple",110,309825.84000000032,"Cumple",0.8,"Favorable","Si Cumple","Si Cumple"]
["020502 : MUNICIPALIDAD DISTRITAL DE ABELARDO PARDO LEZAMETA","Simplificado","No aplica","No aplica","No aplica","No aplica","No aplica","No aplica","No aplica","No aplica","No aplica","No aplica","No aplica","No aplica",2,0,"No Cumple","No aplica","No aplica","No aplica",29.91,58.980688418987029,"Cumple",10.5,257873.24,"Cumple",0.8,"Favorable","Si Cumple","Si Cumple"]
["020503 : MUNICIPALIDAD DISTRITAL DE ANTONIO RAYMONDI","Simplificado","No aplica","No aplica","No aplica","No aplica","No aplica","No aplica","No aplica","No aplica","No aplica","No aplica","No aplica","No aplica",2,0,"No Cumple","No aplica","No aplica","No aplica",23.42,6.6793591344571812,"Cumple",4512.8,-68093.780000000028,"No Cumple",0.2,"Desfavorable","Si Cumple","No Cumple"]
["022007 : MUNICIPALIDAD DISTRITAL DE SHUPLUY","Simplificado","No aplica","No aplica","No aplica","No aplica","No aplica","No aplica","No aplica","No aplica","No aplica","No aplica","No aplica","No aplica",2,2,"Cumple","No aplica","No aplica","No aplica",5.3,6.2067442143323781,"Cumple",0,1915386.17,"Cumple",1,"Favorable","Si Cumple","Si Cumple"]
["030406 : MUNICIPALIDAD DISTRITAL DE COTARUSE","Simplificado","No aplica","No aplica","No aplica","No aplica","No aplica","No aplica","No aplica","No aplica","No aplica","No aplica","No aplica","No aplica",2,1,"No Cumple","No aplica","No aplica","No aplica",143,198.91843726826423,"No Cumple",2642,4237802.5999999996,"Cumple",0.2,"Desfavorable","No Cumple","Si Cumple"]
["030411 : MUNICIPALIDAD DISTRITAL DE SAN JUAN DE CHACÑA","Simplificado","No aplica","No aplica","No aplica","No aplica","No aplica","No aplica","No aplica","No aplica","No aplica","No aplica","No aplica","No aplica",2,0,"No Cumple","No aplica","No aplica","No aplica",156.91,95.0204920405411,"Cumple",320.77,780462.88,"Cumple",0.8,"Favorable","Si Cumple","Si Cumple"]
["030602 : MUNICIPALIDAD DISTRITAL DE ANCO HUALLO","Simplificado","No aplica","No aplica","No aplica","No aplica","No aplica","No aplica","No aplica","No aplica","No aplica","No aplica","No aplica","No aplica",2,0,"No Cumple","No aplica","No aplica","No aplica",14.24,14.166860567085552,"Cumple",0,2476691.2399999984,"Cumple",0.8,"Favorable","Si Cumple","Si Cumple"]
["030708 : MUNICIPALIDAD DISTRITAL DE PROGRESO","Simplificado","No aplica","No aplica","No aplica","No aplica","No aplica","No aplica","No aplica","No aplica","No aplica","No aplica","No aplica","No aplica",2,0,"No Cumple","No aplica","No aplica","No aplica",376,377.19106726132702,"No Cumple",2500,3343730.5599999991,"Cumple",0.2,"Desfavorable","No Cumple","Si Cumple"]
["040301 : MUNICIPALIDAD PROVINCIAL DE CARAVELI","Simplificado","No aplica","No aplica","No aplica","No aplica","No aplica","No aplica","No aplica","No aplica","No aplica","No aplica","No aplica","No aplica",2,0,"No Cumple","No aplica","No aplica","No aplica",18.34,27.12316349655509,"Cumple",0,2314026.9300000034,"Cumple",0.8,"Favorable","Si Cumple","Si Cumple"]
["040312 : MUNICIPALIDAD DISTRITAL DE QUICACHA","Simplificado","No aplica","No aplica","No aplica","No aplica","No aplica","No aplica","No aplica","No aplica","No aplica","No aplica","No aplica","No aplica",2,0,"No Cumple","No aplica","No aplica","No aplica",102,57.88551770704381,"Cumple",1667,2601290.4099999992,"Cumple",0.8,"Favorable","Si Cumple","Si Cumple"]
["050412 : MUNICIPALIDAD DISTRITAL DE CHACA","Simplificado","No aplica","No aplica","No aplica","No aplica","No aplica","No aplica","No aplica","No aplica","No aplica","No aplica","No aplica","No aplica",2,0,"No Cumple","No aplica","No aplica","No aplica",100,20.181088422613673,"Cumple",450,261737.07999999984,"Cumple",0.8,"Favorable","Si Cumple","Si Cumple"]
["050503 : MUNICIPALIDAD DISTRITAL DE AYNA","Simplificado","No aplica","No aplica","No aplica","No aplica","No aplica","No aplica","No aplica","No aplica","No aplica","No aplica","No aplica","No aplica",2,0,"No Cumple","No aplica","No aplica","No aplica",112,127.57706419786778,"No Cumple",1166.5999999999999,1778210.1599999992,"Cumple",0.2,"Desfavorable","No Cumple","Si Cumple"]
["051001 : MUNICIPALIDAD PROVINCIAL DE VICTOR FAJARDO - HUANCAPI","Simplificado","No aplica","No aplica","No aplica","No aplica","No aplica","No aplica","No aplica","No aplica","No aplica","No aplica","No aplica","No aplica",2,0,"No Cumple","No aplica","No aplica","No aplica",153.1,184.1306120711142,"No Cumple",868.34,567146.17000000179,"Cumple",0.2,"Desfavorable","No Cumple","Si Cumple"]
["051108 : MUNICIPALIDAD DISTRITAL DE VISCHONGO","Simplificado","No aplica","No aplica","No aplica","No aplica","No aplica","No aplica","No aplica","No aplica","No aplica","No aplica","No aplica","No aplica",2,2,"Cumple","No aplica","No aplica","No aplica",222.8,272.45152245317911,"No Cumple",350.3,562994.48999999953,"Cumple",0.4,"Desfavorable","No Cumple","Si Cumple"]
["060112 : MUNICIPALIDAD DISTRITAL DE SAN JUAN","Simplificado","No aplica","No aplica","No aplica","No aplica","No aplica","No aplica","No aplica","No aplica","No aplica","No aplica","No aplica","No aplica",2,0,"No Cumple","No aplica","No aplica","No aplica",70,68.567811336408397,"Cumple",85,1163278.0299999993,"Cumple",0.8,"Favorable","Si Cumple","Si Cumple"]
["060410 : MUNICIPALIDAD DISTRITAL DE LAJAS","Simplificado","No aplica","No aplica","No aplica","No aplica","No aplica","No aplica","No aplica","No aplica","No aplica","No aplica","No aplica","No aplica",2,1,"No Cumple","No aplica","No aplica","No aplica",125,173.12632532902342,"No Cumple",1320,3035309.99,"Cumple",0.2,"Desfavorable","No Cumple","Si Cumple"]
["060805 : MUNICIPALIDAD DISTRITAL DE HUABAL","Simplificado","No aplica","No aplica","No aplica","No aplica","No aplica","No aplica","No aplica","No aplica","No aplica","No aplica","No aplica","No aplica",2,1,"No Cumple","No aplica","No aplica","No aplica",100,117.6455646648019,"No Cumple",780.06,2741970.830000001,"Cumple",0.2,"Desfavorable","No Cumple","Si Cumple"]
["061110 : MUNICIPALIDAD DISTRITAL DE SAN GREGORIO","Simplificado","No aplica","No aplica","No aplica","No aplica","No aplica","No aplica","No aplica","No aplica","No aplica","No aplica","No aplica","No aplica",2,0,"No Cumple","No aplica","No aplica","No aplica",10.3,22.666864344032135,"Cumple",126.58,1796472.9199999992,"Cumple",0.8,"Favorable","Si Cumple","Si Cumple"]
["061308 : MUNICIPALIDAD DISTRITAL DE SAUCEPAMUNICIPALIDAD PROVINCIALA","Simplificado","No aplica","No aplica","No aplica","No aplica","No aplica","No aplica","No aplica","No aplica","No aplica","No aplica","No aplica","No aplica",2,0,"No Cumple","No aplica","No aplica","No aplica",114,131.93057384838423,"No Cumple",90.68,47586.319999999832,"Cumple",0.2,"Desfavorable","No Cumple","Si Cumple"]
["090204 : MUNICIPALIDAD DISTRITAL DE CAJA","Simplificado","No aplica","No aplica","No aplica","No aplica","No aplica","No aplica","No aplica","No aplica","No aplica","No aplica","No aplica","No aplica",2,0,"No Cumple","No aplica","No aplica","No aplica",380,439.26900515179517,"No Cumple",380,341284.49000000011,"Cumple",0.2,"Desfavorable","No Cumple","Si Cumple"]
["090718 : MUNICIPALIDAD DISTRITAL DE TINTAY PUNCU","Simplificado","No aplica","No aplica","No aplica","No aplica","No aplica","No aplica","No aplica","No aplica","No aplica","No aplica","No aplica","No aplica",2,1,"No Cumple","No aplica","No aplica","No aplica",60,10.30635317819875,"Cumple",1200,1843292.3599999996,"Cumple",0.8,"Favorable","Si Cumple","Si Cumple"]
["100203 : MUNICIPALIDAD DISTRITAL DE COLPAS","Simplificado","No aplica","No aplica","No aplica","No aplica","No aplica","No aplica","No aplica","No aplica","No aplica","No aplica","No aplica","No aplica",2,0,"No Cumple","No aplica","No aplica","No aplica",115,91.478865011548237,"Cumple",1528,79580.739999999991,"Cumple",0.8,"Favorable","Si Cumple","Si Cumple"]
["100301 : MUNICIPALIDAD PROVINCIAL DE DOS DE MAYO - LA UNION","Simplificado","No aplica","No aplica","No aplica","No aplica","No aplica","No aplica","No aplica","No aplica","No aplica","No aplica","No aplica","No aplica",2,0,"No Cumple","No aplica","No aplica","No aplica",140,159.91200519610348,"No Cumple",50,1499059.4599999981,"Cumple",0.2,"Desfavorable","No Cumple","Si Cumple"]
["100403 : MUNICIPALIDAD DISTRITAL DE COCHABAMBA","Simplificado","No aplica","No aplica","No aplica","No aplica","No aplica","No aplica","No aplica","No aplica","No aplica","No aplica","No aplica","No aplica",2,0,"No Cumple","No aplica","No aplica","No aplica",10,35.596355977049129,"Cumple",10,275520.27999999991,"Cumple",0.8,"Favorable","Si Cumple","Si Cumple"]
["100506 : MUNICIPALIDAD DISTRITAL DE MIRAFLORES","Simplificado","No aplica","No aplica","No aplica","No aplica","No aplica","No aplica","No aplica","No aplica","No aplica","No aplica","No aplica","No aplica",2,0,"No Cumple","No aplica","No aplica","No aplica",160,58.127337318238951,"Cumple",555,444538.50999999978,"Cumple",0.8,"Favorable","Si Cumple","Si Cumple"]
["100107 : MUNICIPALIDAD DISTRITAL DE SAN FRANCISCO DE CAYRAN","Simplificado","No aplica","No aplica","No aplica","No aplica","No aplica","No aplica","No aplica","No aplica","No aplica","No aplica","No aplica","No aplica",2,0,"No Cumple","No aplica","No aplica","No aplica",100,96.525868523866038,"Cumple",998,165404.86000000034,"Cumple",0.8,"Favorable","Si Cumple","Si Cumple"]
["120303 : MUNICIPALIDAD DISTRITAL DE PICHANAQUI","Simplificado","No aplica","No aplica","No aplica","No aplica","No aplica","No aplica","No aplica","No aplica","No aplica","No aplica","No aplica","No aplica",2,0,"No Cumple","No aplica","No aplica","No aplica",20.82,17.809286718968185,"Cumple",200.55,5774073.1700000055,"Cumple",0.8,"Favorable","Si Cumple","Si Cumple"]
["120108 : MUNICIPALIDAD DISTRITAL DE CHONGOS ALTO","Simplificado","No aplica","No aplica","No aplica","No aplica","No aplica","No aplica","No aplica","No aplica","No aplica","No aplica","No aplica","No aplica",2,0,"No Cumple","No aplica","No aplica","No aplica",85,192.38245807954962,"No Cumple",560,375227.66999999993,"Cumple",0.2,"Desfavorable","No Cumple","Si Cumple"]
["120112 : MUNICIPALIDAD DISTRITAL DE COLCA","Simplificado","No aplica","No aplica","No aplica","No aplica","No aplica","No aplica","No aplica","No aplica","No aplica","No aplica","No aplica","No aplica",2,1,"No Cumple","No aplica","No aplica","No aplica",15,8.6689042897053437,"Cumple",25,115609.44999999995,"Cumple",0.8,"Favorable","Si Cumple","Si Cumple"]
["120119 : MUNICIPALIDAD DISTRITAL DE HUANCAN","Simplificado","No aplica","No aplica","No aplica","No aplica","No aplica","No aplica","No aplica","No aplica","No aplica","No aplica","No aplica","No aplica",2,2,"Cumple","No aplica","No aplica","No aplica",25,14.449223238828216,"Cumple",1000.5,3714433.6999999993,"Cumple",1,"Favorable","Si Cumple","Si Cumple"]
["120120 : MUNICIPALIDAD DISTRITAL DE HUASICANCHA","Simplificado","No aplica","No aplica","No aplica","No aplica","No aplica","No aplica","No aplica","No aplica","No aplica","No aplica","No aplica","No aplica",2,0,"No Cumple","No aplica","No aplica","No aplica",20.079999999999998,30.158145195007119,"Cumple",10,151610.99999999988,"Cumple",0.8,"Favorable","Si Cumple","Si Cumple"]
["120126 : MUNICIPALIDAD DISTRITAL DE PUCARA","Simplificado","No aplica","No aplica","No aplica","No aplica","No aplica","No aplica","No aplica","No aplica","No aplica","No aplica","No aplica","No aplica",2,2,"Cumple","No aplica","No aplica","No aplica",63,92.025787714169098,"Cumple",430,826633.90999999992,"Cumple",1,"Favorable","Si Cumple","Si Cumple"]
["120136 : MUNICIPALIDAD DISTRITAL DE VIQUES","Simplificado","No aplica","No aplica","No aplica","No aplica","No aplica","No aplica","No aplica","No aplica","No aplica","No aplica","No aplica","No aplica",2,0,"No Cumple","No aplica","No aplica","No aplica",50,4.0100493981092882,"Cumple",10,196744.78000000003,"Cumple",0.8,"Favorable","Si Cumple","Si Cumple"]
["120407 : MUNICIPALIDAD DISTRITAL DE EL MANTARO","Simplificado","No aplica","No aplica","No aplica","No aplica","No aplica","No aplica","No aplica","No aplica","No aplica","No aplica","No aplica","No aplica",2,0,"No Cumple","No aplica","No aplica","No aplica",80.099999999999994,96.714956881723992,"Cumple",100,464569.31999999983,"Cumple",0.8,"Favorable","Si Cumple","Si Cumple"]
["140116 : MUNICIPALIDAD DISTRITAL DE CAYALTI","Simplificado","No aplica","No aplica","No aplica","No aplica","No aplica","No aplica","No aplica","No aplica","No aplica","No aplica","No aplica","No aplica",2,2,"Cumple","No aplica","No aplica","No aplica",20,28.529557547206924,"Cumple",0,184917.18999999994,"Cumple",1,"Favorable","Si Cumple","Si Cumple"]
["140102 : MUNICIPALIDAD DISTRITAL DE CHONGOYAPE","Simplificado","No aplica","No aplica","No aplica","No aplica","No aplica","No aplica","No aplica","No aplica","No aplica","No aplica","No aplica","No aplica",2,2,"Cumple","No aplica","No aplica","No aplica",100,2.5382601094892228,"Cumple",0,265871.4299999997,"Cumple",1,"Favorable","Si Cumple","Si Cumple"]
["140104 : MUNICIPALIDAD DISTRITAL DE ETEN PUERTO","Simplificado","No aplica","No aplica","No aplica","No aplica","No aplica","No aplica","No aplica","No aplica","No aplica","No aplica","No aplica","No aplica",2,0,"No Cumple","No aplica","No aplica","No aplica",230,140.58701113696915,"Cumple",0,83876.569999999832,"Cumple",0.8,"Favorable","No Cumple","Si Cumple"]
["140108 : MUNICIPALIDAD DISTRITAL DE MONSEFU","Simplificado","No aplica","No aplica","No aplica","No aplica","No aplica","No aplica","No aplica","No aplica","No aplica","No aplica","No aplica","No aplica",2,0,"No Cumple","No aplica","No aplica","No aplica",188,110.97916024455434,"Cumple",784.56,123485.70000000112,"Cumple",0.8,"Favorable","No Cumple","Si Cumple"]
["140111 : MUNICIPALIDAD DISTRITAL DE PICSI","Simplificado","No aplica","No aplica","No aplica","No aplica","No aplica","No aplica","No aplica","No aplica","No aplica","No aplica","No aplica","No aplica",2,2,"Cumple","No aplica","No aplica","No aplica",100,104.79181370115627,"No Cumple",175,352105.56999999983,"Cumple",0.4,"Desfavorable","No Cumple","Si Cumple"]
["140118 : MUNICIPALIDAD DISTRITAL DE POMALCA","Simplificado","No aplica","No aplica","No aplica","No aplica","No aplica","No aplica","No aplica","No aplica","No aplica","No aplica","No aplica","No aplica",2,0,null,"No aplica","No aplica","No aplica",null,41.697648319317992,null,null,3000.5600000005215,null,null,"OMISO","Si Cumple","Si Cumple"]
["140119 : MUNICIPALIDAD DISTRITAL DE PUCALA","Simplificado","No aplica","No aplica","No aplica","No aplica","No aplica","No aplica","No aplica","No aplica","No aplica","No aplica","No aplica","No aplica",2,2,"Cumple","No aplica","No aplica","No aplica",76,77.018033018236693,"Cumple",0,-195239.14999999991,"No Cumple",0.4,"Desfavorable","Si Cumple","No Cumple"]
["140113 : MUNICIPALIDAD DISTRITAL DE REQUE","Simplificado","No aplica","No aplica","No aplica","No aplica","No aplica","No aplica","No aplica","No aplica","No aplica","No aplica","No aplica","No aplica",2,2,"Cumple","No aplica","No aplica","No aplica",25,24.061456891661759,"Cumple",0,-4484.6000000005588,"No Cumple",0.4,"Desfavorable","Si Cumple","No Cumple"]
["140205 : MUNICIPALIDAD DISTRITAL DE PITIPO","Simplificado","No aplica","No aplica","No aplica","No aplica","No aplica","No aplica","No aplica","No aplica","No aplica","No aplica","No aplica","No aplica",2,2,"Cumple","No aplica","No aplica","No aplica",104,113.69184839279339,"No Cumple",85,-51730.950000001118,"No Cumple",0.2,"Desfavorable","No Cumple","No Cumple"]
["140309 : MUNICIPALIDAD DISTRITAL DE PACORA","Simplificado","No aplica","No aplica","No aplica","No aplica","No aplica","No aplica","No aplica","No aplica","No aplica","No aplica","No aplica","No aplica",2,2,"Cumple","No aplica","No aplica","No aplica",80,49.092895431048042,"Cumple",0,-45590.259999999776,"No Cumple",0.4,"Desfavorable","Si Cumple","No Cumple"]
["150202 : MUNICIPALIDAD DISTRITAL DE PARAMONGA","Simplificado","No aplica","No aplica","No aplica","No aplica","No aplica","No aplica","No aplica","No aplica","No aplica","No aplica","No aplica","No aplica",2,0,"No Cumple","No aplica","No aplica","No aplica",130,116.40551082263755,"Cumple",2900,1801543.7799999993,"Cumple",0.8,"Favorable","No Cumple","Si Cumple"]
["150205 : MUNICIPALIDAD DISTRITAL DE SUPE PUERTO","Simplificado","No aplica","No aplica","No aplica","No aplica","No aplica","No aplica","No aplica","No aplica","No aplica","No aplica","No aplica","No aplica",2,2,"Cumple","No aplica","No aplica","No aplica",100,124.3524292708222,"No Cumple",2500,1920097.8900000006,"Cumple",0.4,"Desfavorable","No Cumple","Si Cumple"]
["150402 : MUNICIPALIDAD DISTRITAL DE ARAHUAY","Simplificado","No aplica","No aplica","No aplica","No aplica","No aplica","No aplica","No aplica","No aplica","No aplica","No aplica","No aplica","No aplica",2,2,"Cumple","No aplica","No aplica","No aplica",100,1.1970705271156385,"Cumple",100,-38164.989999999874,"No Cumple",0.8,"Favorable","Si Cumple","No Cumple"]
["150405 : MUNICIPALIDAD DISTRITAL DE LACHAQUI","Simplificado","No aplica","No aplica","No aplica","No aplica","No aplica","No aplica","No aplica","No aplica","No aplica","No aplica","No aplica","No aplica",2,0,"No Cumple","No aplica","No aplica","No aplica",10,9.130787745559596,"Cumple",300,401846.40000000014,"Cumple",0.8,"Favorable","Si Cumple","Si Cumple"]
["150603 : MUNICIPALIDAD DISTRITAL DE ATAVILLOS BAJO","Simplificado","No aplica","No aplica","No aplica","No aplica","No aplica","No aplica","No aplica","No aplica","No aplica","No aplica","No aplica","No aplica",2,1,"No Cumple","No aplica","No aplica","No aplica",80,28.149688198852207,"Cumple",180,1079625.1600000001,"Cumple",0.8,"Favorable","Si Cumple","Si Cumple"]
["150803 : MUNICIPALIDAD DISTRITAL DE CALETA DE CARQUIN","Simplificado","No aplica","No aplica","No aplica","No aplica","No aplica","No aplica","No aplica","No aplica","No aplica","No aplica","No aplica","No aplica",2,1,"No Cumple","No aplica","No aplica","No aplica",82,164.85759971913285,"No Cumple",1450,1478261.7799999993,"Cumple",0.2,"Desfavorable","No Cumple","Si Cumple"]
["150112 : MUNICIPALIDAD DISTRITAL DE INDEPENDENCIA","Simplificado","No aplica","No aplica","No aplica","No aplica","No aplica","No aplica","No aplica","No aplica","No aplica","No aplica","No aplica","No aplica",2,2,"Cumple","No aplica","No aplica","No aplica",100,63.178688940983839,"Cumple",0,-2483991.0799999982,"No Cumple",0.8,"Favorable","Si Cumple","No Cumple"]
["150134 : MUNICIPALIDAD DISTRITAL DE SAN LUIS","Simplificado","No aplica","No aplica","No aplica","No aplica","No aplica","No aplica","No aplica","No aplica","No aplica","No aplica","No aplica","No aplica",2,0,null,"No aplica","No aplica","No aplica",null,94.2181820752036,null,null,386040.53999999911,null,null,"OMISO","Si Cumple","Si Cumple"]
["151004 : MUNICIPALIDAD DISTRITAL DE AYAVIRI","Simplificado","No aplica","No aplica","No aplica","No aplica","No aplica","No aplica","No aplica","No aplica","No aplica","No aplica","No aplica","No aplica",2,0,"No Cumple","No aplica","No aplica","No aplica",1.76,5.8716641109498351,"Cumple",1800,-168745.09999999974,"No Cumple",0.2,"Desfavorable","Si Cumple","No Cumple"]
["151005 : MUNICIPALIDAD DISTRITAL DE AZANGARO","Simplificado","No aplica","No aplica","No aplica","No aplica","No aplica","No aplica","No aplica","No aplica","No aplica","No aplica","No aplica","No aplica",2,0,"No Cumple","No aplica","No aplica","No aplica",7,4.141664755664201,"Cumple",150,126812.70999999996,"Cumple",0.8,"Favorable","Si Cumple","Si Cumple"]
["151016 : MUNICIPALIDAD DISTRITAL DE HUANTAN","Simplificado","No aplica","No aplica","No aplica","No aplica","No aplica","No aplica","No aplica","No aplica","No aplica","No aplica","No aplica","No aplica",2,0,null,"No aplica","No aplica","No aplica",null,28.310580507780319,null,null,-4396906.9700000016,null,null,"OMISO","Si Cumple","No Cumple"]
["170302 : MUNICIPALIDAD DISTRITAL DE IBERIA","Simplificado","No aplica","No aplica","No aplica","No aplica","No aplica","No aplica","No aplica","No aplica","No aplica","No aplica","No aplica","No aplica",2,1,"No Cumple","No aplica","No aplica","No aplica",28.88,7.7822939211618269,"Cumple",0,165801.94999999972,"Cumple",0.8,"Favorable","Si Cumple","Si Cumple"]
["170104 : MUNICIPALIDAD DISTRITAL DE LABERINTO","Simplificado","No aplica","No aplica","No aplica","No aplica","No aplica","No aplica","No aplica","No aplica","No aplica","No aplica","No aplica","No aplica",2,0,"No Cumple","No aplica","No aplica","No aplica",10,29.530976338801324,"Cumple",0,1313557.8599999994,"Cumple",0.8,"Favorable","Si Cumple","Si Cumple"]
["190204 : MUNICIPALIDAD DISTRITAL DE PAUCAR","Simplificado","No aplica","No aplica","No aplica","No aplica","No aplica","No aplica","No aplica","No aplica","No aplica","No aplica","No aplica","No aplica",2,2,"Cumple","No aplica","No aplica","No aplica",100,7.7969198838886227,"Cumple",100,840750.90000000037,"Cumple",1,"Favorable","Si Cumple","Si Cumple"]
["190110 : MUNICIPALIDAD DISTRITAL DE TICLACAYAN","Simplificado","No aplica","No aplica","No aplica","No aplica","No aplica","No aplica","No aplica","No aplica","No aplica","No aplica","No aplica","No aplica",2,0,"No Cumple","No aplica","No aplica","No aplica",176,179.78716529466584,"No Cumple",0,2971468.1700000004,"Cumple",0.2,"Desfavorable","No Cumple","Si Cumple"]
["230402 : MUNICIPALIDAD DISTRITAL DE HEROES ALBARRACIN-CHUCATAMANI","Simplificado","No aplica","No aplica","No aplica","No aplica","No aplica","No aplica","No aplica","No aplica","No aplica","No aplica","No aplica","No aplica",2,0,null,"No aplica","No aplica","No aplica",null,21.322995664300407,null,null,1266858.5,null,null,"OMISO","Si Cumple","Si Cumple"]
["250401 : MUNICIPALIDAD PROVINCIAL DE PURUS","Simplificado","No aplica","No aplica","No aplica","No aplica","No aplica","No aplica","No aplica","No aplica","No aplica","No aplica","No aplica","No aplica",2,0,"No Cumple","No aplica","No aplica","No aplica",183.81,211.39920536000011,"No Cumple",1500,5183341.2600000007,"Cumple",0.2,"Desfavorable","No Cumple","Si Cumple"]

{"sheet":"DPTO","index":2,"n_rows":21,"n_cols":3,"rows_kept":21,"cut":false,"hidden":true,"merged":[]}
["--------------------","CODI_DEP","DESC_DEP"]
["03:APURÍMAC","03","APURÍMAC"]
["05:AYACUCHO","05","AYACUCHO"]
["07:CALLAO","07","CALLAO"]
["11:ICA","11","ICA"]
["13:LA LIBERTAD","13","LA LIBERTAD"]
["14:LAMBAYEQUE","14","LAMBAYEQUE"]
["15:LIMA","15","LIMA"]
["20:PIURA","20","PIURA"]
["24:TUMBES","24","TUMBES"]
["01:AMAZONAS","01","AMAZONAS"]
["02:ÁNCASH","02","ÁNCASH"]
["04:AREQUIPA","04","AREQUIPA"]
["06:CAJAMARCA","06","CAJAMARCA"]
["09:HUANCAVELICA","09","HUANCAVELICA"]
["10:HUÁNUCO","10","HUÁNUCO"]
["12:JUNÍN","12","JUNÍN"]
["17:MADRE DE DIOS","17","MADRE DE DIOS"]
["19:PASCO","19","PASCO"]
["23:TACNA","23","TACNA"]
["25:UCAYALI","25","UCAYALI"]

{"sheet":"PROV","index":3,"n_rows":55,"n_cols":4,"rows_kept":55,"cut":false,"hidden":true,"merged":[]}
["PROV","CODI_DEP","CODI_PRO","DESC_PRO"]
["0301 : ABANCAY","03","01","ABANCAY"]
["0302 : ANDAHUAYLAS","03","02","ANDAHUAYLAS"]
["0306 : CHINCHEROS","03","06","CHINCHEROS"]
["0305 : COTABAMBAS","03","05","COTABAMBAS"]
["0307 : GRAU","03","07","GRAU"]
["0511 : VILCAS HUAMAN","05","11","VILCAS HUAMAN"]
["0701 : CALLAO","07","01","CALLAO"]
["1105 : PISCO","11","05","PISCO"]
["1302 : ASCOPE","13","02","ASCOPE"]
["1307 : PACASMAYO","13","07","PACASMAYO"]
["1401 : CHICLAYO","14","01","CHICLAYO"]
["1402 : FERREÑAFE","14","02","FERREÑAFE"]
["1505 : CAÑETE","15","05","CAÑETE"]
["1501 : LIMA","15","01","LIMA"]
["2006 : SULLANA","20","06","SULLANA"]
["2403 : ZARUMILLA","24","03","ZARUMILLA"]
["0101 : CHACHAPOYAS","01","01","CHACHAPOYAS"]
["0105 : LUYA","01","05","LUYA"]
["0106 : RODRIGUEZ DE MENDOZA","01","06","RODRIGUEZ DE MENDOZA"]
["0107 : UTCUBAMBA","01","07","UTCUBAMBA"]
["0205 : BOLOGNESI","02","05","BOLOGNESI"]
["0220 : YUNGAY","02","20","YUNGAY"]
["0304 : AYMARAES","03","04","AYMARAES"]
["0403 : CARAVELI","04","03","CARAVELI"]
["0504 : HUANTA","05","04","HUANTA"]
["0505 : LA MAR","05","05","LA MAR"]
["0510 : VICTOR FAJARDO","05","10","VICTOR FAJARDO"]
["0601 : CAJAMARCA","06","01","CAJAMARCA"]
["0604 : CHOTA","06","04","CHOTA"]
["0608 : JAEN","06","08","JAEN"]
["0611 : SAN MIGUEL","06","11","SAN MIGUEL"]
["0613 : SANTA CRUZ","06","13","SANTA CRUZ"]
["0902 : ACOBAMBA","09","02","ACOBAMBA"]
["0907 : TAYACAJA","09","07","TAYACAJA"]
["1002 : AMBO","10","02","AMBO"]
["1003 : DOS DE MAYO","10","03","DOS DE MAYO"]
["1004 : HUACAYBAMBA","10","04","HUACAYBAMBA"]
["1005 : HUAMALIES","10","05","HUAMALIES"]
["1001 : HUÁNUCO","10","01","HUÁNUCO"]
["1203 : CHANCHAMAYO","12","03","CHANCHAMAYO"]
["1201 : HUANCAYO","12","01","HUANCAYO"]
["1204 : JAUJA","12","04","JAUJA"]
["1403 : LAMBAYEQUE","14","03","LAMBAYEQUE"]
["1502 : BARRANCA","15","02","BARRANCA"]
["1504 : CANTA","15","04","CANTA"]
["1506 : HUARAL","15","06","HUARAL"]
["1508 : HUAURA","15","08","HUAURA"]
["1510 : YAUYOS","15","10","YAUYOS"]
["1703 : TAHUAMANU","17","03","TAHUAMANU"]
["1701 : TAMBOPATA","17","01","TAMBOPATA"]
["1902 : DANIEL ALCIDES CARRIÓN","19","02","DANIEL ALCIDES CARRIÓN"]
["1901 : PASCO","19","01","PASCO"]
["2304 : TARATA","23","04","TARATA"]
["2504 : PURÚS","25","04","PURÚS"]

{"sheet":"ENTIDAD","index":4,"n_rows":99,"n_cols":1,"rows_kept":99,"cut":false,"hidden":true,"merged":[]}
["ENTIDADES"]
["030101 : MUNICIPALIDAD PROVINCIAL DE ABANCAY"]
["030201 : MUNICIPALIDAD PROVINCIAL DE ANDAHUAYLAS"]
["030601 : MUNICIPALIDAD PROVINCIAL DE CHINCHEROS"]
["030502 : MUNICIPALIDAD DISTRITAL DE COTABAMBAS"]
["030701 : MUNICIPALIDAD PROVINCIAL DE GRAU - CHUQUIBAMBILLA"]
["051101 : MUNICIPALIDAD PROVINCIAL DE VILCAS HUAMAN"]
["070102 : MUNICIPALIDAD DISTRITAL DE BELLAVISTA"]
["070101 : MUNICIPALIDAD PROVINCIAL DEL CALLAO"]
["070103 : MUNICIPALIDAD DISTRITAL DE CARMEN DE LA LEGUA REYNOSO"]
["110501 : MUNICIPALIDAD PROVINCIAL DE PISCO"]
["130201 : MUNICIPALIDAD PROVINCIAL DE ASCOPE"]
["130702 : MUNICIPALIDAD DISTRITAL DE GUADALUPE"]
["130701 : MUNICIPALIDAD PROVINCIAL DE PACASMAYO - SAN PEDRO DE LLOC"]
["140101 : MUNICIPALIDAD PROVINCIAL DE CHICLAYO"]
["140105 : MUNICIPALIDAD DISTRITAL DE JOSE LEONARDO ORTIZ"]
["140106 : MUNICIPALIDAD DISTRITAL DE LA VICTORIA"]
["140201 : MUNICIPALIDAD PROVINCIAL DE FERREÑAFE"]
["150501 : MUNICIPALIDAD PROVINCIAL DE CAÑETE - SAN VICENTE DE CAÑETE"]
["150102 : MUNICIPALIDAD DISTRITAL DE ANCON"]
["150104 : MUNICIPALIDAD DISTRITAL DE BARRANCO"]
["150105 : MUNICIPALIDAD DISTRITAL DE BREÑA"]
["150110 : MUNICIPALIDAD DISTRITAL DE COMAS"]
["150115 : MUNICIPALIDAD DISTRITAL DE LA VICTORIA"]
["150121 : MUNICIPALIDAD DISTRITAL DE PUEBLO LIBRE"]
["150128 : MUNICIPALIDAD DISTRITAL DE RIMAC"]
["150133 : MUNICIPALIDAD DISTRITAL DE SAN JUAN DE MIRAFLORES"]
["150135 : MUNICIPALIDAD DISTRITAL DE SAN MARTIN DE PORRES"]
["200602 : MUNICIPALIDAD DISTRITAL DE BELLAVISTA"]
["240301 : MUNICIPALIDAD PROVINCIAL DE ZARUMILLA"]
["010105 : MUNICIPALIDAD DISTRITAL DE CHILIQUIN"]
["010108 : MUNICIPALIDAD DISTRITAL DE HUANCAS"]
["010109 : MUNICIPALIDAD DISTRITAL DE JALCA GRANDE"]
["010120 : MUNICIPALIDAD DISTRITAL DE SOLOCO"]
["010515 : MUNICIPALIDAD DISTRITAL DE PROVIDENCIA"]
["010604 : MUNICIPALIDAD DISTRITAL DE HUAMBO"]
["010605 : MUNICIPALIDAD DISTRITAL DE LIMABAMBA"]
["010606 : MUNICIPALIDAD DISTRITAL DE LONGAR"]
["010707 : MUNICIPALIDAD DISTRITAL DE YAMON"]
["020502 : MUNICIPALIDAD DISTRITAL DE ABELARDO PARDO LEZAMETA"]
["020503 : MUNICIPALIDAD DISTRITAL DE ANTONIO RAYMONDI"]
["022007 : MUNICIPALIDAD DISTRITAL DE SHUPLUY"]
["030406 : MUNICIPALIDAD DISTRITAL DE COTARUSE"]
["030411 : MUNICIPALIDAD DISTRITAL DE SAN JUAN DE CHACÑA"]
["030602 : MUNICIPALIDAD DISTRITAL DE ANCO HUALLO"]
["030708 : MUNICIPALIDAD DISTRITAL DE PROGRESO"]
["040301 : MUNICIPALIDAD PROVINCIAL DE CARAVELI"]
["040312 : MUNICIPALIDAD DISTRITAL DE QUICACHA"]
["050412 : MUNICIPALIDAD DISTRITAL DE CHACA"]
["050503 : MUNICIPALIDAD DISTRITAL DE AYNA"]
["051001 : MUNICIPALIDAD PROVINCIAL DE VICTOR FAJARDO - HUANCAPI"]
["051108 : MUNICIPALIDAD DISTRITAL DE VISCHONGO"]
["060112 : MUNICIPALIDAD DISTRITAL DE SAN JUAN"]
["060410 : MUNICIPALIDAD DISTRITAL DE LAJAS"]
["060805 : MUNICIPALIDAD DISTRITAL DE HUABAL"]
["061110 : MUNICIPALIDAD DISTRITAL DE SAN GREGORIO"]
["061308 : MUNICIPALIDAD DISTRITAL DE SAUCEPAMUNICIPALIDAD PROVINCIALA"]
["090204 : MUNICIPALIDAD DISTRITAL DE CAJA"]
["090718 : MUNICIPALIDAD DISTRITAL DE TINTAY PUNCU"]
["100203 : MUNICIPALIDAD DISTRITAL DE COLPAS"]
["100301 : MUNICIPALIDAD PROVINCIAL DE DOS DE MAYO - LA UNION"]
["100403 : MUNICIPALIDAD DISTRITAL DE COCHABAMBA"]
["100506 : MUNICIPALIDAD DISTRITAL DE MIRAFLORES"]
["100107 : MUNICIPALIDAD DISTRITAL DE SAN FRANCISCO DE CAYRAN"]
["120303 : MUNICIPALIDAD DISTRITAL DE PICHANAQUI"]
["120108 : MUNICIPALIDAD DISTRITAL DE CHONGOS ALTO"]
["120112 : MUNICIPALIDAD DISTRITAL DE COLCA"]
["120119 : MUNICIPALIDAD DISTRITAL DE HUANCAN"]
["120120 : MUNICIPALIDAD DISTRITAL DE HUASICANCHA"]
["120126 : MUNICIPALIDAD DISTRITAL DE PUCARA"]
["120136 : MUNICIPALIDAD DISTRITAL DE VIQUES"]
["120407 : MUNICIPALIDAD DISTRITAL DE EL MANTARO"]
["140116 : MUNICIPALIDAD DISTRITAL DE CAYALTI"]
["140102 : MUNICIPALIDAD DISTRITAL DE CHONGOYAPE"]
["140104 : MUNICIPALIDAD DISTRITAL DE ETEN PUERTO"]
["140108 : MUNICIPALIDAD DISTRITAL DE MONSEFU"]
["140111 : MUNICIPALIDAD DISTRITAL DE PICSI"]
["140118 : MUNICIPALIDAD DISTRITAL DE POMALCA"]
["140119 : MUNICIPALIDAD DISTRITAL DE PUCALA"]
["140113 : MUNICIPALIDAD DISTRITAL DE REQUE"]
["140205 : MUNICIPALIDAD DISTRITAL DE PITIPO"]
["140309 : MUNICIPALIDAD DISTRITAL DE PACORA"]
["150202 : MUNICIPALIDAD DISTRITAL DE PARAMONGA"]
["150205 : MUNICIPALIDAD DISTRITAL DE SUPE PUERTO"]
["150402 : MUNICIPALIDAD DISTRITAL DE ARAHUAY"]
["150405 : MUNICIPALIDAD DISTRITAL DE LACHAQUI"]
["150603 : MUNICIPALIDAD DISTRITAL DE ATAVILLOS BAJO"]
["150803 : MUNICIPALIDAD DISTRITAL DE CALETA DE CARQUIN"]
["150112 : MUNICIPALIDAD DISTRITAL DE INDEPENDENCIA"]
["150134 : MUNICIPALIDAD DISTRITAL DE SAN LUIS"]
["151004 : MUNICIPALIDAD DISTRITAL DE AYAVIRI"]
["151005 : MUNICIPALIDAD DISTRITAL DE AZANGARO"]
["151016 : MUNICIPALIDAD DISTRITAL DE HUANTAN"]
["170302 : MUNICIPALIDAD DISTRITAL DE IBERIA"]
["170104 : MUNICIPALIDAD DISTRITAL DE LABERINTO"]
["190204 : MUNICIPALIDAD DISTRITAL DE PAUCAR"]
["190110 : MUNICIPALIDAD DISTRITAL DE TICLACAYAN"]
["230402 : MUNICIPALIDAD DISTRITAL DE HEROES ALBARRACIN-CHUCATAMANI"]
["250401 : MUNICIPALIDAD PROVINCIAL DE PURUS"]

{"sheet":"GRS","index":5,"n_rows":8,"n_cols":1,"rows_kept":8,"cut":false,"hidden":true,"merged":[]}
["-----------------------------------------------"]
["040000 : GOBIERNO REGIONAL DE AREQUIPA"]
["060000 : GOBIERNO REGIONAL DE CAJAMARCA"]
["130000 : GOBIERNO REGIONAL DE LA LIBERTAD"]
["150100 : REGION LIMA METROPOLITANA"]
["180000 : GOBIERNO REGIONAL DE MOQUEGUA"]
["200000 : GOBIERNO REGIONAL DE PIURA"]
["210000 : GOBIERNO REGIONAL DE PUNO"]

{"sheet":"TIPOGOB","index":6,"n_rows":7,"n_cols":1,"rows_kept":7,"cut":false,"hidden":true,"merged":[]}
["TIPOGOB"]
["Gobiernos Locales"]
["Gobiernos Regionales"]
[]
[]
["No Cumple"]
["Si Cumple"]

{"sheet":"Evaluación2019","index":7,"n_rows":157,"n_cols":46,"rows_kept":157,"cut":false,"hidden":true,"merged":[[1,45,2,45],[1,28,1,30],[1,32,1,34],[1,36,1,38],[1,40,2,40],[1,42,2,42],[1,44,2,44],[1,24,1,26],[1,0,2,0],[1,1,2,1],[1,2,2,2],[1,3,2,3],[1,4,2,4],[1,5,2,5],[1,6,2,6],[1,8,1,10],[1,12,1,14],[1,16,1,18],[1,20,1,22]]}
["Anexo N° 2: Cumplimiento de los Compromisos Fiscales contenidos en el documento \"Compromisos de Ajuste Fiscal\" 2019"]
["Ítem","Ubigeo","Departamento","Provincia","Distrito","Gobierno Regional/ Gobiernos Local","Tipo de CAF",null,"CF1 1/",null,null,null,"CF2 2/",null,null,null,"CF3 3/",null,null,null,"CF4 4/",null,null,null,"CF5 5/",null,null,null,"CF6 6/",null,null,null,"CF7 7/",null,null,null,"CF8 8/",null,null,null,"Evaluación Global (%) 9/",null,"Opinión del CAF",null,"Cumplimiento de la RFSDT 10/","Cumplimiento de la RFACC 11/"]
[null,null,null,null,null,null,null,null,"Meta  (%)","Resultado (%)","Cumple",null,"Meta  (%)","Resultado (%)","Cumple",null,"Meta  (%)","Resultado (%)","Cumple",null,"Meta  (%)","Resultado (%)","Cumple",null,"Meta (Nº)","Resultado (Nº)","Cumple",null,"Meta (Nº)","Resultado (Nº)","Cumple",null,"Meta  (%)","Resultado (%)","Cumple",null,"Meta  (S/)","Resultado (S/)","Cumple"]
[1,"040000","AREQUIPA",null,null,"GOBIERNO REGIONAL DE AREQUIPA","Completo",null,"No aplica","No aplica","No aplica",null,"No aplica","No aplica","No aplica",null,7.28,6.8230236214562767,{"$f":"IF(R4<=Q4,\"Cumple\",\"No cumple\")","v":"Cumple"},null,-22,-17.017677170604784,{"$f":"IF(V4<=U4,\"Cumple\",\"No cumple\")","v":"No cumple"},null,2,1,{"$f":"IF(Z4>=2,\"Cumple\",\"No cumple\")","v":"No cumple"},null,3,3,{"$f":"IF($AD4>=3,\"Cumple\",\"No cumple\")","v":"Cumple"},null,"No aplica","No aplica","No aplica",null,"No aplica","No aplica","No aplica",null,{"$f":"COUNTIF(I4:AM4,\"Cumple\")/4*100","v":50},null,{"$f":"IF(AO4>=80,\"Favorable\",\"Desfavorable\")","v":"Desfavorable"},null,"Cumple","Cumple"]
[2,"180000","MOQUEGUA",null,null,"GOBIERNO REGIONAL DE MOQUEGUA","Completo",null,"No aplica","No aplica","No aplica",null,"No aplica","No aplica","No aplica",null,11.1,11.872918392131687,{"$f":"IF(R5<=Q5,\"Cumple\",\"No cumple\")","v":"No cumple"},null,4.0999999999999996,71.312270057775365,{"$f":"IF(V5<=U5,\"Cumple\",\"No cumple\")","v":"No cumple"},null,2,1,{"$f":"IF(Z5>=2,\"Cumple\",\"No cumple\")","v":"No cumple"},null,3,0,{"$f":"IF($AD5>=3,\"Cumple\",\"No cumple\")","v":"No cumple"},null,"No aplica","No aplica","No aplica",null,"No aplica","No aplica","No aplica",null,{"$f":"COUNTIF(I5:AM5,\"Cumple\")/4*100","v":0},null,{"$f":"IF(AO5>=80,\"Favorable\",\"Desfavorable\")","v":"Desfavorable"},null,"No Cumple","Cumple"]
[3,"200000","PIURA",null,null,"GOBIERNO REGIONAL DE PIURA","Completo",null,"No aplica","No aplica","No aplica",null,"No aplica","No aplica","No aplica",null,9.5,9.7814608671154932,"No cumple",null,-12,-49.021622883993409,"Cumple",null,2,2,"Cumple",null,7,7,"Cumple",null,"No aplica","No aplica","No aplica",null,"No aplica","No aplica","No aplica",null,{"$f":"COUNTIF(I6:AM6,\"Cumple\")/4*100","v":75},null,"Desfavorable",null,"No Cumple","Cumple"]
[4,"210000","PUNO",null,null,"GOBIERNO REGIONAL DE PUNO","Completo",null,"No aplica","No aplica","No aplica",null,"No aplica","No aplica","No aplica",null,7.01,6.8873364716595127,"Cumple",null,-8.5,54.441589350313883,"No cumple",null,2,0,"No cumple",null,3,0,"No cumple",null,"No aplica","No aplica","No aplica",null,"No aplica","No aplica","No aplica",null,{"$f":"COUNTIF(I7:AM7,\"Cumple\")/4*100","v":25},null,"Desfavorable",null,"Cumple","Cumple"]
[1,"030101","APURIMAC","ABANCAY","ABANCAY","MUNICIPALIDAD PROVINCIAL DE ABANCAY","Completo",null,5.3,6.2092506552785149,{"$f":"IF(J8>I8,\"Cumple\",\"No cumple\")","v":"Cumple"},null,25,38.962265388498579,{"$f":"IF(N8>=M8,\"Cumple\",\"No cumple\")","v":"Cumple"},null,22.4,26.003844608128261,"No cumple",null,-99.2,9.6506214343159744,"No cumple",null,2,1,"No cumple",null,4,1,"No cumple",null,"No aplica","No aplica","No aplica",null,"No aplica","No aplica","No aplica",null,{"$f":"COUNTIF(I8:AM8,\"Cumple\")/6*100","v":33.333333333333329},null,"Desfavorable",null,"No Cumple","Cumple"]
[2,"030201","APURIMAC","ANDAHUAYLAS","ANDAHUAYLAS","MUNICIPALIDAD PROVINCIAL DE ANDAHUAYLAS","Completo",null,24.8,29.5210253672407,{"$f":"IF(J9>I9,\"Cumple\",\"No cumple\")","v":"Cumple"},null,14,5.2539086621864,{"$f":"IF(N9>=M9,\"Cumple\",\"No cumple\")","v":"No cumple"},null,31.7,30.436877572341821,"Cumple",null,-90.9,-19.236230662918778,"No cumple",null,2,1,"No cumple",null,5,0,"No cumple",null,"No aplica","No aplica","No aplica",null,"No aplica","No aplica","No aplica",null,33.333333333333329,null,"Desfavorable",null,"No Cumple","Cumple"]
[3,"030501","APURIMAC","COTABAMBA","TAMBOBAMBA","MUNICIPALIDAD PROVINCIAL DE COTABAMBAS - TAMBOBAMBA","Completo",null,3.3,54.225634601495727,"Cumple",null,0,0,"Cumple",null,20.2,25.036257029824277,"No cumple",null,-75,-78.298700729814769,"Cumple",null,2,2,"Cumple",null,7,6,"Cumple",null,"No aplica","No aplica","No aplica",null,"No aplica","No aplica","No aplica",null,83.333333333333343,null,"Favorable",null,"No Cumple","Cumple"]
[4,"030503","APURIMAC","COTABAMBA","COYLLURQUI","MUNICIPALIDAD DISTRITAL DE COYLLURQUI","Completo",null,23,-74.551533707262649,"No cumple",null,0,0,"Cumple",null,13.49,34.91734344060194,"No cumple",null,-35,-45.125347683632199,"Cumple",null,2,2,"Cumple",null,3,2,"No cumple",null,"No aplica","No aplica","No aplica",null,"No aplica","No aplica","No aplica",null,50,null,"Desfavorable",null,"No Cumple","Cumple"]
[5,"040701","AREQUIPA","ISLAY","MOLLENDO","MUNICIPALIDAD PROVINCIAL DE ISLAY - MOLLENDO","Completo",null,5,9.1315915702500572,"Cumple",null,10,12.739059187225015,"Cumple",null,17,22.593138902828166,"No cumple",null,-5,23.580344430280036,"No cumple",null,2,0,"No cumple",null,4,0,"No cumple",null,"No aplica","No aplica","No aplica",null,"No aplica","No aplica","No aplica",null,33.333333333333329,null,"Desfavorable",null,"No Cumple","Cumple"]
[6,"070101","CALLAO","PROV. CALLAO","CALLAO","MUNICIPALIDAD PROVINCIAL DEL CALLAO","Completo",null,24.2,-12.043647522178384,"No cumple",null,51,51.177291198510801,"Cumple",null,16.899999999999999,51.269301214103258,"No cumple",null,-9.6999999999999993,99.004117220703819,"No cumple",null,2,2,"Cumple",null,3,3,"Cumple",null,"No aplica","No aplica","No aplica",null,"No aplica","No aplica","No aplica",null,50,null,"Desfavorable",null,"No Cumple","Cumple"]
[7,"070102","CALLAO","PROV. CALLAO","BELLAVISTA","MUNICIPALIDAD DISTRITAL DE BELLAVISTA","Completo",null,28.1,82.063830280760641,"Cumple",null,48,46.683439740288229,"No cumple",null,43.5,47.916074062687571,"No cumple",null,-37.799999999999997,-33.234598617057799,"No cumple",null,2,1,"No cumple",null,4,4,"Cumple",null,"No aplica","No aplica","No aplica",null,"No aplica","No aplica","No aplica",null,33.333333333333329,null,"Desfavorable",null,"No Cumple","Cumple"]
[8,"070103","CALLAO","PROV. CALLAO","CARMEN DE LA LEGUA REYNOS","MUNICIPALIDAD DISTRITAL DE CARMEN DE LA LEGUA REYNOSO","Completo",null,2.9,11.06001804934723,"Cumple",null,31.74,31.029167655739435,"No cumple",null,29.5,44.536376184584341,"No cumple",null,-5.3,4.2958058208137739,"No cumple",null,2,2,"Cumple",null,3,0,"No cumple",null,"No aplica","No aplica","No aplica",null,"No aplica","No aplica","No aplica",null,33.333333333333329,null,"Desfavorable",null,"No Cumple","Cumple"]
[9,"100601","HUANUCO","LEONCIO PRADO","RUPA-RUPA","MUNICIPALIDAD PROVINCIAL DE LEONCIO PRADO - RUPA RUPA","Completo",null,10.4,7.9756242924774527,"No cumple",null,24,26.39208628780332,"Cumple",null,19.399999999999999,25.341909932831449,"No cumple",null,-90,-53.692969823447882,"No cumple",null,2,2,"Cumple",null,3,3,"Cumple",null,"No aplica","No aplica","No aplica",null,"No aplica","No aplica","No aplica",null,50,null,"Desfavorable",null,"Cumple","Cumple"]
[10,"110101","ICA","ICA","ICA","MUNICIPALIDAD PROVINCIAL DE ICA","Completo",null,4,5.0425818203256902,"Cumple",null,17.5,13.405377386033326,"No cumple",null,17,22.580776677753846,"No cumple",null,166,12.616844864346213,"Cumple",null,2,0,"No cumple",null,4,0,"No cumple",null,"No aplica","No aplica","No aplica",null,"No aplica","No aplica","No aplica",null,33.333333333333329,null,"Desfavorable",null,"No Cumple","Cumple"]
[11,"110106","ICA","ICA","PARCONA","MUNICIPALIDAD DISTRITAL DE PARCONA","Completo",null,0.3,19.638494993755621,"Cumple",null,15.8,12.47410317675156,"No cumple",null,23,28.884443196549867,"No cumple",null,-10.3,561.27602154937915,"No cumple",null,2,2,"Cumple",null,4,0,"No cumple",null,"No aplica","No aplica","No aplica",null,"No aplica","No aplica","No aplica",null,33.333333333333329,null,"Desfavorable",null,"No Cumple","Cumple"]
[12,"110501","ICA","PISCO","PISCO","MUNICIPALIDAD PROVINCIAL DE PISCO","Completo",null,4.7,33.764228467648543,"Cumple",null,18,19.940630749821576,"Cumple",null,20,26.430759021861647,"No cumple",null,-2.5,4.1120099263157988,"No cumple",null,2,0,"No cumple",null,3,1,"No cumple",null,"No aplica","No aplica","No aplica",null,"No aplica","No aplica","No aplica",null,33.333333333333329,null,"Desfavorable",null,"No Cumple","Cumple"]
[13,"130105","LA LIBERTAD","TRUJILLO","LA ESPERANZA","MUNICIPALIDAD DISTRITAL DE LA ESPERANZA","Completo",null,11,11.716975683193853,"Cumple",null,34,38.094996714297444,"Cumple",null,20,35.988266265466827,"No cumple",null,-32,-80.414024058628485,"Cumple",null,2,2,"Cumple",null,3,3,"Cumple",null,"No aplica","No aplica","No aplica",null,"No aplica","No aplica","No aplica",null,83.333333333333343,null,"Favorable",null,"Cumple","Cumple"]
[14,"130702","LA LIBERTAD","PACASMAYO","GUADALUPE","MUNICIPALIDAD DISTRITAL DE GUADALUPE","Completo",null,2.4500000000000002,10.68943196104766,"Cumple",null,4.5,5.5318990653877202,"Cumple",null,20,37.624802414957948,"No cumple",null,-2.2999999999999998,15.886501525886651,"No cumple",null,2,2,"Cumple",null,3,0,"No cumple",null,"No aplica","No aplica","No aplica",null,"No aplica","No aplica","No aplica",null,50,null,"Desfavorable",null,"No Cumple","Cumple"]
[15,"140101","LAMBAYEQUE","CHICLAYO","CHICLAYO","MUNICIPALIDAD PROVINCIAL DE CHICLAYO","Completo",null,5,12.518884747623616,"Cumple",null,84.15,81.61374235696735,"No cumple",null,9,14.016604140546537,"No cumple",null,-3,-51.38166647873441,"Cumple",null,2,2,"Cumple",null,3,3,"Cumple",null,"No aplica","No aplica","No aplica",null,"No aplica","No aplica","No aplica",null,66.666666666666657,null,"Desfavorable",null,"No Cumple","Cumple"]
[16,"140105","LAMBAYEQUE","CHICLAYO","JOSE LEONARDO ORTIZ","MUNICIPALIDAD DISTRITAL DE JOSE LEONARDO ORTIZ","Completo",null,10,68.43317522729231,"Cumple",null,23.07,690.30522009443132,"Cumple",null,6.52,9.3175987353422123,"No cumple",null,-1,-34.270180331746673,"Cumple",null,2,2,"Cumple",null,7,0,"No cumple",null,"No aplica","No aplica","No aplica",null,"No aplica","No aplica","No aplica",null,66.666666666666657,null,"Desfavorable",null,"No Cumple","Cumple"]
[17,"140106","LAMBAYEQUE","CHICLAYO","LA VICTORIA","MUNICIPALIDAD DISTRITAL DE LA VICTORIA","Completo",null,2,16.981016864238274,"Cumple",null,53,42.274956917878875,"No cumple",null,11.33,20.906680904930507,"No cumple",null,-24,122.52156575118595,"No cumple",null,2,0,"No cumple",null,4,0,"No cumple",null,"No aplica","No aplica","No aplica",null,"No aplica","No aplica","No aplica",null,16.666666666666664,null,"Desfavorable",null,"No Cumple","Cumple"]
[18,"140201","LAMBAYEQUE","FERRENAFE","FERREÑAFE","MUNICIPALIDAD PROVINCIAL DE FERREÑAFE","Completo",null,2.5,19.982688180352724,"Cumple",null,13.32,27.934915957357724,"Cumple",null,13.14,15.472494308716755,"No cumple",null,-16.3,-57.433794271113086,"Cumple",null,2,2,"Cumple",null,3,3,"Cumple",null,"No aplica","No aplica","No aplica",null,"No aplica","No aplica","No aplica",null,83.333333333333343,null,"Favorable",null,"No Cumple","Cumple"]
[19,"150102","LIMA","LIMA","ANCÓN","MUNICIPALIDAD DISTRITAL DE ANCÓN","Completo",null,0.5,25.116085712972897,"Cumple",null,42,43.45985034182155,"Cumple",null,36.5,32.04533749745525,"Cumple",null,-1.2,4.0610532882782513,"No cumple",null,2,1,"No cumple",null,6,4,"Cumple",null,"No aplica","No aplica","No aplica",null,"No aplica","No aplica","No aplica",null,66.666666666666657,null,"Desfavorable",null,"No Cumple","Cumple"]
[20,"150104","LIMA","LIMA","BARRANCO","MUNICIPALIDAD DISTRITAL DE BARRANCO","Completo",null,1.56,25.257255532901802,"Cumple",null,88.57,101.2366858330447,"Cumple",null,45,39.572696276331229,"Cumple",null,-1,-1.611909181394056,"Cumple",null,2,2,"Cumple",null,7,7,"Cumple",null,"No aplica","No aplica","No aplica",null,"No aplica","No aplica","No aplica",null,100,null,"Favorable",null,"No Cumple","Cumple"]
[21,"150105","LIMA","LIMA","BREÑA","MUNICIPALIDAD DISTRITAL DE BREÑA","Completo",null,1.9,15.42943075523344,"Cumple",null,110,96.527600900102215,"No cumple",null,54.49,47.273842655954311,"Cumple",null,-26.4,2.1476582297316527,"No cumple",null,2,2,"Cumple",null,3,3,"Cumple",null,"No aplica","No aplica","No aplica",null,"No aplica","No aplica","No aplica",null,66.666666666666657,null,"Desfavorable",null,"No Cumple","Cumple"]
[22,"150111","LIMA","LIMA","EL AGUSTINO","MUNICIPALIDAD DISTRITAL DE EL AGUSTINO","Completo",null,2.06,13.614334904272349,"Cumple",null,41,41.280075426612946,"Cumple",null,23.34,32.782321996139729,"No cumple",null,-2.5,18.866048393206725,"No cumple",null,2,1,"No cumple",null,3,2,"No cumple",null,"No aplica","No aplica","No aplica",null,"No aplica","No aplica","No aplica",null,33.333333333333329,null,"Desfavorable",null,"No Cumple","Cumple"]
[23,"150112","LIMA","LIMA","INDEPENDENCIA","MUNICIPALIDAD DISTRITAL DE INDEPENDENCIA","Completo",null,3,4.9227020965116557,"Cumple",null,42,67.104100060775323,"Cumple",null,28,36.595717913370812,"No cumple",null,-5,76.337931636183555,"No cumple",null,2,1,"No cumple",null,3,0,"No cumple",null,"No aplica","No aplica","No aplica",null,"No aplica","No aplica","No aplica",null,33.333333333333329,null,"Desfavorable",null,"No Cumple","Cumple"]
[24,"150115","LIMA","LIMA","LA VICTORIA","MUNICIPALIDAD DISTRITAL DE LA VICTORIA","Completo",null,7.4,29.310677027813309,"Cumple",null,66.599999999999994,73.759306388131392,"Cumple",null,40.9,36.355735367134137,"Cumple",null,-13.3,18.691132295188275,"No cumple",null,2,2,"Cumple",null,4,4,"Cumple",null,"No aplica","No aplica","No aplica",null,"No aplica","No aplica","No aplica",null,83.333333333333343,null,"Favorable",null,"No Cumple","Cumple"]
[25,"150121","LIMA","LIMA","MAGDALENA VIEJA","MUNICIPALIDAD DISTRITAL DE PUEBLO LIBRE","Completo",null,1.82,16.071821586254778,"Cumple",null,102.19,92.172381523039775,"No cumple",null,46.62,46.348974239160512,"Cumple",null,-29.2,-33.514501076960954,"Cumple",null,2,2,"Cumple",null,3,3,"Cumple",null,"No aplica","No aplica","No aplica",null,"No aplica","No aplica","No aplica",null,83.333333333333343,null,"Favorable",null,"Cumple","Cumple"]
[26,"150132","LIMA","LIMA","SAN JUAN DE LURIGANCHO","MUNICIPALIDAD DISTRITAL DE SAN JUAN DE LURIGANCHO","Completo",null,2.1,6.0169177468712007,"Cumple",null,42.5,45.291678375812644,"Cumple",null,29.06,19.613135728537742,"Cumple",null,-5.84,94.247906238267817,"No cumple",null,2,0,"No cumple",null,4,0,"No cumple",null,"No aplica","No aplica","No aplica",null,"No aplica","No aplica","No aplica",null,50,null,"Desfavorable",null,"No Cumple","Cumple"]
[27,"150133","LIMA","LIMA","SAN JUAN DE MIRAFLORES","MUNICIPALIDAD DISTRITAL DE SAN JUAN DE MIRAFLORES","Completo",null,30.44,26.403693181878236,"No cumple",null,73.989999999999995,74.092260543194016,"Cumple",null,26.62,39.283574101249741,"No cumple",null,-1.5,-10.621864217478661,"Cumple",null,2,2,"Cumple",null,4,4,"Cumple",null,"No aplica","No aplica","No aplica",null,"No aplica","No aplica","No aplica",null,66.666666666666657,null,"Desfavorable",null,"No Cumple","Cumple"]
[28,"150134","LIMA","LIMA","SAN LUIS","MUNICIPALIDAD DISTRITAL DE SAN LUIS ","Completo",null,1.1000000000000001,2.5666888900072302,"Cumple",null,80.5,144.68749870278245,"Cumple",null,52.7,45.355092217827547,"Cumple",null,0,65.464622881938794,"No cumple",null,2,1,"No cumple",null,6,5,"Cumple",null,"No aplica","No aplica","No aplica",null,"No aplica","No aplica","No aplica",null,66.666666666666657,null,"Desfavorable",null,"No Cumple","Cumple"]
[29,"150135","LIMA","LIMA","SAN MARTÍN DE PORRES","MUNICIPALIDAD DISTRITAL DE SAN MARTÍN DE PORRES","Completo",null,0,1.9704763577628106,"Cumple",null,45,46.607585376481545,"Cumple",null,26,27.475110594323397,"No cumple",null,-5,-43.618882256258125,"Cumple",null,2,1,"No cumple",null,3,0,"No cumple",null,"No aplica","No aplica","No aplica",null,"No aplica","No aplica","No aplica",null,50,null,"Desfavorable",null,"No Cumple","Cumple"]
[30,"150143","LIMA","LIMA","VILLA MARIA DEL TRIUNFO","MUNICIPALIDAD DISTRITAL DE VILLA MARIA DEL TRIUNFO","Completo",null,5.57,43.80485627939904,"Cumple",null,49.86,56.472340757289103,"Cumple",null,44.32,36.030922780321141,"Cumple",null,-2.5,-32.514789374112574,"Cumple",null,2,0,"No cumple",null,3,2,"No cumple",null,"No aplica","No aplica","No aplica",null,"No aplica","No aplica","No aplica",null,66.666666666666657,null,"Desfavorable",null,"No Cumple","Cumple"]
[31,"150601","LIMA","HUARAL","HUARAL","MUNICIPALIDAD PROVINCIAL DE HUARAL","Completo",null,7.5,52.856351098631116,"Cumple",null,11,12.225332830789785,"Cumple",null,38.200000000000003,39.90582419323605,"No cumple",null,-29.3,3057.7164523616293,"No cumple",null,2,2,"Cumple",null,3,3,"Cumple",null,"No aplica","No aplica","No aplica",null,"No aplica","No aplica","No aplica",null,66.666666666666657,null,"Desfavorable",null,"No Cumple","Cumple"]
[32,"150605","LIMA","HUARAL","CHANCAY","MUNICIPALIDAD DISTRITAL DE CHANCAY","Completo",null,2.6,2.4452490155916458,"No cumple",null,51,52.99513600503105,"Cumple",null,50,26.954245709411751,"Cumple",null,-17.37,-42.861742766890899,"Cumple",null,2,2,"Cumple",null,3,3,"Cumple",null,"No aplica","No aplica","No aplica",null,"No aplica","No aplica","No aplica",null,83.333333333333343,null,"Favorable",null,"Cumple","Cumple"]
[33,"150716","LIMA","HUAROCHIRI","SAN ANTONIO","MUNICIPALIDAD DISTRITAL DE SAN ANTONIO","Completo",null,14,-14.086810001135373,"No cumple",null,35,106.88427940791728,"Cumple",null,49,57.483104910581737,"No cumple",null,-60,-57.313710250651852,"No cumple",null,2,0,"No cumple",null,3,0,"No cumple",null,"No aplica","No aplica","No aplica",null,"No aplica","No aplica","No aplica",null,16.666666666666664,null,"Desfavorable",null,"Cumple","Cumple"]
[34,"160301","LORETO","LORETO","NAUTA","MUNICIPALIDAD PROVINCIAL DE LORETO - NAUTA","Completo",null,54.3,11.767298904631064,"No cumple",null,1.2,4.8133875594377766,"Cumple",null,28,28.699102442174439,"No cumple",null,-2,6.499142141872829,"No cumple",null,2,1,"No cumple",null,3,0,"No cumple",null,"No aplica","No aplica","No aplica",null,"No aplica","No aplica","No aplica",null,16.666666666666664,null,"Desfavorable",null,"No Cumple","Cumple"]
[35,"190104","PASCO","PASCO","HUAYLLAY","MUNICIPALIDAD DISTRITAL DE HUAYLLAY","Completo",null,11.07,-10.126557252939204,"No cumple",null,0,0,"Cumple",null,32,36.543750697765475,"No cumple",null,-19.850000000000001,-8.5568030766569745,"No cumple",null,2,0,"No cumple",null,4,0,"No cumple",null,"No aplica","No aplica","No aplica",null,"No aplica","No aplica","No aplica",null,16.666666666666664,null,"Desfavorable",null,"Cumple","Cumple"]
[36,"200501","PIURA","PAITA","PAITA","MUNICIPALIDAD PROVINCIAL DE PAITA","Completo",null,0,4.001372660430782,"Cumple",null,12.18,23.86297515245607,"Cumple",null,22.98,31.133376688487431,"No cumple",null,-1,21.166057776954371,"No cumple",null,2,0,"No cumple",null,4,0,"No cumple",null,"No aplica","No aplica","No aplica",null,"No aplica","No aplica","No aplica",null,33.333333333333329,null,"Desfavorable",null,"Cumple","Cumple"]
[37,"230102","TACNA","TACNA","ALTO DE LA ALIANZA","MUNICIPALIDAD DISTRITAL DE ALTO DE LA ALIANZA","Completo",null,0,24.549649842236523,"Cumple",null,4.5999999999999996,14.90062245256089,"Cumple",null,56.1,46.75898611501075,"Cumple",null,-4.4000000000000004,30.945996338346085,"No cumple",null,2,0,"No cumple",null,6,0,"No cumple",null,"No aplica","No aplica","No aplica",null,"No aplica","No aplica","No aplica",null,50,null,"Desfavorable",null,"No Cumple","Cumple"]
[38,"230104","TACNA","TACNA","CIUDAD NUEVA","MUNICIPALIDAD DISTRITAL DE CIUDAD NUEVA","Completo",null,10,-37.873256426737022,"No cumple",null,12.3,19.54664186855171,"Cumple",null,20.34,46.337171566246532,"No cumple",null,0,-16.423081766086128,"Cumple",null,2,0,"No cumple",null,3,0,"No cumple",null,"No aplica","No aplica","No aplica",null,"No aplica","No aplica","No aplica",null,33.333333333333329,null,"Desfavorable",null,"Cumple","Cumple"]
[39,"230302","TACNA","JORGE BASADRE","ILABAYA","MUNICIPALIDAD DISTRITAL DE ILABAYA","Completo",null,3,-10.497955703048021,"No cumple",null,0,0,"Cumple",null,120.7,107.8846983598667,"Cumple",null,100,-75.959255327260465,"Cumple",null,2,1,"No cumple",null,3,1,"No cumple",null,"No aplica","No aplica","No aplica",null,"No aplica","No aplica","No aplica",null,50,null,"Desfavorable",null,"No Cumple","Cumple"]
[40,"250105","UCAYALI","CORONEL PORTILLO","YARINACOCHA","MUNICIPALIDAD DISTRITAL DE YARINACOCHA","Completo",null,7.5,-4.7184653961696137,"No cumple",null,14.79,23.998374075401369,"Cumple",null,40,40.76793518893372,"No cumple",null,-33.049999999999997,-31.054183285296123,"No cumple",null,2,0,"No cumple",null,5,0,"No cumple",null,"No aplica","No aplica","No aplica",null,"No aplica","No aplica","No aplica",null,16.666666666666664,null,"Desfavorable",null,"No Cumple","Cumple"]
[1,"060000","CAJAMARCA",null,null,"GOBIERNO REGIONAL DE CAJAMARCA","Simplificado",null,"No aplica","No aplica","No aplica",null,"No aplica","No aplica","No aplica",null,"No aplica","No aplica","No aplica",null,"No aplica","No aplica","No aplica",null,"No aplica","No aplica","No aplica",null,"No aplica","No aplica","No aplica",null,100.3,81.408251413031579,"Cumple",null,51500,58909.469570002082,"Cumple",null,{"$f":"COUNTIF(I48:AM48,\"Cumple\")/2*100","v":100},null,"Favorable",null,"Cumple","Cumple"]
[2,"130000","LA LIBERTAD",null,null,"GOBIERNO REGIONAL DE LA LIBERTAD","Simplificado",null,"No aplica","No aplica","No aplica",null,"No aplica","No aplica","No aplica",null,"No aplica","No aplica","No aplica",null,"No aplica","No aplica","No aplica",null,"No aplica","No aplica","No aplica",null,"No aplica","No aplica","No aplica",null,98,67.086478984246483,"Cumple",null,127000,128288.47276999569,"Cumple",null,100,null,"Favorable",null,"Cumple","Cumple"]
[3,"260000","LIMA",null,null,"REGION LIMA METROPOLITANA","Simplificado",null,"No aplica","No aplica","No aplica",null,"No aplica","No aplica","No aplica",null,"No aplica","No aplica","No aplica",null,"No aplica","No aplica","No aplica",null,"No aplica","No aplica","No aplica",null,"No aplica","No aplica","No aplica",null,10.83,75.336128903286692,"No cumple",null,-349.68,5595.7572999999966,"Cumple",null,50,null,"Desfavorable",null,"Cumple","Cumple"]
[1,"010112","AMAZONAS","CHACHAPOYAS","MAGDALENA","MUNICIPALIDAD DISTRITAL DE MAGDALENA","Simplificado",null,"No aplica","No aplica","No aplica",null,"No aplica","No aplica","No aplica",null,"No aplica","No aplica","No aplica",null,"No aplica","No aplica","No aplica",null,"No aplica","No aplica","No aplica",null,"No aplica","No aplica","No aplica",null,100,3.0146864033480174,"Cumple",null,0,192.0803500000001,"Cumple",null,100,null,"Favorable",null,"Cumple","Cumple"]
[2,"010120","AMAZONAS","CHACHAPOYAS","SOLOCO","MUNICIPALIDAD DISTRITAL DE SOLOCO","Simplificado",null,"No aplica","No aplica","No aplica",null,"No aplica","No aplica","No aplica",null,"No aplica","No aplica","No aplica",null,"No aplica","No aplica","No aplica",null,"No aplica","No aplica","No aplica",null,"No aplica","No aplica","No aplica",null,100,99.346668927204973,"Cumple",null,0,952.7661599999999,"Cumple",null,100,null,"Favorable",null,"Cumple","Cumple"]
[3,"010302","AMAZONAS","BONGARA","CHISQUILLA","MUNICIPALIDAD DISTRITAL DE CHISQUILLA","Simplificado",null,"No aplica","No aplica","No aplica",null,"No aplica","No aplica","No aplica",null,"No aplica","No aplica","No aplica",null,"No aplica","No aplica","No aplica",null,"No aplica","No aplica","No aplica",null,"No aplica","No aplica","No aplica",null,1.1000000000000001,3.0454114835125123,"No cumple",null,523.74,104.45427000000008,"No cumple",null,0,null,"Desfavorable",null,"Cumple","Cumple"]
[4,"010503","AMAZONAS","LUYA","COCABAMBA","MUNICIPALIDAD DISTRITAL DE COCABAMBA","Simplificado",null,"No aplica","No aplica","No aplica",null,"No aplica","No aplica","No aplica",null,"No aplica","No aplica","No aplica",null,"No aplica","No aplica","No aplica",null,"No aplica","No aplica","No aplica",null,"No aplica","No aplica","No aplica",null,100,175.33526634154569,"No cumple",null,0,451.87850999999989,"Cumple",null,50,null,"Desfavorable",null,"No Cumple","Cumple"]
[5,"010504","AMAZONAS","LUYA","COLCAMAR","MUNICIPALIDAD DISTRITAL DE COLCAMAR","Simplificado",null,"No aplica","No aplica","No aplica",null,"No aplica","No aplica","No aplica",null,"No aplica","No aplica","No aplica",null,"No aplica","No aplica","No aplica",null,"No aplica","No aplica","No aplica",null,"No aplica","No aplica","No aplica",null,97,4.1727514858959269,"Cumple",null,289,186.49939000000001,"No cumple",null,50,null,"Desfavorable",null,"Cumple","Cumple"]
[6,"010522","AMAZONAS","LUYA","TINGO","MUNICIPALIDAD DISTRITAL DE TINGO","Simplificado",null,"No aplica","No aplica","No aplica",null,"No aplica","No aplica","No aplica",null,"No aplica","No aplica","No aplica",null,"No aplica","No aplica","No aplica",null,"No aplica","No aplica","No aplica",null,"No aplica","No aplica","No aplica",null,45,12.93167658245846,"Cumple",null,0,156.13718999999995,"Cumple",null,100,null,"Favorable",null,"Cumple","Cumple"]
[7,"010602","AMAZONAS","RODRIGUEZ DE MENDOZA","CHIRIMOTO","MUNICIPALIDAD DISTRITAL DE CHIRIMOTO","Simplificado",null,"No aplica","No aplica","No aplica",null,"No aplica","No aplica","No aplica",null,"No aplica","No aplica","No aplica",null,"No aplica","No aplica","No aplica",null,"No aplica","No aplica","No aplica",null,"No aplica","No aplica","No aplica",null,100,4.254473047263625,"Cumple",null,0,221.08784000000009,"Cumple",null,100,null,"Favorable",null,"Cumple","Cumple"]
[8,"010605","AMAZONAS","RODRIGUEZ DE MENDOZA","LIMABAMBA","MUNICIPALIDAD DISTRITAL DE LIMABAMBA","Simplificado",null,"No aplica","No aplica","No aplica",null,"No aplica","No aplica","No aplica",null,"No aplica","No aplica","No aplica",null,"No aplica","No aplica","No aplica",null,"No aplica","No aplica","No aplica",null,"No aplica","No aplica","No aplica",null,100,240.10314301478729,"No cumple",null,0,354.67172999999985,"Cumple",null,50,null,"Desfavorable",null,"No Cumple","Cumple"]
[9,"010606","AMAZONAS","RODRIGUEZ DE MENDOZA","LONGAR","MUNICIPALIDAD DISTRITAL DE LONGAR","Simplificado",null,"No aplica","No aplica","No aplica",null,"No aplica","No aplica","No aplica",null,"No aplica","No aplica","No aplica",null,"No aplica","No aplica","No aplica",null,"No aplica","No aplica","No aplica",null,"No aplica","No aplica","No aplica",null,100,31.563259272059401,"Cumple",null,-80,145.53233999999992,"Cumple",null,100,null,"Favorable",null,"Cumple","Cumple"]
[10,"020513","ANCASH","BOLOGNESI","PACLLON","MUNICIPALIDAD DISTRITAL DE PACLLON","Simplificado",null,"No aplica","No aplica","No aplica",null,"No aplica","No aplica","No aplica",null,"No aplica","No aplica","No aplica",null,"No aplica","No aplica","No aplica",null,"No aplica","No aplica","No aplica",null,"No aplica","No aplica","No aplica",null,98.4,39.662974773414604,"Cumple",null,5700,2096.0327399999992,"No cumple",null,50,null,"Desfavorable",null,"Cumple","Cumple"]
[11,"020515","ANCASH","BOLOGNESI","TICLLOS","MUNICIPALIDAD DISTRITAL DE TICLLOS","Simplificado",null,"No aplica","No aplica","No aplica",null,"No aplica","No aplica","No aplica",null,"No aplica","No aplica","No aplica",null,"No aplica","No aplica","No aplica",null,"No aplica","No aplica","No aplica",null,"No aplica","No aplica","No aplica",null,98,55.991764155286475,"Cumple",null,0,1061.9302199999995,"Cumple",null,100,null,"Favorable",null,"Cumple","Cumple"]
[12,"020610","ANCASH","CARHUAZ","TINCO","MUNICIPALIDAD DISTRITAL DE TINCO","Simplificado",null,"No aplica","No aplica","No aplica",null,"No aplica","No aplica","No aplica",null,"No aplica","No aplica","No aplica",null,"No aplica","No aplica","No aplica",null,"No aplica","No aplica","No aplica",null,"No aplica","No aplica","No aplica",null,100,0.54884281219761988,"Cumple",null,358.5,1189.0473899999997,"Cumple",null,100,null,"Favorable",null,"Cumple","Cumple"]
[13,"021101","ANCASH","HUARMEY","HUARMEY","MUNICIPALIDAD PROVINCIAL DE HUARMEY","Simplificado",null,"No aplica","No aplica","No aplica",null,"No aplica","No aplica","No aplica",null,"No aplica","No aplica","No aplica",null,"No aplica","No aplica","No aplica",null,"No aplica","No aplica","No aplica",null,"No aplica","No aplica","No aplica",null,63.5,69.301084392379295,"No cumple",null,0,11321.061750000003,"Cumple",null,50,null,"Desfavorable",null,"Cumple","Cumple"]
[14,"021506","ANCASH","PALLASCA","LACABAMBA","MUNICIPALIDAD DISTRITAL DE LACABAMBA","Simplificado",null,"No aplica","No aplica","No aplica",null,"No aplica","No aplica","No aplica",null,"No aplica","No aplica","No aplica",null,"No aplica","No aplica","No aplica",null,"No aplica","No aplica","No aplica",null,"No aplica","No aplica","No aplica",null,100,89.614439412299106,"Cumple",null,0,420.72661999999985,"Cumple",null,100,null,"Favorable",null,"Cumple","Cumple"]
[15,"021508","ANCASH","PALLASCA","PALLASCA","MUNICIPALIDAD DISTRITAL DE PALLASCA","Simplificado",null,"No aplica","No aplica","No aplica",null,"No aplica","No aplica","No aplica",null,"No aplica","No aplica","No aplica",null,"No aplica","No aplica","No aplica",null,"No aplica","No aplica","No aplica",null,"No aplica","No aplica","No aplica",null,100,1.515068408287285,"Cumple",null,520,2212.0887699999994,"Cumple",null,100,null,"Favorable",null,"Cumple","Cumple"]
[16,"021803","ANCASH","SANTA","COISHCO","MUNICIPALIDAD DISTRITAL DE COISHCO","Simplificado",null,"No aplica","No aplica","No aplica",null,"No aplica","No aplica","No aplica",null,"No aplica","No aplica","No aplica",null,"No aplica","No aplica","No aplica",null,"No aplica","No aplica","No aplica",null,"No aplica","No aplica","No aplica",null,125,79.852224920568872,"Cumple",null,0,5078.2442600000031,"Cumple",null,100,null,"Favorable",null,"Cumple","Cumple"]
[17,"021902","ANCASH","SIHUAS","ACOBAMBA","MUNICIPALIDAD DISTRITAL DE ACOBAMBA","Simplificado",null,"No aplica","No aplica","No aplica",null,"No aplica","No aplica","No aplica",null,"No aplica","No aplica","No aplica",null,"No aplica","No aplica","No aplica",null,"No aplica","No aplica","No aplica",null,"No aplica","No aplica","No aplica",null,30,11.766067634049655,"Cumple",null,6641.08,1655.9454099999998,"No cumple",null,50,null,"Desfavorable",null,"Cumple","Cumple"]
[18,"030106","APURIMAC","ABANCAY","LAMBRAMA","MUNICIPALIDAD DISTRITAL DE LAMBRAMA","Simplificado",null,"No aplica","No aplica","No aplica",null,"No aplica","No aplica","No aplica",null,"No aplica","No aplica","No aplica",null,"No aplica","No aplica","No aplica",null,"No aplica","No aplica","No aplica",null,"No aplica","No aplica","No aplica",null,35,31.214256253825432,"Cumple",null,506,2638.3582800000004,"Cumple",null,100,null,"Favorable",null,"Cumple","Cumple"]
[19,"030402","APURIMAC","AYMARAES","CAPAYA","MUNICIPALIDAD DISTRITAL DE CAPAYA","Simplificado",null,"No aplica","No aplica","No aplica",null,"No aplica","No aplica","No aplica",null,"No aplica","No aplica","No aplica",null,"No aplica","No aplica","No aplica",null,"No aplica","No aplica","No aplica",null,"No aplica","No aplica","No aplica",null,90,7.2759185751639226,"Cumple",null,7457.48,353.48251999999991,"No cumple",null,50,null,{"$f":"IF(AO69>=80,\"Favorable\",\"Desfavorable\")","v":"Desfavorable"},null,"Cumple","Cumple"]
[20,"030409","APURIMAC","AYMARAES","LUCRE","MUNICIPALIDAD DISTRITAL DE LUCRE","Simplificado",null,"No aplica","No aplica","No aplica",null,"No aplica","No aplica","No aplica",null,"No aplica","No aplica","No aplica",null,"No aplica","No aplica","No aplica",null,"No aplica","No aplica","No aplica",null,"No aplica","No aplica","No aplica",null,7,8.6884130393032581,"No cumple",null,995,877.30520000000001,"No cumple",null,0,null,"Desfavorable",null,"Cumple","Cumple"]
[21,"030413","APURIMAC","AYMARAES","SORAYA","MUNICIPALIDAD DISTRITAL DE SORAYA","Simplificado",null,"No aplica","No aplica","No aplica",null,"No aplica","No aplica","No aplica",null,"No aplica","No aplica","No aplica",null,"No aplica","No aplica","No aplica",null,"No aplica","No aplica","No aplica",null,"No aplica","No aplica","No aplica",null,48,69.785989967366092,"No cumple",null,0,304.11965000000004,"Cumple",null,50,null,"Desfavorable",null,"Cumple","Cumple"]
[22,"030502","APURIMAC","COTABAMBA","COTABAMBAS","MUNICIPALIDAD DISTRITAL DE COTABAMBAS","Simplificado",null,"No aplica","No aplica","No aplica",null,"No aplica","No aplica","No aplica",null,"No aplica","No aplica","No aplica",null,"No aplica","No aplica","No aplica",null,"No aplica","No aplica","No aplica",null,"No aplica","No aplica","No aplica",null,442.01,310.99114824506165,"Cumple",null,1500,3125.1786799999995,"Cumple",null,100,null,"Favorable",null,"No Cumple","Cumple"]
[23,"030601","APURIMAC","CHINCHEROS","CHINCHEROS","MUNICIPALIDAD PROVINCIAL DE CHINCHEROS","Simplificado",null,"No aplica","No aplica","No aplica",null,"No aplica","No aplica","No aplica",null,"No aplica","No aplica","No aplica",null,"No aplica","No aplica","No aplica",null,"No aplica","No aplica","No aplica",null,"No aplica","No aplica","No aplica",null,192.72,388.00427697914984,"No cumple",null,250,2177.7511899999977,"Cumple",null,50,null,"Desfavorable",null,"No Cumple","Cumple"]
[24,"030701","APURIMAC","GRAU","CHUQUIBAMBILLA","MUNICIPALIDAD PROVINCIAL DE GRAU","Simplificado",null,"No aplica","No aplica","No aplica",null,"No aplica","No aplica","No aplica",null,"No aplica","No aplica","No aplica",null,"No aplica","No aplica","No aplica",null,"No aplica","No aplica","No aplica",null,"No aplica","No aplica","No aplica",null,967,935.97418783331113,"Cumple",null,3331.74,2311.6625500000009,"No cumple",null,50,null,"Desfavorable",null,"No Cumple","Cumple"]
[25,"030708","APURIMAC","GRAU","PROGRESO","MUNICIPALIDAD DISTRITAL DE PROGRESO","Simplificado",null,"No aplica","No aplica","No aplica",null,"No aplica","No aplica","No aplica",null,"No aplica","No aplica","No aplica",null,"No aplica","No aplica","No aplica",null,"No aplica","No aplica","No aplica",null,"No aplica","No aplica","No aplica",null,1004,1247.552756645968,"No cumple",null,2000,1920.7811200000006,"No cumple",null,0,null,"Desfavorable",null,"No Cumple","Cumple"]
[26,"040405","AREQUIPA","CASTILLA","CHILCAYMARCA","MUNICIPALIDAD DISTRITAL DE CHILCAYMARCA","Simplificado",null,"No aplica","No aplica","No aplica",null,"No aplica","No aplica","No aplica",null,"No aplica","No aplica","No aplica",null,"No aplica","No aplica","No aplica",null,"No aplica","No aplica","No aplica",null,"No aplica","No aplica","No aplica",null,5.0999999999999996,61.394845835168908,"No cumple",null,500,1377.9377700000002,"Cumple",null,50,null,"Desfavorable",null,"Cumple","Cumple"]
[27,"040802","AREQUIPA","LA UNION","ALCA","MUNICIPALIDAD DISTRITAL DE ALCA","Simplificado",null,"No aplica","No aplica","No aplica",null,"No aplica","No aplica","No aplica",null,"No aplica","No aplica","No aplica",null,"No aplica","No aplica","No aplica",null,"No aplica","No aplica","No aplica",null,"No aplica","No aplica","No aplica",null,80,2.77968126373153,"Cumple",null,1000,1220.6578499999996,"Cumple",null,100,null,"Favorable",null,"Cumple","Cumple"]
[28,"050104","AYACUCHO","HUAMANGA","CARMEN ALTO","MUNICIPALIDAD DISTRITAL DE CARMEN ALTO","Simplificado",null,"No aplica","No aplica","No aplica",null,"No aplica","No aplica","No aplica",null,"No aplica","No aplica","No aplica",null,"No aplica","No aplica","No aplica",null,"No aplica","No aplica","No aplica",null,"No aplica","No aplica","No aplica",null,4.1100000000000003,7.5211102068913727,"No cumple",null,1345.2,1196.2771599999987,"No cumple",null,0,null,"Desfavorable",null,"Cumple","Cumple"]
[29,"050106","AYACUCHO","HUAMANGA","OCROS","MUNICIPALIDAD DISTRITAL DE OCROS","Simplificado",null,"No aplica","No aplica","No aplica",null,"No aplica","No aplica","No aplica",null,"No aplica","No aplica","No aplica",null,"No aplica","No aplica","No aplica",null,"No aplica","No aplica","No aplica",null,"No aplica","No aplica","No aplica",null,351.01,52.037852796984971,"Cumple",null,1078.7,620.58565000000033,"No cumple",null,50,null,"Desfavorable",null,"Cumple","Cumple"]
[30,"050201","AYACUCHO","CANGALLO","CANGALLO","MUNICIPALIDAD PROVINCIAL DE CANGALLO","Simplificado",null,"No aplica","No aplica","No aplica",null,"No aplica","No aplica","No aplica",null,"No aplica","No aplica","No aplica",null,"No aplica","No aplica","No aplica",null,"No aplica","No aplica","No aplica",null,"No aplica","No aplica","No aplica",null,249.36,21.871554347748333,"Cumple",null,644.95000000000005,1656.9572699999997,"Cumple",null,100,null,"Favorable",null,"Cumple","Cumple"]
[31,"050304","AYACUCHO","HUANCA SANCOS","SANTIAGO DE LUCANAMARCA","MUNICIPALIDAD DISTRITAL DE SANTIAGO DE LUCANAMARCA","Simplificado",null,"No aplica","No aplica","No aplica",null,"No aplica","No aplica","No aplica",null,"No aplica","No aplica","No aplica",null,"No aplica","No aplica","No aplica",null,"No aplica","No aplica","No aplica",null,"No aplica","No aplica","No aplica",null,258.67,14.574398529304542,"Cumple",null,597.44000000000005,732.59841999999992,"Cumple",null,100,null,"Favorable",null,"Cumple","Cumple"]
[32,"050405","AYACUCHO","HUANTA","LURICOCHA","MUNICIPALIDAD DISTRITAL DE LURICOCHA","Simplificado",null,"No aplica","No aplica","No aplica",null,"No aplica","No aplica","No aplica",null,"No aplica","No aplica","No aplica",null,"No aplica","No aplica","No aplica",null,"No aplica","No aplica","No aplica",null,"No aplica","No aplica","No aplica",null,100,221.52282283685651,"No cumple",null,0,1612.6960900000006,"Cumple",null,50,null,"Desfavorable",null,"No Cumple","Cumple"]
[33,"050503","AYACUCHO","LA MAR","AYNA","MUNICIPALIDAD DISTRITAL DE AYNA","Simplificado",null,"No aplica","No aplica","No aplica",null,"No aplica","No aplica","No aplica",null,"No aplica","No aplica","No aplica",null,"No aplica","No aplica","No aplica",null,"No aplica","No aplica","No aplica",null,"No aplica","No aplica","No aplica",null,89.5,130.80767597893185,"No cumple",null,879.29,1435.56367,"Cumple",null,50,null,"Desfavorable",null,"No Cumple","Cumple"]
[34,"050707","AYACUCHO","PARINACOCHAS","SAN FRANCISCO DE RAVACAYC","MUNICIPALIDAD DISTRITAL DE SAN FRANCISCO DE RAVACAYCO","Simplificado",null,"No aplica","No aplica","No aplica",null,"No aplica","No aplica","No aplica",null,"No aplica","No aplica","No aplica",null,"No aplica","No aplica","No aplica",null,"No aplica","No aplica","No aplica",null,"No aplica","No aplica","No aplica",null,100,1.32689845281703,"Cumple",null,500,541.61633999999981,"Cumple",null,100,null,"Favorable",null,"Cumple","Cumple"]
[35,"051001","AYACUCHO","VICTOR FAJARDO","HUANCAPI","MUNICIPALIDAD PROVINCIAL DE VICTOR FAJARDO","Simplificado",null,"No aplica","No aplica","No aplica",null,"No aplica","No aplica","No aplica",null,"No aplica","No aplica","No aplica",null,"No aplica","No aplica","No aplica",null,"No aplica","No aplica","No aplica",null,"No aplica","No aplica","No aplica",null,144.99,129.11751716465506,"Cumple",null,2894.5,2992.4761799999978,"Cumple",null,100,null,"Favorable",null,"No Cumple","Cumple"]
[36,"051108","AYACUCHO","VILCASHUAMAN","VISCHONGO","MUNICIPALIDAD DISTRITAL DE VISCHONGO","Simplificado",null,"No aplica","No aplica","No aplica",null,"No aplica","No aplica","No aplica",null,"No aplica","No aplica","No aplica",null,"No aplica","No aplica","No aplica",null,"No aplica","No aplica","No aplica",null,"No aplica","No aplica","No aplica",null,236,266.26376529457832,"No cumple",null,-456.44,923.66617999999971,"Cumple",null,50,null,"Desfavorable",null,"No Cumple","Cumple"]
[37,"060112","CAJAMARCA","CAJAMARCA","SAN JUAN","MUNICIPALIDAD DISTRITAL DE SAN JUAN","Simplificado",null,"No aplica","No aplica","No aplica",null,"No aplica","No aplica","No aplica",null,"No aplica","No aplica","No aplica",null,"No aplica","No aplica","No aplica",null,"No aplica","No aplica","No aplica",null,"No aplica","No aplica","No aplica",null,1.26,119.31697609610652,"No cumple",null,429.83,553.36086999999986,"Cumple",null,50,null,"Desfavorable",null,"No Cumple","Cumple"]
[38,"060402","CAJAMARCA","CHOTA","ANGUIA","MUNICIPALIDAD DISTRITAL DE ANGUIA","Simplificado",null,"No aplica","No aplica","No aplica",null,"No aplica","No aplica","No aplica",null,"No aplica","No aplica","No aplica",null,"No aplica","No aplica","No aplica",null,"No aplica","No aplica","No aplica",null,"No aplica","No aplica","No aplica",null,850,14.773708005596514,"Cumple",null,0,617.8473899999999,"Cumple",null,100,null,"Favorable",null,"Cumple","Cumple"]
[39,"060406","CAJAMARCA","CHOTA","CHOROPAMPA","MUNICIPALIDAD DISTRITAL DE CHOROPAMPA","Simplificado",null,"No aplica","No aplica","No aplica",null,"No aplica","No aplica","No aplica",null,"No aplica","No aplica","No aplica",null,"No aplica","No aplica","No aplica",null,"No aplica","No aplica","No aplica",null,"No aplica","No aplica","No aplica",null,12.9,77.668059366034498,"No cumple",null,180,713.18952999999976,"Cumple",null,50,null,"Desfavorable",null,"Cumple","Cumple"]
[40,"060414","CAJAMARCA","CHOTA","PION","MUNICIPALIDAD DISTRITAL DE PION","Simplificado",null,"No aplica","No aplica","No aplica",null,"No aplica","No aplica","No aplica",null,"No aplica","No aplica","No aplica",null,"No aplica","No aplica","No aplica",null,"No aplica","No aplica","No aplica",null,"No aplica","No aplica","No aplica",null,100,158.32651606571113,"No cumple",null,35.36,112.42342000000004,"Cumple",null,50,null,"Desfavorable",null,"No Cumple","Cumple"]
[41,"061310","CAJAMARCA","SANTA CRUZ","UTICYACU","MUNICIPALIDAD DISTRITAL DE UTICYACU","Simplificado",null,"No aplica","No aplica","No aplica",null,"No aplica","No aplica","No aplica",null,"No aplica","No aplica","No aplica",null,"No aplica","No aplica","No aplica",null,"No aplica","No aplica","No aplica",null,"No aplica","No aplica","No aplica",null,150,112.33982459367458,"Cumple",null,200,118.27348000000009,"No cumple",null,50,null,"Desfavorable",null,"No Cumple","Cumple"]
[42,"081102","CUSCO","PAUCARTAMBO","CAICAY","MUNICIPALIDAD DISTRITAL DE CAICAY","Simplificado",null,"No aplica","No aplica","No aplica",null,"No aplica","No aplica","No aplica",null,"No aplica","No aplica","No aplica",null,"No aplica","No aplica","No aplica",null,"No aplica","No aplica","No aplica",null,"No aplica","No aplica","No aplica",null,0.95,0.9184734475826819,"Cumple",null,0,1797.7465799999995,"Cumple",null,100,null,"Favorable",null,"Cumple","Cumple"]
[43,"090202","HUANCAVELICA","ACOBAMBA","ANDABAMBA","MUNICIPALIDAD DISTRITAL DE ANDABAMBA","Simplificado",null,"No aplica","No aplica","No aplica",null,"No aplica","No aplica","No aplica",null,"No aplica","No aplica","No aplica",null,"No aplica","No aplica","No aplica",null,"No aplica","No aplica","No aplica",null,"No aplica","No aplica","No aplica",null,99,164.93162431611674,"No cumple",null,1700,1067.1299000000004,"No cumple",null,0,null,"Desfavorable",null,"No Cumple","Cumple"]
[44,"090204","HUANCAVELICA","ACOBAMBA","CAJA","MUNICIPALIDAD DISTRITAL DE CAJA","Simplificado",null,"No aplica","No aplica","No aplica",null,"No aplica","No aplica","No aplica",null,"No aplica","No aplica","No aplica",null,"No aplica","No aplica","No aplica",null,"No aplica","No aplica","No aplica",null,"No aplica","No aplica","No aplica",null,400,579.75794912755066,"No cumple",null,1500,434.13120999999973,"No cumple",null,0,null,"Desfavorable",null,"No Cumple","Cumple"]
[45,"090302","HUANCAVELICA","ANGARAES","ANCHONGA","MUNICIPALIDAD DISTRITAL DE ANCHONGA","Simplificado",null,"No aplica","No aplica","No aplica",null,"No aplica","No aplica","No aplica",null,"No aplica","No aplica","No aplica",null,"No aplica","No aplica","No aplica",null,"No aplica","No aplica","No aplica",null,"No aplica","No aplica","No aplica",null,210,224.6736517533804,"No cumple",null,700,1406.3296700000008,"Cumple",null,50,null,"Desfavorable",null,"No Cumple","Cumple"]
[46,"090404","HUANCAVELICA","CASTROVIRREYNA","CAPILLAS","MUNICIPALIDAD DISTRITAL DE CAPILLAS","Simplificado",null,"No aplica","No aplica","No aplica",null,"No aplica","No aplica","No aplica",null,"No aplica","No aplica","No aplica",null,"No aplica","No aplica","No aplica",null,"No aplica","No aplica","No aplica",null,"No aplica","No aplica","No aplica",null,100,16.480302213158801,"Cumple",null,0,384.38535999999988,"Cumple",null,100,null,"Favorable",null,"Cumple","Cumple"]
[47,"100608","HUANUCO","LEONCIO PRADO","CASTILLO GRANDE","MUNICIPALIDAD DISTRITAL DE CASTILLO GRANDE","Simplificado",null,"No aplica","No aplica","No aplica",null,"No aplica","No aplica","No aplica",null,"No aplica","No aplica","No aplica",null,"No aplica","No aplica","No aplica",null,"No aplica","No aplica","No aplica",null,"No aplica","No aplica","No aplica",null,0,3.4624447267696352,"No cumple",null,-120,954.67708999999991,"Cumple",null,50,null,"Desfavorable",null,"Cumple","Cumple"]
[48,"110211","ICA","CHINCHA","TAMBO DE MORA","MUNICIPALIDAD DISTRITAL DE TAMBO DE MORA","Simplificado",null,"No aplica","No aplica","No aplica",null,"No aplica","No aplica","No aplica",null,"No aplica","No aplica","No aplica",null,"No aplica","No aplica","No aplica",null,"No aplica","No aplica","No aplica",null,"No aplica","No aplica","No aplica",null,100,93.286808539019361,"Cumple",null,0,1152.4828200000002,"Cumple",null,100,null,"Favorable",null,"Cumple","Cumple"]
[49,"110402","ICA","PALPA","LLIPATA","MUNICIPALIDAD DISTRITAL DE LLIPATA","Simplificado",null,"No aplica","No aplica","No aplica",null,"No aplica","No aplica","No aplica",null,"No aplica","No aplica","No aplica",null,"No aplica","No aplica","No aplica",null,"No aplica","No aplica","No aplica",null,"No aplica","No aplica","No aplica",null,110.54,68.500870216901262,"Cumple",null,0,191.65572999999998,"Cumple",null,100,null,"Favorable",null,"Cumple","Cumple"]
[50,"110506","ICA","PISCO","SAN ANDRES","MUNICIPALIDAD DISTRITAL DE SAN ANDRES","Simplificado",null,"No aplica","No aplica","No aplica",null,"No aplica","No aplica","No aplica",null,"No aplica","No aplica","No aplica",null,"No aplica","No aplica","No aplica",null,"No aplica","No aplica","No aplica",null,"No aplica","No aplica","No aplica",null,114.94,110.79051795773658,"Cumple",null,0,1932.3354299999987,"Cumple",null,100,null,"Favorable",null,"No Cumple","Cumple"]
[51,"120120","JUNIN","HUANCAYO","HUASICANCHA","MUNICIPALIDAD DISTRITAL DE HUASICANCHA","Simplificado",null,"No aplica","No aplica","No aplica",null,"No aplica","No aplica","No aplica",null,"No aplica","No aplica","No aplica",null,"No aplica","No aplica","No aplica",null,"No aplica","No aplica","No aplica",null,"No aplica","No aplica","No aplica",null,259.17,369.73183543638345,"No cumple",null,0,185.42752000000002,"Cumple",null,50,null,"Desfavorable",null,"No Cumple","Cumple"]
[52,"120207","JUNIN","CONCEPCION","HEROINAS TOLEDO","MUNICIPALIDAD DISTRITAL DE HEROINAS TOLEDO","Simplificado",null,"No aplica","No aplica","No aplica",null,"No aplica","No aplica","No aplica",null,"No aplica","No aplica","No aplica",null,"No aplica","No aplica","No aplica",null,"No aplica","No aplica","No aplica",null,"No aplica","No aplica","No aplica",null,100.17,79.673794298130915,"Cumple",null,0,117.90257000000001,"Cumple",null,100,null,"Favorable",null,"Cumple","Cumple"]
[53,"120402","JUNIN","JAUJA","ACOLLA","MUNICIPALIDAD DISTRITAL DE ACOLLA","Simplificado",null,"No aplica","No aplica","No aplica",null,"No aplica","No aplica","No aplica",null,"No aplica","No aplica","No aplica",null,"No aplica","No aplica","No aplica",null,"No aplica","No aplica","No aplica",null,"No aplica","No aplica","No aplica",null,100,27.535386837126367,"Cumple",null,0,3274.4835300000009,"Cumple",null,100,null,"Favorable",null,"Cumple","Cumple"]
[54,"130104","LA LIBERTAD","TRUJILLO","HUANCHACO","MUNICIPALIDAD DISTRITAL DE HUANCHACO","Simplificado",null,"No aplica","No aplica","No aplica",null,"No aplica","No aplica","No aplica",null,"No aplica","No aplica","No aplica",null,"No aplica","No aplica","No aplica",null,"No aplica","No aplica","No aplica",null,"No aplica","No aplica","No aplica",null,30,54.192055286371399,"No cumple",null,-1708.17,6093.1326699999963,"Cumple",null,50,null,"Desfavorable",null,"Cumple","Cumple"]
[55,"130106","LA LIBERTAD","TRUJILLO","LAREDO","MUNICIPALIDAD DISTRITAL DE LAREDO","Simplificado",null,"No aplica","No aplica","No aplica",null,"No aplica","No aplica","No aplica",null,"No aplica","No aplica","No aplica",null,"No aplica","No aplica","No aplica",null,"No aplica","No aplica","No aplica",null,"No aplica","No aplica","No aplica",null,58.4,70.28954611990244,"No cumple",null,-3000,573.6287500000019,"Cumple",null,50,null,"Desfavorable",null,"Cumple","Cumple"]
[56,"130207","LA LIBERTAD","ASCOPE","SANTIAGO DE CAO","MUNICIPALIDAD DISTRITAL DE SANTIAGO DE CAO","Simplificado",null,"No aplica","No aplica","No aplica",null,"No aplica","No aplica","No aplica",null,"No aplica","No aplica","No aplica",null,"No aplica","No aplica","No aplica",null,"No aplica","No aplica","No aplica",null,"No aplica","No aplica","No aplica",null,187.22,217.99072756083331,"No cumple",null,0,2231.8551699999989,"Cumple",null,50,null,"Desfavorable",null,"No Cumple","Cumple"]
[57,"140104","LAMBAYEQUE","CHICLAYO","ETEN PUERTO","MUNICIPALIDAD DISTRITAL DE ETEN PUERTO","Simplificado",null,"No aplica","No aplica","No aplica",null,"No aplica","No aplica","No aplica",null,"No aplica","No aplica","No aplica",null,"No aplica","No aplica","No aplica",null,"No aplica","No aplica","No aplica",null,"No aplica","No aplica","No aplica",null,272,287.906237282066,"No cumple",null,400,70.720570000000066,"No cumple",null,0,null,"Desfavorable",null,"No Cumple","Cumple"]
[58,"140111","LAMBAYEQUE","CHICLAYO","PICSI","MUNICIPALIDAD DISTRITAL DE PICSI","Simplificado",null,"No aplica","No aplica","No aplica",null,"No aplica","No aplica","No aplica",null,"No aplica","No aplica","No aplica",null,"No aplica","No aplica","No aplica",null,"No aplica","No aplica","No aplica",null,"No aplica","No aplica","No aplica",null,145,123.51545947775018,"Cumple",null,-220,-85.760800000000515,"Cumple",null,100,null,"Favorable",null,"No Cumple","No Cumple"]
[59,"140116","LAMBAYEQUE","CHICLAYO","CAYALTI","MUNICIPALIDAD DISTRITAL DE CAYALTI","Simplificado",null,"No aplica","No aplica","No aplica",null,"No aplica","No aplica","No aplica",null,"No aplica","No aplica","No aplica",null,"No aplica","No aplica","No aplica",null,"No aplica","No aplica","No aplica",null,"No aplica","No aplica","No aplica",null,50,25.069442713422021,"Cumple",null,227.97,610.22601999999961,"Cumple",null,100,null,"Favorable",null,"Cumple","Cumple"]
[60,"140118","LAMBAYEQUE","CHICLAYO","POMALCA","MUNICIPALIDAD DISTRITAL DE POMALCA","Simplificado",null,"No aplica","No aplica","No aplica",null,"No aplica","No aplica","No aplica",null,"No aplica","No aplica","No aplica",null,"No aplica","No aplica","No aplica",null,"No aplica","No aplica","No aplica",null,"No aplica","No aplica","No aplica",null,19.71,26.584787972655072,"No cumple",null,1286,41.155419999998998,"No cumple",null,0,null,"Desfavorable",null,"Cumple","Cumple"]
[61,"140205","LAMBAYEQUE","FERRENAFE","PITIPO","MUNICIPALIDAD DISTRITAL DE PITIPO","Simplificado",null,"No aplica","No aplica","No aplica",null,"No aplica","No aplica","No aplica",null,"No aplica","No aplica","No aplica",null,"No aplica","No aplica","No aplica",null,"No aplica","No aplica","No aplica",null,"No aplica","No aplica","No aplica",null,65.56,129.90314250986637,"No cumple",null,0,1966.7372699999996,"Cumple",null,50,null,"Desfavorable",null,"No Cumple","Cumple"]
[62,"140310","LAMBAYEQUE","LAMBAYEQUE","SALAS","MUNICIPALIDAD DISTRITAL DE SALAS","Simplificado",null,"No aplica","No aplica","No aplica",null,"No aplica","No aplica","No aplica",null,"No aplica","No aplica","No aplica",null,"No aplica","No aplica","No aplica",null,"No aplica","No aplica","No aplica",null,"No aplica","No aplica","No aplica",null,100,20.504881187853101,"Cumple",null,1000,1608.8116200000011,"Cumple",null,{"$f":"COUNTIF(I112:AM112,\"Cumple\")/2*100","v":100},null,"Favorable",null,"Cumple","Cumple"]
[63,"150110","LIMA","LIMA","COMAS","MUNICIPALIDAD DISTRITAL DE COMAS","Simplificado",null,"No aplica","No aplica","No aplica",null,"No aplica","No aplica","No aplica",null,"No aplica","No aplica","No aplica",null,"No aplica","No aplica","No aplica",null,"No aplica","No aplica","No aplica",null,"No aplica","No aplica","No aplica",null,99,120.43442072590021,"No cumple",null,746,9896.5310899999731,"Cumple",null,50,null,"Desfavorable",null,"No Cumple","Cumple"]
[64,"150128","LIMA","LIMA","RÍMAC","MUNICIPALIDAD DISTRITAL DEL RÍMAC","Simplificado",null,"No aplica","No aplica","No aplica",null,"No aplica","No aplica","No aplica",null,"No aplica","No aplica","No aplica",null,"No aplica","No aplica","No aplica",null,"No aplica","No aplica","No aplica",null,"No aplica","No aplica","No aplica",null,95.82,86.652335544569553,"Cumple",null,0,3806.0267599999943,"Cumple",null,100,null,"Favorable",null,"Cumple","Cumple"]
[65,"150129","LIMA","LIMA","SAN BARTOLO","MUNICIPALIDAD DISTRITAL DE SAN BARTOLO","Simplificado",null,"No aplica","No aplica","No aplica",null,"No aplica","No aplica","No aplica",null,"No aplica","No aplica","No aplica",null,"No aplica","No aplica","No aplica",null,"No aplica","No aplica","No aplica",null,"No aplica","No aplica","No aplica",null,89.27,76.162776080834206,"Cumple",null,4640.1996799999997,1421.2404899999974,"No cumple",null,50,null,"Desfavorable",null,"Cumple","Cumple"]
[66,"150201","LIMA","BARRANCA","BARRANCA","MUNICIPALIDAD PROVINCIAL DE BARRANCA","Simplificado",null,"No aplica","No aplica","No aplica",null,"No aplica","No aplica","No aplica",null,"No aplica","No aplica","No aplica",null,"No aplica","No aplica","No aplica",null,"No aplica","No aplica","No aplica",null,"No aplica","No aplica","No aplica",null,101.38,97.494791384809616,"Cumple",null,100,3398.7134999999926,"Cumple",null,100,null,"Favorable",null,"Cumple","Cumple"]
[67,"150202","LIMA","BARRANCA","PARAMONGA","MUNICIPALIDAD DISTRITAL DE PARAMONGA","Simplificado",null,"No aplica","No aplica","No aplica",null,"No aplica","No aplica","No aplica",null,"No aplica","No aplica","No aplica",null,"No aplica","No aplica","No aplica",null,"No aplica","No aplica","No aplica",null,"No aplica","No aplica","No aplica",null,100,132.2943993321629,"No cumple",null,-1307.05,1688.1749899999966,"Cumple",null,50,null,"Desfavorable",null,"No Cumple","Cumple"]
[68,"150205","LIMA","BARRANCA","SUPE PUERTO","MUNICIPALIDAD DISTRITAL DE SUPE PUERTO ","Simplificado",null,"No aplica","No aplica","No aplica",null,"No aplica","No aplica","No aplica",null,"No aplica","No aplica","No aplica",null,"No aplica","No aplica","No aplica",null,"No aplica","No aplica","No aplica",null,"No aplica","No aplica","No aplica",null,188.17,186.57588011429368,"Cumple",null,990,788.98997999999995,"No cumple",null,50,null,"Desfavorable",null,"No Cumple","Cumple"]
[69,"150510","LIMA","CAÑETE","NUEVO IMPERIAL","MUNICIPALIDAD DISTRITAL DE NUEVO IMPERIAL","Simplificado",null,"No aplica","No aplica","No aplica",null,"No aplica","No aplica","No aplica",null,"No aplica","No aplica","No aplica",null,"No aplica","No aplica","No aplica",null,"No aplica","No aplica","No aplica",null,"No aplica","No aplica","No aplica",null,295,77.863730397444499,"Cumple",null,956.32,4069.3559699999987,"Cumple",null,100,null,"Favorable",null,"Cumple","Cumple"]
[70,"150712","LIMA","HUAROCHIRI","SAN PEDRO DE LARAOS","MUNICIPALIDAD DISTRITAL DE SAN PEDRO DE LARAOS","Simplificado",null,"No aplica","No aplica","No aplica",null,"No aplica","No aplica","No aplica",null,"No aplica","No aplica","No aplica",null,"No aplica","No aplica","No aplica",null,"No aplica","No aplica","No aplica",null,"No aplica","No aplica","No aplica",null,99,1.0943994792257048,"Cumple",null,-300,1161.4481600000001,"Cumple",null,100,null,"Favorable",null,"Cumple","Cumple"]
[71,"151009","LIMA","YAUYOS","CHOCOS","MUNICIPALIDAD DISTRITAL DE CHOCOS","Simplificado",null,"No aplica","No aplica","No aplica",null,"No aplica","No aplica","No aplica",null,"No aplica","No aplica","No aplica",null,"No aplica","No aplica","No aplica",null,"No aplica","No aplica","No aplica",null,"No aplica","No aplica","No aplica",null,89,25.869402534478443,"Cumple",null,0,778.55142999999998,"Cumple",null,100,null,"Favorable",null,"Cumple","Cumple"]
[72,"160302","LORETO","LORETO","PARINARI (1)","MUNICIPALIDAD DISTRITAL DE PARINARI","Simplificado",null,"No aplica","No aplica","No aplica",null,"No aplica","No aplica","No aplica",null,"No aplica","No aplica","No aplica",null,"No aplica","No aplica","No aplica",null,"No aplica","No aplica","No aplica",null,"No aplica","No aplica","No aplica",null,107.23,145.47283249348447,"No cumple",null,308.99,1165.1950999999997,"Cumple",null,50,null,"Desfavorable",null,"No Cumple","Cumple"]
[73,"160305","LORETO","LORETO","URARINAS (2)","MUNICIPALIDAD DISTRITAL DE URARINAS","Simplificado",null,"No aplica","No aplica","No aplica",null,"No aplica","No aplica","No aplica",null,"No aplica","No aplica","No aplica",null,"No aplica","No aplica","No aplica",null,"No aplica","No aplica","No aplica",null,"No aplica","No aplica","No aplica",null,100,56.193581675295654,"Cumple",null,2711.23,1607.3737699999986,"No cumple",null,50,null,"Desfavorable",null,"Cumple","Cumple"]
[74,"160502","LORETO","REQUENA","ALTO TAPICHE","MUNICIPALIDAD DISTRITAL DE ALTO TAPICHE","Simplificado",null,"No aplica","No aplica","No aplica",null,"No aplica","No aplica","No aplica",null,"No aplica","No aplica","No aplica",null,"No aplica","No aplica","No aplica",null,"No aplica","No aplica","No aplica",null,"No aplica","No aplica","No aplica",null,225.88,253.42527334389987,"No cumple",null,800,293.86221999999998,"No cumple",null,0,null,"Desfavorable",null,"No Cumple","Cumple"]
[75,"190103","PASCO","PASCO","HUARIACA","MUNICIPALIDAD DISTRITAL DE HUARIACA","Simplificado",null,"No aplica","No aplica","No aplica",null,"No aplica","No aplica","No aplica",null,"No aplica","No aplica","No aplica",null,"No aplica","No aplica","No aplica",null,"No aplica","No aplica","No aplica",null,"No aplica","No aplica","No aplica",null,112.03,83.037996242506182,"Cumple",null,1200,1511.8484100000003,"Cumple",null,100,null,"Favorable",null,"Cumple","Cumple"]
[76,"190110","PASCO","PASCO","TICLACAYAN","MUNICIPALIDAD DISTRITAL DE TICLACAYAN","Simplificado",null,"No aplica","No aplica","No aplica",null,"No aplica","No aplica","No aplica",null,"No aplica","No aplica","No aplica",null,"No aplica","No aplica","No aplica",null,"No aplica","No aplica","No aplica",null,"No aplica","No aplica","No aplica",null,155.46,125.41122978692026,"Cumple",null,5000,4318.2770199999995,"No cumple",null,50,null,"Desfavorable",null,"No Cumple","Cumple"]
[77,"190111","PASCO","PASCO","TINYAHUARCO","MUNICIPALIDAD DISTRITAL DE TINYAHUARCO","Simplificado",null,"No aplica","No aplica","No aplica",null,"No aplica","No aplica","No aplica",null,"No aplica","No aplica","No aplica",null,"No aplica","No aplica","No aplica",null,"No aplica","No aplica","No aplica",null,"No aplica","No aplica","No aplica",null,180.66,113.86766871446387,"Cumple",null,4064.04504,3822.4879600000017,"No cumple",null,50,null,"Desfavorable",null,"No Cumple","Cumple"]
[78,"200108","PIURA","PIURA","EL TALLAN","MUNICIPALIDAD DISTRITAL DE EL TALLAN","Simplificado",null,"No aplica","No aplica","No aplica",null,"No aplica","No aplica","No aplica",null,"No aplica","No aplica","No aplica",null,"No aplica","No aplica","No aplica",null,"No aplica","No aplica","No aplica",null,"No aplica","No aplica","No aplica",null,1.1000000000000001,4.0257676626215391,"No cumple",null,2798.28,477.45691999999991,"No cumple",null,0,null,"Desfavorable",null,"Cumple","Cumple"]
[79,"200109","PIURA","PIURA","LA ARENA","MUNICIPALIDAD DISTRITAL DE LA ARENA","Simplificado",null,"No aplica","No aplica","No aplica",null,"No aplica","No aplica","No aplica",null,"No aplica","No aplica","No aplica",null,"No aplica","No aplica","No aplica",null,"No aplica","No aplica","No aplica",null,"No aplica","No aplica","No aplica",null,11.45,5.1498902760093044,"Cumple",null,550,2587.1312499999981,"Cumple",null,100,null,"Favorable",null,"Cumple","Cumple"]
[80,"200602","PIURA","SULLANA","BELLAVISTA","MUNICIPALIDAD DISTRITAL DE BELLAVISTA","Simplificado",null,"No aplica","No aplica","No aplica",null,"No aplica","No aplica","No aplica",null,"No aplica","No aplica","No aplica",null,"No aplica","No aplica","No aplica",null,"No aplica","No aplica","No aplica",null,"No aplica","No aplica","No aplica",null,249.32,265.34633072100371,"No cumple",null,3580.25,967.45402000000422,"No cumple",null,0,null,"Desfavorable",null,"No Cumple","Cumple"]
[81,"210901","PUNO","MOHO","MOHO","MUNICIPALIDAD PROVINCIAL DE MOHO","Simplificado",null,"No aplica","No aplica","No aplica",null,"No aplica","No aplica","No aplica",null,"No aplica","No aplica","No aplica",null,"No aplica","No aplica","No aplica",null,"No aplica","No aplica","No aplica",null,"No aplica","No aplica","No aplica",null,30,66.656808162436306,"No cumple",null,1064,5845.8576499999999,"Cumple",null,50,null,"Desfavorable",null,"Cumple","Cumple"]
[82,"220602","SAN MARTIN","MARISCAL CACERES","CAMPANILLA","MUNICIPALIDAD DISTRITAL DE CAMPANILLA","Simplificado",null,"No aplica","No aplica","No aplica",null,"No aplica","No aplica","No aplica",null,"No aplica","No aplica","No aplica",null,"No aplica","No aplica","No aplica",null,"No aplica","No aplica","No aplica",null,"No aplica","No aplica","No aplica",null,9.6999999999999993,138.77302735852703,"No cumple",null,0,891.2713500000001,"Cumple",null,50,null,"Desfavorable",null,"No Cumple","Cumple"]
[83,"220701","SAN MARTIN","PICOTA","PICOTA","MUNICIPALIDAD PROVINCIAL DE PICOTA","Simplificado",null,"No aplica","No aplica","No aplica",null,"No aplica","No aplica","No aplica",null,"No aplica","No aplica","No aplica",null,"No aplica","No aplica","No aplica",null,"No aplica","No aplica","No aplica",null,"No aplica","No aplica","No aplica",null,22.88,19.495225494828787,"Cumple",null,650,704.57007000000124,"Cumple",null,100,null,{"$f":"IF(AO133>=80,\"Favorable\",\"Desfavorable\")","v":"Favorable"},null,"Cumple","Cumple"]
[84,"220808","SAN MARTIN","RIOJA","YORONGOS","MUNICIPALIDAD DISTRITAL DE YORONGOS","Simplificado",null,"No aplica","No aplica","No aplica",null,"No aplica","No aplica","No aplica",null,"No aplica","No aplica","No aplica",null,"No aplica","No aplica","No aplica",null,"No aplica","No aplica","No aplica",null,"No aplica","No aplica","No aplica",null,100,41.192265671390956,"Cumple",null,100,471.57015999999993,"Cumple",null,100,null,"Favorable",null,"Cumple","Cumple"]
[85,"230108","TACNA","TACNA","POCOLLAY","MUNICIPALIDAD DISTRITAL DE POCOLLAY","Simplificado",null,"No aplica","No aplica","No aplica",null,"No aplica","No aplica","No aplica",null,"No aplica","No aplica","No aplica",null,"No aplica","No aplica","No aplica",null,"No aplica","No aplica","No aplica",null,"No aplica","No aplica","No aplica",null,100,87.19355077183819,"Cumple",null,0,5846.1644599999991,"Cumple",null,100,null,"Favorable",null,"Cumple","Cumple"]
[86,"230203","TACNA","CANDARAVE","CAMILACA","MUNICIPALIDAD DISTRITAL DE CAMILACA","Simplificado",null,"No aplica","No aplica","No aplica",null,"No aplica","No aplica","No aplica",null,"No aplica","No aplica","No aplica",null,"No aplica","No aplica","No aplica",null,"No aplica","No aplica","No aplica",null,"No aplica","No aplica","No aplica",null,135.99,91.906670128441718,"Cumple",null,0,8236.4915400000009,"Cumple",null,100,null,"Favorable",null,"Cumple","Cumple"]
[87,"230206","TACNA","CANDARAVE","QUILAHUANI","MUNICIPALIDAD DISTRITAL DE QUILAHUANI","Simplificado",null,"No aplica","No aplica","No aplica",null,"No aplica","No aplica","No aplica",null,"No aplica","No aplica","No aplica",null,"No aplica","No aplica","No aplica",null,"No aplica","No aplica","No aplica",null,"No aplica","No aplica","No aplica",null,185.95,135.78817780293767,"Cumple",null,200,2768.0077699999997,"Cumple",null,100,null,"Favorable",null,"No Cumple","Cumple"]
[88,"250301","UCAYALI","PADRE ABAD","PADRE ABAD","MUNICIPALIDAD PROVINCIAL DE PADRE ABAD - AGUAITIA","Simplificado",null,"No aplica","No aplica","No aplica",null,"No aplica","No aplica","No aplica",null,"No aplica","No aplica","No aplica",null,"No aplica","No aplica","No aplica",null,"No aplica","No aplica","No aplica",null,"No aplica","No aplica","No aplica",null,85,124.54776867110444,"No cumple",null,9160,2651.6431700000057,"No cumple",null,0,null,"Desfavorable",null,"No Cumple","Cumple"]
[1,"060403","CAJAMARCA","CHOTA","CHADIN","MUNICIPALIDAD DISTRITAL DE CHADIN","Simplificado",null,"No aplica","No aplica","No aplica",null,"No aplica","No aplica","No aplica",null,"No aplica","No aplica","No aplica",null,"No aplica","No aplica","No aplica",null,"No aplica","No aplica","No aplica",null,"No aplica","No aplica","No aplica",null,"No aplica","No aplica","No aplica",null,"No aplica","No aplica","No aplica",null,"No aplica",null,"Omiso",null,"No Cumple","Cumple"]
[2,"060413","CAJAMARCA","CHOTA","PACCHA","MUNICIPALIDAD DISTRITAL DE PACCHA","Simplificado",null,"No aplica","No aplica","No aplica",null,"No aplica","No aplica","No aplica",null,"No aplica","No aplica","No aplica",null,"No aplica","No aplica","No aplica",null,"No aplica","No aplica","No aplica",null,"No aplica","No aplica","No aplica",null,"No aplica","No aplica","No aplica",null,"No aplica","No aplica","No aplica",null,"No aplica",null,"Omiso",null,"No Cumple","Cumple"]
[3,"100301","HUANUCO","DOS DE MAYO","LA UNIÓN","MUNICIPALIDAD PROVINCIAL DE DOS DE MAYO","Simplificado",null,"No aplica","No aplica","No aplica",null,"No aplica","No aplica","No aplica",null,"No aplica","No aplica","No aplica",null,"No aplica","No aplica","No aplica",null,"No aplica","No aplica","No aplica",null,"No aplica","No aplica","No aplica",null,"No aplica","No aplica","No aplica",null,"No aplica","No aplica","No aplica",null,"No aplica",null,"Omiso",null,"No Cumple","Cumple"]
[4,"120108","JUNIN","HUANCAYO","CHONGOS ALTO","MUNICIPALIDAD DISTRITAL DE CHONGOS ALTO","Simplificado",null,"No aplica","No aplica","No aplica",null,"No aplica","No aplica","No aplica",null,"No aplica","No aplica","No aplica",null,"No aplica","No aplica","No aplica",null,"No aplica","No aplica","No aplica",null,"No aplica","No aplica","No aplica",null,"No aplica","No aplica","No aplica",null,"No aplica","No aplica","No aplica",null,"No aplica",null,"Omiso",null,"No Cumple","Cumple"]
[5,"120205","JUNIN","CONCEPCION","COCHAS","MUNICIPALIDAD DISTRITAL DE COCHAS","Simplificado",null,"No aplica","No aplica","No aplica",null,"No aplica","No aplica","No aplica",null,"No aplica","No aplica","No aplica",null,"No aplica","No aplica","No aplica",null,"No aplica","No aplica","No aplica",null,"No aplica","No aplica","No aplica",null,"No aplica","No aplica","No aplica",null,"No aplica","No aplica","No aplica",null,"No aplica",null,"Omiso",null,"Cumple","Cumple"]
[6,"200804","PIURA","SECHURA","CRISTO NOS VALGA","MUNICIPALIDAD DISTRITAL DE CRISTO NOS VALGA","Simplificado",null,"No aplica","No aplica","No aplica",null,"No aplica","No aplica","No aplica",null,"No aplica","No aplica","No aplica",null,"No aplica","No aplica","No aplica",null,"No aplica","No aplica","No aplica",null,"No aplica","No aplica","No aplica",null,"No aplica","No aplica","No aplica",null,"No aplica","No aplica","No aplica",null,"No aplica",null,"Omiso",null,"Cumple","Cumple"]
[7,"190302","PASCO","OXAPAMPA","CHONTABAMBA","MUNICIPALIDAD DISTRITAL DE CHONTABAMBA","Simplificado",null,"No aplica","No aplica","No aplica",null,"No aplica","No aplica","No aplica",null,"No aplica","No aplica","No aplica",null,"No aplica","No aplica","No aplica",null,"No aplica","No aplica","No aplica",null,"No aplica","No aplica","No aplica",null,"No aplica","No aplica","No aplica",null,"No aplica","No aplica","No aplica",null,"No aplica",null,"Omiso",null,"Cumple","Cumple"]
["1/ Variación porcentual de los ingresos de recaudación propia del año 2019 respecto al año 2018."]
["2/ Porcentaje de ingresos por arbitrios de limpieza, parques y jardines y serenazgo que financia el gasto en los mismos rubros del año 2019."]
["3/ Relación entre el gasto a nivel devengado de personal CAS  (incluido todos sus beneficios sociales) sumado el gasto en servicios profesionales y técnicos, respecto al ingreso corriente excluyendo las transferencias de canon, sobrecanon y regalías del año 2019."]
["4/ Variación porcentual del saldo de pasivos corrientes del año 2019 respecto al año 2018"]
["5/ Cumplimiento de 2 acciones: evaluación y corrección de errores de registro de pasivos"]
["6/ Cumplimiento al menos 3 acciones cada año para fortalecer su gestión institucional."]
["7/ Valor obtenido del cálculo de Regla Fiscal del Saldo de Deuda Total (RFSDT) año 2019."]
["8/ Valor obtenido del cálculo de la Regla Fiscal de Ahorro en Cuenta Corriente (RFACC) año 2019"]
["9/ Número de compromisos fiscales cumplidos entre el número total de compromisos fiscales a los que la entidad está obligada a cumplir dependiendo de si aplica el CAF completo o simplificado."]
["10/ Cumplimiento de la Regla Fiscal de Saldo de Deuda Total año 2019."]
["11/ Cumplimiento de la Regla Fiscal de Ahorro en Cuenta Corriente año 2019."]
["Fuente: MEF- SICON, Aplicativo Web: https://apps4.mineco.gob.pe/simgf/#."]

{"sheet":"LISTA","index":8,"n_rows":144,"n_cols":31,"rows_kept":144,"cut":false,"hidden":true,"merged":[[0,18,0,20],[0,21,0,23],[0,24,0,26],[0,3,0,5],[0,6,0,8],[0,9,0,11],[0,12,0,14],[0,15,0,17]]}
[null,null,null,"CF 1",null,null,"CF 2",null,null,"CF 3",null,null,"CF 4",null,null,"CF 5",null,null,"CF 6",null,null,"CF 7",null,null,"CF 8"]
["ENTIDAD","codi_niv","Tipo de CAF","Meta","Resultado","Cumplimiento","Meta","Resultado","Cumplimiento","Meta","Resultado","Cumplimiento","Meta","Resultado","Cumplimiento","Meta","Resultado","Cumplimiento","Meta","Resultado","Cumplimiento","Meta","Resultado","Cumplimiento","Meta","Resultado","Cumplimiento","Logro","Evaluación","Regla Fiscal\nSDT","Regla Fiscal\nACC"]
["010112 : MUNICIPALIDAD DISTRITAL DE MAGDALENA","0101030101","CAF SIMPLIFICADO",null,null,null,null,null,null,null,null,null,null,null,null,null,null,null,null,null,null,100,3.0146864033480174,"Cumple",0,192.0803500000001,"Cumple",{"$f":"COUNTIF(D3:AA3,\"Cumple\")/2*100","v":100},{"$f":"IF(AB3>=80,\"Favorable\",\"Desfavorable\")","v":"Favorable"},"Cumple","Cumple"]
["010120 : MUNICIPALIDAD DISTRITAL DE SOLOCO","0101030101","CAF SIMPLIFICADO",null,null,null,null,null,null,null,null,null,null,null,null,null,null,null,null,null,null,100,99.346668927204973,"Cumple",0,952.7661599999999,"Cumple",100,"Favorable","Cumple","Cumple"]
["010302 : MUNICIPALIDAD DISTRITAL DE CHISQUILLA","0101030101","CAF SIMPLIFICADO",null,null,null,null,null,null,null,null,null,null,null,null,null,null,null,null,null,null,1.1000000000000001,3.0454114835125123,"No cumple",523.74,104.45427000000008,"No cumple",0,"Desfavorable","Cumple","Cumple"]
["010503 : MUNICIPALIDAD DISTRITAL DE COCABAMBA","0101030101","CAF SIMPLIFICADO",null,null,null,null,null,null,null,null,null,null,null,null,null,null,null,null,null,null,100,175.33526634154569,"No cumple",0,451.87850999999989,"Cumple",50,"Desfavorable","No Cumple","Cumple"]
["010504 : MUNICIPALIDAD DISTRITAL DE COLCAMAR","0101030101","CAF SIMPLIFICADO",null,null,null,null,null,null,null,null,null,null,null,null,null,null,null,null,null,null,97,4.1727514858959269,"Cumple",289,186.49939000000001,"No cumple",50,"Desfavorable","Cumple","Cumple"]
["010522 : MUNICIPALIDAD DISTRITAL DE TINGO","0101030101","CAF SIMPLIFICADO",null,null,null,null,null,null,null,null,null,null,null,null,null,null,null,null,null,null,45,12.93167658245846,"Cumple",0,156.13718999999995,"Cumple",100,"Favorable","Cumple","Cumple"]
["010602 : MUNICIPALIDAD DISTRITAL DE CHIRIMOTO","0101030101","CAF SIMPLIFICADO",null,null,null,null,null,null,null,null,null,null,null,null,null,null,null,null,null,null,100,4.254473047263625,"Cumple",0,221.08784000000009,"Cumple",100,"Favorable","Cumple","Cumple"]
["010605 : MUNICIPALIDAD DISTRITAL DE LIMABAMBA","0101030101","CAF SIMPLIFICADO",null,null,null,null,null,null,null,null,null,null,null,null,null,null,null,null,null,null,100,240.10314301478729,"No cumple",0,354.67172999999985,"Cumple",50,"Desfavorable","No Cumple","Cumple"]
["010606 : MUNICIPALIDAD DISTRITAL DE LONGAR","0101030101","CAF SIMPLIFICADO",null,null,null,null,null,null,null,null,null,null,null,null,null,null,null,null,null,null,100,31.563259272059401,"Cumple",-80,145.53233999999992,"Cumple",100,"Favorable","Cumple","Cumple"]
["020513 : MUNICIPALIDAD DISTRITAL DE PACLLON","0101030101","CAF SIMPLIFICADO",null,null,null,null,null,null,null,null,null,null,null,null,null,null,null,null,null,null,98.4,39.662974773414604,"Cumple",5700,2096.0327399999992,"No cumple",50,"Desfavorable","Cumple","Cumple"]
["020515 : MUNICIPALIDAD DISTRITAL DE TICLLOS","0101030101","CAF SIMPLIFICADO",null,null,null,null,null,null,null,null,null,null,null,null,null,null,null,null,null,null,98,55.991764155286475,"Cumple",0,1061.9302199999995,"Cumple",100,"Favorable","Cumple","Cumple"]
["020610 : MUNICIPALIDAD DISTRITAL DE TINCO","0101030101","CAF SIMPLIFICADO",null,null,null,null,null,null,null,null,null,null,null,null,null,null,null,null,null,null,100,0.54884281219761988,"Cumple",358.5,1189.0473899999997,"Cumple",100,"Favorable","Cumple","Cumple"]
["021101 : MUNICIPALIDAD PROVINCIAL DE HUARMEY","0101030101","CAF SIMPLIFICADO",null,null,null,null,null,null,null,null,null,null,null,null,null,null,null,null,null,null,63.5,69.301084392379295,"No cumple",0,11321.061750000003,"Cumple",50,"Desfavorable","Cumple","Cumple"]
["021506 : MUNICIPALIDAD DISTRITAL DE LACABAMBA","0101030101","CAF SIMPLIFICADO",null,null,null,null,null,null,null,null,null,null,null,null,null,null,null,null,null,null,100,89.614439412299106,"Cumple",0,420.72661999999985,"Cumple",100,"Favorable","Cumple","Cumple"]
["021508 : MUNICIPALIDAD DISTRITAL DE PALLASCA","0101030101","CAF SIMPLIFICADO",null,null,null,null,null,null,null,null,null,null,null,null,null,null,null,null,null,null,100,1.515068408287285,"Cumple",520,2212.0887699999994,"Cumple",100,"Favorable","Cumple","Cumple"]
["021803 : MUNICIPALIDAD DISTRITAL DE COISHCO","0101030101","CAF SIMPLIFICADO",null,null,null,null,null,null,null,null,null,null,null,null,null,null,null,null,null,null,125,79.852224920568872,"Cumple",0,5078.2442600000031,"Cumple",100,"Favorable","Cumple","Cumple"]
["021902 : MUNICIPALIDAD DISTRITAL DE ACOBAMBA","0101030101","CAF SIMPLIFICADO",null,null,null,null,null,null,null,null,null,null,null,null,null,null,null,null,null,null,30,11.766067634049655,"Cumple",6641.08,1655.9454099999998,"No cumple",50,"Desfavorable","Cumple","Cumple"]
["030101 : MUNICIPALIDAD PROVINCIAL DE ABANCAY","0101030101","CAF COMPLETO",5.3,6.2092506552785149,{"$f":"IF(E20>D20,\"Cumple\",\"No cumple\")","v":"Cumple"},25,38.962265388498579,{"$f":"IF(H20>=G20,\"Cumple\",\"No cumple\")","v":"Cumple"},22.4,26.003844608128261,{"$f":"IF(K20<=J20,\"Cumple\",\"No cumple\")","v":"No cumple"},-99.2,9.6506214343159744,{"$f":"IF(N20<=M20,\"Cumple\",\"No cumple\")","v":"No cumple"},2,1,{"$f":"IF(Q20>=2,\"Cumple\",\"No cumple\")","v":"No cumple"},4,1,{"$f":"IF($T20>=3,\"Cumple\",\"No cumple\")","v":"No cumple"},null,null,null,null,null,null,{"$f":"COUNTIF(D20:AA20,\"Cumple\")/6*100","v":33.333333333333329},"Desfavorable","No Cumple","Cumple"]
["030106 : MUNICIPALIDAD DISTRITAL DE LAMBRAMA","0101030101","CAF SIMPLIFICADO",null,null,null,null,null,null,null,null,null,null,null,null,null,null,null,null,null,null,35,31.214256253825432,"Cumple",506,2638.3582800000004,"Cumple",{"$f":"COUNTIF(D21:AA21,\"Cumple\")/2*100","v":100},"Favorable","Cumple","Cumple"]
["030201 : MUNICIPALIDAD PROVINCIAL DE ANDAHUAYLAS","0101030101","CAF COMPLETO",24.8,29.5210253672407,{"$f":"IF(E22>D22,\"Cumple\",\"No cumple\")","v":"Cumple"},14,5.2539086621864,{"$f":"IF(H22>=G22,\"Cumple\",\"No cumple\")","v":"No cumple"},31.7,30.436877572341821,{"$f":"IF(K22<=J22,\"Cumple\",\"No cumple\")","v":"Cumple"},-90.9,-19.236230662918778,{"$f":"IF(N22<=M22,\"Cumple\",\"No cumple\")","v":"No cumple"},2,1,{"$f":"IF(Q22>=2,\"Cumple\",\"No cumple\")","v":"No cumple"},5,0,{"$f":"IF($T22>=3,\"Cumple\",\"No cumple\")","v":"No cumple"},null,null,null,null,null,null,{"$f":"COUNTIF(D22:AA22,\"Cumple\")/6*100","v":33.333333333333329},"Desfavorable","No Cumple","Cumple"]
["030402 : MUNICIPALIDAD DISTRITAL DE CAPAYA","0101030101","CAF SIMPLIFICADO",null,null,null,null,null,null,null,null,null,null,null,null,null,null,null,null,null,null,90,7.2759185751639226,"Cumple",7457.48,353.48251999999991,"No cumple",{"$f":"COUNTIF(D23:AA23,\"Cumple\")/2*100","v":50},"Desfavorable","Cumple","Cumple"]
["030409 : MUNICIPALIDAD DISTRITAL DE LUCRE","0101030101","CAF SIMPLIFICADO",null,null,null,null,null,null,null,null,null,null,null,null,null,null,null,null,null,null,7,8.6884130393032581,"No cumple",995,877.30520000000001,"No cumple",{"$f":"COUNTIF(D24:AA24,\"Cumple\")/2*100","v":0},"Desfavorable","Cumple","Cumple"]
["030413 : MUNICIPALIDAD DISTRITAL DE SORAYA","0101030101","CAF SIMPLIFICADO",null,null,null,null,null,null,null,null,null,null,null,null,null,null,null,null,null,null,48,69.785989967366092,"No cumple",0,304.11965000000004,"Cumple",{"$f":"COUNTIF(D25:AA25,\"Cumple\")/2*100","v":50},"Desfavorable","Cumple","Cumple"]
["030501 : MUNICIPALIDAD PROVINCIAL DE COTABAMBAS - TAMBOBAMBA","0101030101","CAF COMPLETO",3.3,54.225634601495727,{"$f":"IF(E26>D26,\"Cumple\",\"No cumple\")","v":"Cumple"},0,0,{"$f":"IF(H26>=G26,\"Cumple\",\"No cumple\")","v":"Cumple"},20.2,25.036257029824277,{"$f":"IF(K26<=J26,\"Cumple\",\"No cumple\")","v":"No cumple"},-75,-78.298700729814769,{"$f":"IF(N26<=M26,\"Cumple\",\"No cumple\")","v":"Cumple"},2,2,{"$f":"IF(Q26>=2,\"Cumple\",\"No cumple\")","v":"Cumple"},7,6,{"$f":"IF($T26>=3,\"Cumple\",\"No cumple\")","v":"Cumple"},null,null,null,null,null,null,{"$f":"COUNTIF(D26:AA26,\"Cumple\")/6*100","v":83.333333333333343},"Favorable","No Cumple","Cumple"]
["030502 : MUNICIPALIDAD DISTRITAL DE COTABAMBAS","0101030101","CAF SIMPLIFICADO",null,null,null,null,null,null,null,null,null,null,null,null,null,null,null,null,null,null,442.01,310.99114824506165,"Cumple",1500,3125.1786799999995,"Cumple",{"$f":"COUNTIF(D27:AA27,\"Cumple\")/2*100","v":100},"Favorable","No Cumple","Cumple"]
["030503 : MUNICIPALIDAD DISTRITAL DE COYLLURQUI","0101030101","CAF COMPLETO",23,-74.551533707262649,{"$f":"IF(E28>D28,\"Cumple\",\"No cumple\")","v":"No cumple"},0,0,{"$f":"IF(H28>=G28,\"Cumple\",\"No cumple\")","v":"Cumple"},13.49,34.91734344060194,{"$f":"IF(K28<=J28,\"Cumple\",\"No cumple\")","v":"No cumple"},-35,-45.125347683632199,{"$f":"IF(N28<=M28,\"Cumple\",\"No cumple\")","v":"Cumple"},2,2,{"$f":"IF(Q28>=2,\"Cumple\",\"No cumple\")","v":"Cumple"},3,2,{"$f":"IF($T28>=3,\"Cumple\",\"No cumple\")","v":"No cumple"},null,null,null,null,null,null,{"$f":"COUNTIF(D28:AA28,\"Cumple\")/6*100","v":50},"Desfavorable","No Cumple","Cumple"]
["030601 : MUNICIPALIDAD PROVINCIAL DE CHINCHEROS","0101030101","CAF SIMPLIFICADO",null,null,null,null,null,null,null,null,null,null,null,null,null,null,null,null,null,null,192.72,388.00427697914984,"No cumple",250,2177.7511899999977,"Cumple",{"$f":"COUNTIF(D29:AA29,\"Cumple\")/2*100","v":50},"Desfavorable","No Cumple","Cumple"]
["030701 : MUNICIPALIDAD PROVINCIAL DE GRAU","0101030101","CAF SIMPLIFICADO",null,null,null,null,null,null,null,null,null,null,null,null,null,null,null,null,null,null,967,935.97418783331113,"Cumple",3331.74,2311.6625500000009,"No cumple",{"$f":"COUNTIF(D30:AA30,\"Cumple\")/2*100","v":50},"Desfavorable","No Cumple","Cumple"]
["030708 : MUNICIPALIDAD DISTRITAL DE PROGRESO","0101030101","CAF SIMPLIFICADO",null,null,null,null,null,null,null,null,null,null,null,null,null,null,null,null,null,null,1004,1247.552756645968,"No cumple",2000,1920.7811200000006,"No cumple",{"$f":"COUNTIF(D31:AA31,\"Cumple\")/2*100","v":0},"Desfavorable","No Cumple","Cumple"]
["040405 : MUNICIPALIDAD DISTRITAL DE CHILCAYMARCA","0101030101","CAF SIMPLIFICADO",null,null,null,null,null,null,null,null,null,null,null,null,null,null,null,null,null,null,5.0999999999999996,61.394845835168908,"No cumple",500,1377.9377700000002,"Cumple",{"$f":"COUNTIF(D32:AA32,\"Cumple\")/2*100","v":50},"Desfavorable","Cumple","Cumple"]
["040701 : MUNICIPALIDAD PROVINCIAL DE ISLAY - MOLLENDO","0101030101","CAF COMPLETO",5,9.1315915702500572,{"$f":"IF(E33>D33,\"Cumple\",\"No cumple\")","v":"Cumple"},10,12.739059187225015,{"$f":"IF(H33>=G33,\"Cumple\",\"No cumple\")","v":"Cumple"},17,22.593138902828166,{"$f":"IF(K33<=J33,\"Cumple\",\"No cumple\")","v":"No cumple"},-5,23.580344430280036,{"$f":"IF(N33<=M33,\"Cumple\",\"No cumple\")","v":"No cumple"},2,0,{"$f":"IF(Q33>=2,\"Cumple\",\"No cumple\")","v":"No cumple"},4,0,{"$f":"IF($T33>=3,\"Cumple\",\"No cumple\")","v":"No cumple"},null,null,null,null,null,null,{"$f":"COUNTIF(D33:AA33,\"Cumple\")/6*100","v":33.333333333333329},"Desfavorable","No Cumple","Cumple"]
["040802 : MUNICIPALIDAD DISTRITAL DE ALCA","0101030101","CAF SIMPLIFICADO",null,null,null,null,null,null,null,null,null,null,null,null,null,null,null,null,null,null,80,2.77968126373153,"Cumple",1000,1220.6578499999996,"Cumple",{"$f":"COUNTIF(D34:AA34,\"Cumple\")/2*100","v":100},"Favorable","Cumple","Cumple"]
["050104 : MUNICIPALIDAD DISTRITAL DE CARMEN ALTO","0101030101","CAF SIMPLIFICADO",null,null,null,null,null,null,null,null,null,null,null,null,null,null,null,null,null,null,4.1100000000000003,7.5211102068913727,"No cumple",1345.2,1196.2771599999987,"No cumple",0,"Desfavorable","Cumple","Cumple"]
["050106 : MUNICIPALIDAD DISTRITAL DE OCROS","0101030101","CAF SIMPLIFICADO",null,null,null,null,null,null,null,null,null,null,null,null,null,null,null,null,null,null,351.01,52.037852796984971,"Cumple",1078.7,620.58565000000033,"No cumple",50,"Desfavorable","Cumple","Cumple"]
["050201 : MUNICIPALIDAD PROVINCIAL DE CANGALLO","0101030101","CAF SIMPLIFICADO",null,null,null,null,null,null,null,null,null,null,null,null,null,null,null,null,null,null,249.36,21.871554347748333,"Cumple",644.95000000000005,1656.9572699999997,"Cumple",100,"Favorable","Cumple","Cumple"]
["050304 : MUNICIPALIDAD DISTRITAL DE SANTIAGO DE LUCANAMARCA","0101030101","CAF SIMPLIFICADO",null,null,null,null,null,null,null,null,null,null,null,null,null,null,null,null,null,null,258.67,14.574398529304542,"Cumple",597.44000000000005,732.59841999999992,"Cumple",100,"Favorable","Cumple","Cumple"]
["050405 : MUNICIPALIDAD DISTRITAL DE LURICOCHA","0101030101","CAF SIMPLIFICADO",null,null,null,null,null,null,null,null,null,null,null,null,null,null,null,null,null,null,100,221.52282283685651,"No cumple",0,1612.6960900000006,"Cumple",50,"Desfavorable","No Cumple","Cumple"]
["050503 : MUNICIPALIDAD DISTRITAL DE AYNA","0101030101","CAF SIMPLIFICADO",null,null,null,null,null,null,null,null,null,null,null,null,null,null,null,null,null,null,89.5,130.80767597893185,"No cumple",879.29,1435.56367,"Cumple",50,"Desfavorable","No Cumple","Cumple"]
["050707 : MUNICIPALIDAD DISTRITAL DE SAN FRANCISCO DE RAVACAYCO","0101030101","CAF SIMPLIFICADO",null,null,null,null,null,null,null,null,null,null,null,null,null,null,null,null,null,null,100,1.32689845281703,"Cumple",500,541.61633999999981,"Cumple",100,"Favorable","Cumple","Cumple"]
["051001 : MUNICIPALIDAD PROVINCIAL DE VICTOR FAJARDO","0101030101","CAF SIMPLIFICADO",null,null,null,null,null,null,null,null,null,null,null,null,null,null,null,null,null,null,144.99,129.11751716465506,"Cumple",2894.5,2992.4761799999978,"Cumple",100,"Favorable","No Cumple","Cumple"]
["051108 : MUNICIPALIDAD DISTRITAL DE VISCHONGO","0101030101","CAF SIMPLIFICADO",null,null,null,null,null,null,null,null,null,null,null,null,null,null,null,null,null,null,236,266.26376529457832,"No cumple",-456.44,923.66617999999971,"Cumple",50,"Desfavorable","No Cumple","Cumple"]
["060112 : MUNICIPALIDAD DISTRITAL DE SAN JUAN","0101030101","CAF SIMPLIFICADO",null,null,null,null,null,null,null,null,null,null,null,null,null,null,null,null,null,null,1.26,119.31697609610652,"No cumple",429.83,553.36086999999986,"Cumple",50,"Desfavorable","No Cumple","Cumple"]
["060402 : MUNICIPALIDAD DISTRITAL DE ANGUIA","0101030101","CAF SIMPLIFICADO",null,null,null,null,null,null,null,null,null,null,null,null,null,null,null,null,null,null,850,14.773708005596514,"Cumple",0,617.8473899999999,"Cumple",100,"Favorable","Cumple","Cumple"]
["060403 : MUNICIPALIDAD DISTRITAL DE CHADIN","0101030101","CAF SIMPLIFICADO",null,null,null,null,null,null,null,null,null,null,null,null,null,null,null,null,null,null,null,null,"Omiso",null,null,"Omiso",null,"Omiso","No Cumple","Cumple"]
["060406 : MUNICIPALIDAD DISTRITAL DE CHOROPAMPA","0101030101","CAF SIMPLIFICADO",null,null,null,null,null,null,null,null,null,null,null,null,null,null,null,null,null,null,12.9,77.668059366034498,"No cumple",180,713.18952999999976,"Cumple",{"$f":"COUNTIF(D47:AA47,\"Cumple\")/2*100","v":50},{"$f":"IF(AB47>=80,\"Favorable\",\"Desfavorable\")","v":"Desfavorable"},"Cumple","Cumple"]
["060413 : MUNICIPALIDAD DISTRITAL DE PACCHA","0101030101","CAF SIMPLIFICADO",null,null,null,null,null,null,null,null,null,null,null,null,null,null,null,null,null,null,null,null,"Omiso",null,null,"Omiso",null,"Omiso","No Cumple","Cumple"]
["060414 : MUNICIPALIDAD DISTRITAL DE PION","0101030101","CAF SIMPLIFICADO",null,null,null,null,null,null,null,null,null,null,null,null,null,null,null,null,null,null,100,158.32651606571113,"No cumple",35.36,112.42342000000004,"Cumple",{"$f":"COUNTIF(D49:AA49,\"Cumple\")/2*100","v":50},{"$f":"IF(AB49>=80,\"Favorable\",\"Desfavorable\")","v":"Desfavorable"},"No Cumple","Cumple"]
["061310 : MUNICIPALIDAD DISTRITAL DE UTICYACU","0101030101","CAF SIMPLIFICADO",null,null,null,null,null,null,null,null,null,null,null,null,null,null,null,null,null,null,150,112.33982459367458,"Cumple",200,118.27348000000009,"No cumple",{"$f":"COUNTIF(D50:AA50,\"Cumple\")/2*100","v":50},"Desfavorable","No Cumple","Cumple"]
["070101 : MUNICIPALIDAD PROVINCIAL DEL CALLAO","0101030101","CAF COMPLETO",24.2,-12.043647522178384,{"$f":"IF(E51>D51,\"Cumple\",\"No cumple\")","v":"No cumple"},51,51.177291198510801,{"$f":"IF(H51>=G51,\"Cumple\",\"No cumple\")","v":"Cumple"},16.899999999999999,51.269301214103258,{"$f":"IF(K51<=J51,\"Cumple\",\"No cumple\")","v":"No cumple"},-9.6999999999999993,99.004117220703819,{"$f":"IF(N51<=M51,\"Cumple\",\"No cumple\")","v":"No cumple"},2,2,{"$f":"IF(Q51>=2,\"Cumple\",\"No cumple\")","v":"Cumple"},3,3,{"$f":"IF($T51>=3,\"Cumple\",\"No cumple\")","v":"Cumple"},null,null,null,null,null,null,{"$f":"COUNTIF(D51:AA51,\"Cumple\")/6*100","v":50},"Desfavorable","No Cumple","Cumple"]
["070102 : MUNICIPALIDAD DISTRITAL DE BELLAVISTA","0101030101","CAF COMPLETO",28.1,82.063830280760641,{"$f":"IF(E52>D52,\"Cumple\",\"No cumple\")","v":"Cumple"},48,46.683439740288229,{"$f":"IF(H52>=G52,\"Cumple\",\"No cumple\")","v":"No cumple"},43.5,47.916074062687571,{"$f":"IF(K52<=J52,\"Cumple\",\"No cumple\")","v":"No cumple"},-37.799999999999997,-33.234598617057799,{"$f":"IF(N52<=M52,\"Cumple\",\"No cumple\")","v":"No cumple"},2,1,{"$f":"IF(Q52>=2,\"Cumple\",\"No cumple\")","v":"No cumple"},4,4,{"$f":"IF($T52>=3,\"Cumple\",\"No cumple\")","v":"Cumple"},null,null,null,null,null,null,{"$f":"COUNTIF(D52:AA52,\"Cumple\")/6*100","v":33.333333333333329},"Desfavorable","No Cumple","Cumple"]
["070103 : MUNICIPALIDAD DISTRITAL DE CARMEN DE LA LEGUA REYNOSO","0101030101","CAF COMPLETO",2.9,11.06001804934723,{"$f":"IF(E53>D53,\"Cumple\",\"No cumple\")","v":"Cumple"},31.74,31.029167655739435,{"$f":"IF(H53>=G53,\"Cumple\",\"No cumple\")","v":"No cumple"},29.5,44.536376184584341,{"$f":"IF(K53<=J53,\"Cumple\",\"No cumple\")","v":"No cumple"},-5.3,4.2958058208137739,{"$f":"IF(N53<=M53,\"Cumple\",\"No cumple\")","v":"No cumple"},2,2,{"$f":"IF(Q53>=2,\"Cumple\",\"No cumple\")","v":"Cumple"},3,0,{"$f":"IF($T53>=3,\"Cumple\",\"No cumple\")","v":"No cumple"},null,null,null,null,null,null,{"$f":"COUNTIF(D53:AA53,\"Cumple\")/6*100","v":33.333333333333329},"Desfavorable","No Cumple","Cumple"]
["081102 : MUNICIPALIDAD DISTRITAL DE CAICAY","0101030101","CAF SIMPLIFICADO",null,null,null,null,null,null,null,null,null,null,null,null,null,null,null,null,null,null,0.95,0.9184734475826819,"Cumple",0,1797.7465799999995,"Cumple",{"$f":"COUNTIF(D54:AA54,\"Cumple\")/2*100","v":100},"Favorable","Cumple","Cumple"]
["090202 : MUNICIPALIDAD DISTRITAL DE ANDABAMBA","0101030101","CAF SIMPLIFICADO",null,null,null,null,null,null,null,null,null,null,null,null,null,null,null,null,null,null,99,164.93162431611674,"No cumple",1700,1067.1299000000004,"No cumple",{"$f":"COUNTIF(D55:AA55,\"Cumple\")/2*100","v":0},"Desfavorable","No Cumple","Cumple"]
["090204 : MUNICIPALIDAD DISTRITAL DE CAJA","0101030101","CAF SIMPLIFICADO",null,null,null,null,null,null,null,null,null,null,null,null,null,null,null,null,null,null,400,579.75794912755066,"No cumple",1500,434.13120999999973,"No cumple",{"$f":"COUNTIF(D56:AA56,\"Cumple\")/2*100","v":0},"Desfavorable","No Cumple","Cumple"]
["090302 : MUNICIPALIDAD DISTRITAL DE ANCHONGA","0101030101","CAF SIMPLIFICADO",null,null,null,null,null,null,null,null,null,null,null,null,null,null,null,null,null,null,210,224.6736517533804,"No cumple",700,1406.3296700000008,"Cumple",{"$f":"COUNTIF(D57:AA57,\"Cumple\")/2*100","v":50},"Desfavorable","No Cumple","Cumple"]
["090404 : MUNICIPALIDAD DISTRITAL DE CAPILLAS","0101030101","CAF SIMPLIFICADO",null,null,null,null,null,null,null,null,null,null,null,null,null,null,null,null,null,null,100,16.480302213158801,"Cumple",0,384.38535999999988,"Cumple",{"$f":"COUNTIF(D58:AA58,\"Cumple\")/2*100","v":100},"Favorable","Cumple","Cumple"]
["100301 : MUNICIPALIDAD PROVINCIAL DE DOS DE MAYO","0101030101","CAF SIMPLIFICADO",null,null,null,null,null,null,null,null,null,null,null,null,null,null,null,null,null,null,null,null,"Omiso",null,null,"Omiso",null,"Omiso","No Cumple","Cumple"]
["100601 : MUNICIPALIDAD PROVINCIAL DE LEONCIO PRADO - RUPA RUPA","0101030101","CAF COMPLETO",10.4,7.9756242924774527,{"$f":"IF(E60>D60,\"Cumple\",\"No cumple\")","v":"No cumple"},24,26.39208628780332,{"$f":"IF(H60>=G60,\"Cumple\",\"No cumple\")","v":"Cumple"},19.399999999999999,25.341909932831449,{"$f":"IF(K60<=J60,\"Cumple\",\"No cumple\")","v":"No cumple"},-90,-53.692969823447882,{"$f":"IF(N60<=M60,\"Cumple\",\"No cumple\")","v":"No cumple"},2,2,{"$f":"IF(Q60>=2,\"Cumple\",\"No cumple\")","v":"Cumple"},3,3,{"$f":"IF($T60>=3,\"Cumple\",\"No cumple\")","v":"Cumple"},null,null,null,null,null,null,{"$f":"COUNTIF(D60:AA60,\"Cumple\")/6*100","v":50},{"$f":"IF(AB60>=80,\"Favorable\",\"Desfavorable\")","v":"Desfavorable"},"Cumple","Cumple"]
["100608 : MUNICIPALIDAD DISTRITAL DE CASTILLO GRANDE","0101030101","CAF SIMPLIFICADO",null,null,null,null,null,null,null,null,null,null,null,null,null,null,null,null,null,null,0,3.4624447267696352,"No cumple",-120,954.67708999999991,"Cumple",{"$f":"COUNTIF(D61:AA61,\"Cumple\")/2*100","v":50},"Desfavorable","Cumple","Cumple"]
["110101 : MUNICIPALIDAD PROVINCIAL DE ICA","0101030101","CAF COMPLETO",4,5.0425818203256902,{"$f":"IF(E62>D62,\"Cumple\",\"No cumple\")","v":"Cumple"},17.5,13.405377386033326,{"$f":"IF(H62>=G62,\"Cumple\",\"No cumple\")","v":"No cumple"},17,22.580776677753846,{"$f":"IF(K62<=J62,\"Cumple\",\"No cumple\")","v":"No cumple"},166,12.616844864346213,{"$f":"IF(N62<=M62,\"Cumple\",\"No cumple\")","v":"Cumple"},2,0,{"$f":"IF(Q62>=2,\"Cumple\",\"No cumple\")","v":"No cumple"},4,0,{"$f":"IF($T62>=3,\"Cumple\",\"No cumple\")","v":"No cumple"},null,null,null,null,null,null,{"$f":"COUNTIF(D62:AA62,\"Cumple\")/6*100","v":33.333333333333329},"Desfavorable","No Cumple","Cumple"]
["110106 : MUNICIPALIDAD DISTRITAL DE PARCONA","0101030101","CAF COMPLETO",0.3,19.638494993755621,{"$f":"IF(E63>D63,\"Cumple\",\"No cumple\")","v":"Cumple"},15.8,12.47410317675156,{"$f":"IF(H63>=G63,\"Cumple\",\"No cumple\")","v":"No cumple"},23,28.884443196549867,{"$f":"IF(K63<=J63,\"Cumple\",\"No cumple\")","v":"No cumple"},-10.3,561.27602154937915,{"$f":"IF(N63<=M63,\"Cumple\",\"No cumple\")","v":"No cumple"},2,2,{"$f":"IF(Q63>=2,\"Cumple\",\"No cumple\")","v":"Cumple"},4,0,{"$f":"IF($T63>=3,\"Cumple\",\"No cumple\")","v":"No cumple"},null,null,null,null,null,null,{"$f":"COUNTIF(D63:AA63,\"Cumple\")/6*100","v":33.333333333333329},"Desfavorable","No Cumple","Cumple"]
["110211 : MUNICIPALIDAD DISTRITAL DE TAMBO DE MORA","0101030101","CAF SIMPLIFICADO",null,null,null,null,null,null,null,null,null,null,null,null,null,null,null,null,null,null,100,93.286808539019361,"Cumple",0,1152.4828200000002,"Cumple",{"$f":"COUNTIF(D64:AA64,\"Cumple\")/2*100","v":100},"Favorable","Cumple","Cumple"]
["110402 : MUNICIPALIDAD DISTRITAL DE LLIPATA","0101030101","CAF SIMPLIFICADO",null,null,null,null,null,null,null,null,null,null,null,null,null,null,null,null,null,null,110.54,68.500870216901262,"Cumple",0,191.65572999999998,"Cumple",{"$f":"COUNTIF(D65:AA65,\"Cumple\")/2*100","v":100},"Favorable","Cumple","Cumple"]
["110501 : MUNICIPALIDAD PROVINCIAL DE PISCO","0101030101","CAF COMPLETO",4.7,33.764228467648543,{"$f":"IF(E66>D66,\"Cumple\",\"No cumple\")","v":"Cumple"},18,19.940630749821576,{"$f":"IF(H66>=G66,\"Cumple\",\"No cumple\")","v":"Cumple"},20,26.430759021861647,{"$f":"IF(K66<=J66,\"Cumple\",\"No cumple\")","v":"No cumple"},-2.5,4.1120099263157988,{"$f":"IF(N66<=M66,\"Cumple\",\"No cumple\")","v":"No cumple"},2,0,{"$f":"IF(Q66>=2,\"Cumple\",\"No cumple\")","v":"No cumple"},3,1,{"$f":"IF($T66>=3,\"Cumple\",\"No cumple\")","v":"No cumple"},null,null,null,null,null,null,{"$f":"COUNTIF(D66:AA66,\"Cumple\")/6*100","v":33.333333333333329},"Desfavorable","No Cumple","Cumple"]
["110506 : MUNICIPALIDAD DISTRITAL DE SAN ANDRES","0101030101","CAF SIMPLIFICADO",null,null,null,null,null,null,null,null,null,null,null,null,null,null,null,null,null,null,114.94,110.79051795773658,"Cumple",0,1932.3354299999987,"Cumple",{"$f":"COUNTIF(D67:AA67,\"Cumple\")/2*100","v":100},"Favorable","No Cumple","Cumple"]
["120108 : MUNICIPALIDAD DISTRITAL DE CHONGOS ALTO","0101030101","CAF SIMPLIFICADO",null,null,null,null,null,null,null,null,null,null,null,null,null,null,null,null,null,null,null,null,"Omiso",null,null,"Omiso",null,"Omiso","No Cumple","Cumple"]
["120120 : MUNICIPALIDAD DISTRITAL DE HUASICANCHA","0101030101","CAF SIMPLIFICADO",null,null,null,null,null,null,null,null,null,null,null,null,null,null,null,null,null,null,259.17,369.73183543638345,"No cumple",0,185.42752000000002,"Cumple",{"$f":"COUNTIF(D69:AA69,\"Cumple\")/2*100","v":50},{"$f":"IF(AB69>=80,\"Favorable\",\"Desfavorable\")","v":"Desfavorable"},"No Cumple","Cumple"]
["120205 : MUNICIPALIDAD DISTRITAL DE COCHAS","0101030101","CAF SIMPLIFICADO",null,null,null,null,null,null,null,null,null,null,null,null,null,null,null,null,null,null,null,null,"Omiso",null,null,"Omiso",null,"Omiso","Cumple","Cumple"]
["120207 : MUNICIPALIDAD DISTRITAL DE HEROINAS TOLEDO","0101030101","CAF SIMPLIFICADO",null,null,null,null,null,null,null,null,null,null,null,null,null,null,null,null,null,null,100.17,79.673794298130915,"Cumple",0,117.90257000000001,"Cumple",{"$f":"COUNTIF(D71:AA71,\"Cumple\")/2*100","v":100},{"$f":"IF(AB71>=80,\"Favorable\",\"Desfavorable\")","v":"Favorable"},"Cumple","Cumple"]
["120402 : MUNICIPALIDAD DISTRITAL DE ACOLLA","0101030101","CAF SIMPLIFICADO",null,null,null,null,null,null,null,null,null,null,null,null,null,null,null,null,null,null,100,27.535386837126367,"Cumple",0,3274.4835300000009,"Cumple",{"$f":"COUNTIF(D72:AA72,\"Cumple\")/2*100","v":100},"Favorable","Cumple","Cumple"]
["130104 : MUNICIPALIDAD DISTRITAL DE HUANCHACO","0101030101","CAF SIMPLIFICADO",null,null,null,null,null,null,null,null,null,null,null,null,null,null,null,null,null,null,30,54.192055286371399,"No cumple",-1708.17,6093.1326699999963,"Cumple",{"$f":"COUNTIF(D73:AA73,\"Cumple\")/2*100","v":50},"Desfavorable","Cumple","Cumple"]
["130105 : MUNICIPALIDAD DISTRITAL DE LA ESPERANZA","0101030101","CAF COMPLETO",11,11.716975683193853,{"$f":"IF(E74>D74,\"Cumple\",\"No cumple\")","v":"Cumple"},34,38.094996714297444,{"$f":"IF(H74>=G74,\"Cumple\",\"No cumple\")","v":"Cumple"},20,35.988266265466827,{"$f":"IF(K74<=J74,\"Cumple\",\"No cumple\")","v":"No cumple"},-32,-80.414024058628485,{"$f":"IF(N74<=M74,\"Cumple\",\"No cumple\")","v":"Cumple"},2,2,{"$f":"IF(Q74>=2,\"Cumple\",\"No cumple\")","v":"Cumple"},3,3,{"$f":"IF($T74>=3,\"Cumple\",\"No cumple\")","v":"Cumple"},null,null,null,null,null,null,{"$f":"COUNTIF(D74:AA74,\"Cumple\")/6*100","v":83.333333333333343},"Favorable","Cumple","Cumple"]
["130106 : MUNICIPALIDAD DISTRITAL DE LAREDO","0101030101","CAF SIMPLIFICADO",null,null,null,null,null,null,null,null,null,null,null,null,null,null,null,null,null,null,58.4,70.28954611990244,"No cumple",-3000,573.6287500000019,"Cumple",{"$f":"COUNTIF(D75:AA75,\"Cumple\")/2*100","v":50},"Desfavorable","Cumple","Cumple"]
["130207 : MUNICIPALIDAD DISTRITAL DE SANTIAGO DE CAO","0101030101","CAF SIMPLIFICADO",null,null,null,null,null,null,null,null,null,null,null,null,null,null,null,null,null,null,187.22,217.99072756083331,"No cumple",0,2231.8551699999989,"Cumple",{"$f":"COUNTIF(D76:AA76,\"Cumple\")/2*100","v":50},"Desfavorable","No Cumple","Cumple"]
["130702 : MUNICIPALIDAD DISTRITAL DE GUADALUPE","0101030101","CAF COMPLETO",2.4500000000000002,10.68943196104766,{"$f":"IF(E77>D77,\"Cumple\",\"No cumple\")","v":"Cumple"},4.5,5.5318990653877202,{"$f":"IF(H77>=G77,\"Cumple\",\"No cumple\")","v":"Cumple"},20,37.624802414957948,{"$f":"IF(K77<=J77,\"Cumple\",\"No cumple\")","v":"No cumple"},-2.2999999999999998,15.886501525886651,{"$f":"IF(N77<=M77,\"Cumple\",\"No cumple\")","v":"No cumple"},2,2,{"$f":"IF(Q77>=2,\"Cumple\",\"No cumple\")","v":"Cumple"},3,0,{"$f":"IF($T77>=3,\"Cumple\",\"No cumple\")","v":"No cumple"},null,null,null,null,null,null,{"$f":"COUNTIF(D77:AA77,\"Cumple\")/6*100","v":50},"Desfavorable","No Cumple","Cumple"]
["140101 : MUNICIPALIDAD PROVINCIAL DE CHICLAYO","0101030101","CAF COMPLETO",5,12.518884747623616,{"$f":"IF(E78>D78,\"Cumple\",\"No cumple\")","v":"Cumple"},84.15,81.61374235696735,{"$f":"IF(H78>=G78,\"Cumple\",\"No cumple\")","v":"No cumple"},9,14.016604140546537,{"$f":"IF(K78<=J78,\"Cumple\",\"No cumple\")","v":"No cumple"},-3,-51.38166647873441,{"$f":"IF(N78<=M78,\"Cumple\",\"No cumple\")","v":"Cumple"},2,2,{"$f":"IF(Q78>=2,\"Cumple\",\"No cumple\")","v":"Cumple"},3,3,{"$f":"IF($T78>=3,\"Cumple\",\"No cumple\")","v":"Cumple"},null,null,null,null,null,null,{"$f":"COUNTIF(D78:AA78,\"Cumple\")/6*100","v":66.666666666666657},"Desfavorable","No Cumple","Cumple"]
["140104 : MUNICIPALIDAD DISTRITAL DE ETEN PUERTO","0101030101","CAF SIMPLIFICADO",null,null,null,null,null,null,null,null,null,null,null,null,null,null,null,null,null,null,272,287.906237282066,"No cumple",400,70.720570000000066,"No cumple",{"$f":"COUNTIF(D79:AA79,\"Cumple\")/2*100","v":0},"Desfavorable","No Cumple","Cumple"]
["140105 : MUNICIPALIDAD DISTRITAL DE JOSE LEONARDO ORTIZ","0101030101","CAF COMPLETO",10,68.43317522729231,{"$f":"IF(E80>D80,\"Cumple\",\"No cumple\")","v":"Cumple"},23.07,690.30522009443132,{"$f":"IF(H80>=G80,\"Cumple\",\"No cumple\")","v":"Cumple"},6.52,9.3175987353422123,{"$f":"IF(K80<=J80,\"Cumple\",\"No cumple\")","v":"No cumple"},-1,-34.270180331746673,{"$f":"IF(N80<=M80,\"Cumple\",\"No cumple\")","v":"Cumple"},2,2,{"$f":"IF(Q80>=2,\"Cumple\",\"No cumple\")","v":"Cumple"},7,0,{"$f":"IF($T80>=3,\"Cumple\",\"No cumple\")","v":"No cumple"},null,null,null,null,null,null,{"$f":"COUNTIF(D80:AA80,\"Cumple\")/6*100","v":66.666666666666657},"Desfavorable","No Cumple","Cumple"]
["140106 : MUNICIPALIDAD DISTRITAL DE LA VICTORIA","0101030101","CAF COMPLETO",2,16.981016864238274,{"$f":"IF(E81>D81,\"Cumple\",\"No cumple\")","v":"Cumple"},53,42.274956917878875,{"$f":"IF(H81>=G81,\"Cumple\",\"No cumple\")","v":"No cumple"},11.33,20.906680904930507,{"$f":"IF(K81<=J81,\"Cumple\",\"No cumple\")","v":"No cumple"},-24,122.52156575118595,{"$f":"IF(N81<=M81,\"Cumple\",\"No cumple\")","v":"No cumple"},2,0,{"$f":"IF(Q81>=2,\"Cumple\",\"No cumple\")","v":"No cumple"},4,0,{"$f":"IF($T81>=3,\"Cumple\",\"No cumple\")","v":"No cumple"},null,null,null,null,null,null,{"$f":"COUNTIF(D81:AA81,\"Cumple\")/6*100","v":16.666666666666664},"Desfavorable","No Cumple","Cumple"]
["140111 : MUNICIPALIDAD DISTRITAL DE PICSI","0101030101","CAF SIMPLIFICADO",null,null,null,null,null,null,null,null,null,null,null,null,null,null,null,null,null,null,145,123.51545947775018,"Cumple",-220,-85.760800000000515,"Cumple",{"$f":"COUNTIF(D82:AA82,\"Cumple\")/2*100","v":100},"Favorable","No Cumple","No Cumple"]
["140116 : MUNICIPALIDAD DISTRITAL DE CAYALTI","0101030101","CAF SIMPLIFICADO",null,null,null,null,null,null,null,null,null,null,null,null,null,null,null,null,null,null,50,25.069442713422021,"Cumple",227.97,610.22601999999961,"Cumple",{"$f":"COUNTIF(D83:AA83,\"Cumple\")/2*100","v":100},"Favorable","Cumple","Cumple"]
["140118 : MUNICIPALIDAD DISTRITAL DE POMALCA","0101030101","CAF SIMPLIFICADO",null,null,null,null,null,null,null,null,null,null,null,null,null,null,null,null,null,null,19.71,26.584787972655072,"No cumple",1286,41.155419999998998,"No cumple",{"$f":"COUNTIF(D84:AA84,\"Cumple\")/2*100","v":0},"Desfavorable","Cumple","Cumple"]
["140201 : MUNICIPALIDAD PROVINCIAL DE FERREÑAFE","0101030101","CAF COMPLETO",2.5,19.982688180352724,{"$f":"IF(E85>D85,\"Cumple\",\"No cumple\")","v":"Cumple"},13.32,27.934915957357724,{"$f":"IF(H85>=G85,\"Cumple\",\"No cumple\")","v":"Cumple"},13.14,15.472494308716755,{"$f":"IF(K85<=J85,\"Cumple\",\"No cumple\")","v":"No cumple"},-16.3,-57.433794271113086,{"$f":"IF(N85<=M85,\"Cumple\",\"No cumple\")","v":"Cumple"},2,2,{"$f":"IF(Q85>=2,\"Cumple\",\"No cumple\")","v":"Cumple"},3,3,{"$f":"IF($T85>=3,\"Cumple\",\"No cumple\")","v":"Cumple"},null,null,null,null,null,null,{"$f":"COUNTIF(D85:AA85,\"Cumple\")/6*100","v":83.333333333333343},"Favorable","No Cumple","Cumple"]
["140205 : MUNICIPALIDAD DISTRITAL DE PITIPO","0101030101","CAF SIMPLIFICADO",null,null,null,null,null,null,null,null,null,null,null,null,null,null,null,null,null,null,65.56,129.90314250986637,"No cumple",0,1966.7372699999996,"Cumple",{"$f":"COUNTIF(D86:AA86,\"Cumple\")/2*100","v":50},"Desfavorable","No Cumple","Cumple"]
["140310 : MUNICIPALIDAD DISTRITAL DE SALAS","0101030101","CAF SIMPLIFICADO",null,null,null,null,null,null,null,null,null,null,null,null,null,null,null,null,null,null,100,20.504881187853101,"Cumple",1000,1608.8116200000011,"Cumple",{"$f":"COUNTIF(D87:AA87,\"Cumple\")/2*100","v":100},"Favorable","Cumple","Cumple"]
["150102 : MUNICIPALIDAD DISTRITAL DE ANCÓN","0101030101","CAF COMPLETO",0.5,25.116085712972897,{"$f":"IF(E88>D88,\"Cumple\",\"No cumple\")","v":"Cumple"},42,43.45985034182155,{"$f":"IF(H88>=G88,\"Cumple\",\"No cumple\")","v":"Cumple"},36.5,32.04533749745525,{"$f":"IF(K88<=J88,\"Cumple\",\"No cumple\")","v":"Cumple"},-1.2,4.0610532882782513,{"$f":"IF(N88<=M88,\"Cumple\",\"No cumple\")","v":"No cumple"},2,1,{"$f":"IF(Q88>=2,\"Cumple\",\"No cumple\")","v":"No cumple"},6,4,{"$f":"IF($T88>=3,\"Cumple\",\"No cumple\")","v":"Cumple"},null,null,null,null,null,null,{"$f":"COUNTIF(D88:AA88,\"Cumple\")/6*100","v":66.666666666666657},"Desfavorable","No Cumple","Cumple"]
["150104 : MUNICIPALIDAD DISTRITAL DE BARRANCO","0101030101","CAF COMPLETO",1.56,25.257255532901802,{"$f":"IF(E89>D89,\"Cumple\",\"No cumple\")","v":"Cumple"},88.57,101.2366858330447,{"$f":"IF(H89>=G89,\"Cumple\",\"No cumple\")","v":"Cumple"},45,39.572696276331229,{"$f":"IF(K89<=J89,\"Cumple\",\"No cumple\")","v":"Cumple"},-1,-1.611909181394056,{"$f":"IF(N89<=M89,\"Cumple\",\"No cumple\")","v":"Cumple"},2,2,{"$f":"IF(Q89>=2,\"Cumple\",\"No cumple\")","v":"Cumple"},7,7,{"$f":"IF($T89>=3,\"Cumple\",\"No cumple\")","v":"Cumple"},null,null,null,null,null,null,{"$f":"COUNTIF(D89:AA89,\"Cumple\")/6*100","v":100},"Favorable","No Cumple","Cumple"]
["150105 : MUNICIPALIDAD DISTRITAL DE BREÑA","0101030101","CAF COMPLETO",1.9,15.42943075523344,{"$f":"IF(E90>D90,\"Cumple\",\"No cumple\")","v":"Cumple"},110,96.527600900102215,{"$f":"IF(H90>=G90,\"Cumple\",\"No cumple\")","v":"No cumple"},54.49,47.273842655954311,{"$f":"IF(K90<=J90,\"Cumple\",\"No cumple\")","v":"Cumple"},-26.4,2.1476582297316527,{"$f":"IF(N90<=M90,\"Cumple\",\"No cumple\")","v":"No cumple"},2,2,{"$f":"IF(Q90>=2,\"Cumple\",\"No cumple\")","v":"Cumple"},3,3,{"$f":"IF($T90>=3,\"Cumple\",\"No cumple\")","v":"Cumple"},null,null,null,null,null,null,{"$f":"COUNTIF(D90:AA90,\"Cumple\")/6*100","v":66.666666666666657},"Desfavorable","No Cumple","Cumple"]
["150110 : MUNICIPALIDAD DISTRITAL DE COMAS","0101030101","CAF SIMPLIFICADO",null,null,null,null,null,null,null,null,null,null,null,null,null,null,null,null,null,null,99,120.43442072590021,"No cumple",746,9896.5310899999731,"Cumple",{"$f":"COUNTIF(D91:AA91,\"Cumple\")/2*100","v":50},"Desfavorable","No Cumple","Cumple"]
["150111 : MUNICIPALIDAD DISTRITAL DE EL AGUSTINO","0101030101","CAF COMPLETO",2.06,13.614334904272349,{"$f":"IF(E92>D92,\"Cumple\",\"No cumple\")","v":"Cumple"},41,41.280075426612946,{"$f":"IF(H92>=G92,\"Cumple\",\"No cumple\")","v":"Cumple"},23.34,32.782321996139729,{"$f":"IF(K92<=J92,\"Cumple\",\"No cumple\")","v":"No cumple"},-2.5,18.866048393206725,{"$f":"IF(N92<=M92,\"Cumple\",\"No cumple\")","v":"No cumple"},2,1,{"$f":"IF(Q92>=2,\"Cumple\",\"No cumple\")","v":"No cumple"},3,2,{"$f":"IF($T92>=3,\"Cumple\",\"No cumple\")","v":"No cumple"},null,null,null,null,null,null,{"$f":"COUNTIF(D92:AA92,\"Cumple\")/6*100","v":33.333333333333329},"Desfavorable","No Cumple","Cumple"]
["150112 : MUNICIPALIDAD DISTRITAL DE INDEPENDENCIA","0101030101","CAF COMPLETO",3,4.9227020965116557,{"$f":"IF(E93>D93,\"Cumple\",\"No cumple\")","v":"Cumple"},42,67.104100060775323,{"$f":"IF(H93>=G93,\"Cumple\",\"No cumple\")","v":"Cumple"},28,36.595717913370812,{"$f":"IF(K93<=J93,\"Cumple\",\"No cumple\")","v":"No cumple"},-5,76.337931636183555,{"$f":"IF(N93<=M93,\"Cumple\",\"No cumple\")","v":"No cumple"},2,1,{"$f":"IF(Q93>=2,\"Cumple\",\"No cumple\")","v":"No cumple"},3,0,{"$f":"IF($T93>=3,\"Cumple\",\"No cumple\")","v":"No cumple"},null,null,null,null,null,null,{"$f":"COUNTIF(D93:AA93,\"Cumple\")/6*100","v":33.333333333333329},"Desfavorable","No Cumple","Cumple"]
["150115 : MUNICIPALIDAD DISTRITAL DE LA VICTORIA","0101030101","CAF COMPLETO",7.4,29.310677027813309,{"$f":"IF(E94>D94,\"Cumple\",\"No cumple\")","v":"Cumple"},66.599999999999994,73.759306388131392,{"$f":"IF(H94>=G94,\"Cumple\",\"No cumple\")","v":"Cumple"},40.9,36.355735367134137,{"$f":"IF(K94<=J94,\"Cumple\",\"No cumple\")","v":"Cumple"},-13.3,18.691132295188275,{"$f":"IF(N94<=M94,\"Cumple\",\"No cumple\")","v":"No cumple"},2,2,{"$f":"IF(Q94>=2,\"Cumple\",\"No cumple\")","v":"Cumple"},4,4,{"$f":"IF($T94>=3,\"Cumple\",\"No cumple\")","v":"Cumple"},null,null,null,null,null,null,{"$f":"COUNTIF(D94:AA94,\"Cumple\")/6*100","v":83.333333333333343},"Favorable","No Cumple","Cumple"]
["150121 : MUNICIPALIDAD DISTRITAL DE PUEBLO LIBRE","0101030101","CAF COMPLETO",1.82,16.071821586254778,{"$f":"IF(E95>D95,\"Cumple\",\"No cumple\")","v":"Cumple"},102.19,92.172381523039775,{"$f":"IF(H95>=G95,\"Cumple\",\"No cumple\")","v":"No cumple"},46.62,46.348974239160512,{"$f":"IF(K95<=J95,\"Cumple\",\"No cumple\")","v":"Cumple"},-29.2,-33.514501076960954,{"$f":"IF(N95<=M95,\"Cumple\",\"No cumple\")","v":"Cumple"},2,2,{"$f":"IF(Q95>=2,\"Cumple\",\"No cumple\")","v":"Cumple"},3,3,{"$f":"IF($T95>=3,\"Cumple\",\"No cumple\")","v":"Cumple"},null,null,null,null,null,null,{"$f":"COUNTIF(D95:AA95,\"Cumple\")/6*100","v":83.333333333333343},"Favorable","Cumple","Cumple"]
["150128 : MUNICIPALIDAD DISTRITAL DEL RÍMAC","0101030101","CAF SIMPLIFICADO",null,null,null,null,null,null,null,null,null,null,null,null,null,null,null,null,null,null,95.82,86.652335544569553,"Cumple",0,3806.0267599999943,"Cumple",{"$f":"COUNTIF(D96:AA96,\"Cumple\")/2*100","v":100},"Favorable","Cumple","Cumple"]
["150129 : MUNICIPALIDAD DISTRITAL DE SAN BARTOLO","0101030101","CAF SIMPLIFICADO",null,null,null,null,null,null,null,null,null,null,null,null,null,null,null,null,null,null,89.27,76.162776080834206,"Cumple",4640.1996799999997,1421.2404899999974,"No cumple",{"$f":"COUNTIF(D97:AA97,\"Cumple\")/2*100","v":50},"Desfavorable","Cumple","Cumple"]
["150132 : MUNICIPALIDAD DISTRITAL DE SAN JUAN DE LURIGANCHO","0101030101","CAF COMPLETO",2.1,6.0169177468712007,{"$f":"IF(E98>D98,\"Cumple\",\"No cumple\")","v":"Cumple"},42.5,45.291678375812644,{"$f":"IF(H98>=G98,\"Cumple\",\"No cumple\")","v":"Cumple"},29.06,19.613135728537742,{"$f":"IF(K98<=J98,\"Cumple\",\"No cumple\")","v":"Cumple"},-5.84,94.247906238267817,{"$f":"IF(N98<=M98,\"Cumple\",\"No cumple\")","v":"No cumple"},2,0,{"$f":"IF(Q98>=2,\"Cumple\",\"No cumple\")","v":"No cumple"},4,0,{"$f":"IF($T98>=3,\"Cumple\",\"No cumple\")","v":"No cumple"},null,null,null,null,null,null,{"$f":"COUNTIF(D98:AA98,\"Cumple\")/6*100","v":50},"Desfavorable","No Cumple","Cumple"]
["150133 : MUNICIPALIDAD DISTRITAL DE SAN JUAN DE MIRAFLORES","0101030101","CAF COMPLETO",30.44,26.403693181878236,{"$f":"IF(E99>D99,\"Cumple\",\"No cumple\")","v":"No cumple"},73.989999999999995,74.092260543194016,{"$f":"IF(H99>=G99,\"Cumple\",\"No cumple\")","v":"Cumple"},26.62,39.283574101249741,{"$f":"IF(K99<=J99,\"Cumple\",\"No cumple\")","v":"No cumple"},-1.5,-10.621864217478661,{"$f":"IF(N99<=M99,\"Cumple\",\"No cumple\")","v":"Cumple"},2,2,{"$f":"IF(Q99>=2,\"Cumple\",\"No cumple\")","v":"Cumple"},4,4,{"$f":"IF($T99>=3,\"Cumple\",\"No cumple\")","v":"Cumple"},null,null,null,null,null,null,{"$f":"COUNTIF(D99:AA99,\"Cumple\")/6*100","v":66.666666666666657},"Desfavorable","No Cumple","Cumple"]
["150134 : MUNICIPALIDAD DISTRITAL DE SAN LUIS","0101030101","CAF COMPLETO",1.1000000000000001,2.5666888900072302,{"$f":"IF(E100>D100,\"Cumple\",\"No cumple\")","v":"Cumple"},80.5,144.68749870278245,{"$f":"IF(H100>=G100,\"Cumple\",\"No cumple\")","v":"Cumple"},52.7,45.355092217827547,{"$f":"IF(K100<=J100,\"Cumple\",\"No cumple\")","v":"Cumple"},0,65.464622881938794,{"$f":"IF(N100<=M100,\"Cumple\",\"No cumple\")","v":"No cumple"},2,1,{"$f":"IF(Q100>=2,\"Cumple\",\"No cumple\")","v":"No cumple"},6,5,{"$f":"IF($T100>=3,\"Cumple\",\"No cumple\")","v":"Cumple"},null,null,null,null,null,null,{"$f":"COUNTIF(D100:AA100,\"Cumple\")/6*100","v":66.666666666666657},"Desfavorable","No Cumple","Cumple"]
["150135 : MUNICIPALIDAD DISTRITAL DE SAN MARTÍN DE PORRES","0101030101","CAF COMPLETO",0,1.9704763577628106,{"$f":"IF(E101>D101,\"Cumple\",\"No cumple\")","v":"Cumple"},45,46.607585376481545,{"$f":"IF(H101>=G101,\"Cumple\",\"No cumple\")","v":"Cumple"},26,27.475110594323397,{"$f":"IF(K101<=J101,\"Cumple\",\"No cumple\")","v":"No cumple"},-5,-43.618882256258125,{"$f":"IF(N101<=M101,\"Cumple\",\"No cumple\")","v":"Cumple"},2,1,{"$f":"IF(Q101>=2,\"Cumple\",\"No cumple\")","v":"No cumple"},3,0,{"$f":"IF($T101>=3,\"Cumple\",\"No cumple\")","v":"No cumple"},null,null,null,null,null,null,{"$f":"COUNTIF(D101:AA101,\"Cumple\")/6*100","v":50},"Desfavorable","No Cumple","Cumple"]
["150143 : MUNICIPALIDAD DISTRITAL DE VILLA MARIA DEL TRIUNFO","0101030101","CAF COMPLETO",5.57,43.80485627939904,{"$f":"IF(E102>D102,\"Cumple\",\"No cumple\")","v":"Cumple"},49.86,56.472340757289103,{"$f":"IF(H102>=G102,\"Cumple\",\"No cumple\")","v":"Cumple"},44.32,36.030922780321141,{"$f":"IF(K102<=J102,\"Cumple\",\"No cumple\")","v":"Cumple"},-2.5,-32.514789374112574,{"$f":"IF(N102<=M102,\"Cumple\",\"No cumple\")","v":"Cumple"},2,0,{"$f":"IF(Q102>=2,\"Cumple\",\"No cumple\")","v":"No cumple"},3,2,{"$f":"IF($T102>=3,\"Cumple\",\"No cumple\")","v":"No cumple"},null,null,null,null,null,null,{"$f":"COUNTIF(D102:AA102,\"Cumple\")/6*100","v":66.666666666666657},"Desfavorable","No Cumple","Cumple"]
["150201 : MUNICIPALIDAD PROVINCIAL DE BARRANCA","0101030101","CAF SIMPLIFICADO",null,null,null,null,null,null,null,null,null,null,null,null,null,null,null,null,null,null,101.38,97.494791384809616,"Cumple",100,3398.7134999999926,"Cumple",{"$f":"COUNTIF(D103:AA103,\"Cumple\")/2*100","v":100},{"$f":"IF(AB103>=80,\"Favorable\",\"Desfavorable\")","v":"Favorable"},"Cumple","Cumple"]
["150202 : MUNICIPALIDAD DISTRITAL DE PARAMONGA","0101030101","CAF SIMPLIFICADO",null,null,null,null,null,null,null,null,null,null,null,null,null,null,null,null,null,null,100,132.2943993321629,"No cumple",-1307.05,1688.1749899999966,"Cumple",{"$f":"COUNTIF(D104:AA104,\"Cumple\")/2*100","v":50},"Desfavorable","No Cumple","Cumple"]
["150205 : MUNICIPALIDAD DISTRITAL DE SUPE PUERTO","0101030101","CAF SIMPLIFICADO",null,null,null,null,null,null,null,null,null,null,null,null,null,null,null,null,null,null,188.17,186.57588011429368,"Cumple",990,788.98997999999995,"No cumple",{"$f":"COUNTIF(D105:AA105,\"Cumple\")/2*100","v":50},"Desfavorable","No Cumple","Cumple"]
["150510 : MUNICIPALIDAD DISTRITAL DE NUEVO IMPERIAL","0101030101","CAF SIMPLIFICADO",null,null,null,null,null,null,null,null,null,null,null,null,null,null,null,null,null,null,295,77.863730397444499,"Cumple",956.32,4069.3559699999987,"Cumple",{"$f":"COUNTIF(D106:AA106,\"Cumple\")/2*100","v":100},"Favorable","Cumple","Cumple"]
["150601 : MUNICIPALIDAD PROVINCIAL DE HUARAL","0101030101","CAF COMPLETO",7.5,52.856351098631116,{"$f":"IF(E107>D107,\"Cumple\",\"No cumple\")","v":"Cumple"},11,12.225332830789785,{"$f":"IF(H107>=G107,\"Cumple\",\"No cumple\")","v":"Cumple"},38.200000000000003,39.90582419323605,{"$f":"IF(K107<=J107,\"Cumple\",\"No cumple\")","v":"No cumple"},-29.3,3057.7164523616293,{"$f":"IF(N107<=M107,\"Cumple\",\"No cumple\")","v":"No cumple"},2,2,{"$f":"IF(Q107>=2,\"Cumple\",\"No cumple\")","v":"Cumple"},3,3,{"$f":"IF($T107>=3,\"Cumple\",\"No cumple\")","v":"Cumple"},null,null,null,null,null,null,{"$f":"COUNTIF(D107:AA107,\"Cumple\")/6*100","v":66.666666666666657},"Desfavorable","No Cumple","Cumple"]
["150605 : MUNICIPALIDAD DISTRITAL DE CHANCAY","0101030101","CAF COMPLETO",2.6,2.4452490155916458,{"$f":"IF(E108>D108,\"Cumple\",\"No cumple\")","v":"No cumple"},51,52.99513600503105,{"$f":"IF(H108>=G108,\"Cumple\",\"No cumple\")","v":"Cumple"},50,26.954245709411751,{"$f":"IF(K108<=J108,\"Cumple\",\"No cumple\")","v":"Cumple"},-17.37,-42.861742766890899,{"$f":"IF(N108<=M108,\"Cumple\",\"No cumple\")","v":"Cumple"},2,2,{"$f":"IF(Q108>=2,\"Cumple\",\"No cumple\")","v":"Cumple"},3,3,{"$f":"IF($T108>=3,\"Cumple\",\"No cumple\")","v":"Cumple"},null,null,null,null,null,null,{"$f":"COUNTIF(D108:AA108,\"Cumple\")/6*100","v":83.333333333333343},"Favorable","Cumple","Cumple"]
["150712 : MUNICIPALIDAD DISTRITAL DE SAN PEDRO DE LARAOS","0101030101","CAF SIMPLIFICADO",null,null,null,null,null,null,null,null,null,null,null,null,null,null,null,null,null,null,99,1.0943994792257048,"Cumple",-300,1161.4481600000001,"Cumple",{"$f":"COUNTIF(D109:AA109,\"Cumple\")/2*100","v":100},"Favorable","Cumple","Cumple"]
["150716 : MUNICIPALIDAD DISTRITAL DE SAN ANTONIO","0101030101","CAF COMPLETO",14,-14.086810001135373,{"$f":"IF(E110>D110,\"Cumple\",\"No cumple\")","v":"No cumple"},35,106.88427940791728,{"$f":"IF(H110>=G110,\"Cumple\",\"No cumple\")","v":"Cumple"},49,57.483104910581737,{"$f":"IF(K110<=J110,\"Cumple\",\"No cumple\")","v":"No cumple"},-60,-57.313710250651852,{"$f":"IF(N110<=M110,\"Cumple\",\"No cumple\")","v":"No cumple"},2,0,{"$f":"IF(Q110>=2,\"Cumple\",\"No cumple\")","v":"No cumple"},3,0,{"$f":"IF($T110>=3,\"Cumple\",\"No cumple\")","v":"No cumple"},null,null,null,null,null,null,{"$f":"COUNTIF(D110:AA110,\"Cumple\")/6*100","v":16.666666666666664},"Desfavorable","Cumple","Cumple"]
["151009 : MUNICIPALIDAD DISTRITAL DE CHOCOS","0101030101","CAF SIMPLIFICADO",null,null,null,null,null,null,null,null,null,null,null,null,null,null,null,null,null,null,89,25.869402534478443,"Cumple",0,778.55142999999998,"Cumple",{"$f":"COUNTIF(D111:AA111,\"Cumple\")/2*100","v":100},"Favorable","Cumple","Cumple"]
["160301 : MUNICIPALIDAD PROVINCIAL DE LORETO - NAUTA","0101030101","CAF COMPLETO",54.3,11.767298904631064,{"$f":"IF(E112>D112,\"Cumple\",\"No cumple\")","v":"No cumple"},1.2,4.8133875594377766,{"$f":"IF(H112>=G112,\"Cumple\",\"No cumple\")","v":"Cumple"},28,28.699102442174439,{"$f":"IF(K112<=J112,\"Cumple\",\"No cumple\")","v":"No cumple"},-2,6.499142141872829,{"$f":"IF(N112<=M112,\"Cumple\",\"No cumple\")","v":"No cumple"},2,1,{"$f":"IF(Q112>=2,\"Cumple\",\"No cumple\")","v":"No cumple"},3,0,{"$f":"IF($T112>=3,\"Cumple\",\"No cumple\")","v":"No cumple"},null,null,null,null,null,null,{"$f":"COUNTIF(D112:AA112,\"Cumple\")/6*100","v":16.666666666666664},"Desfavorable","No Cumple","Cumple"]
["160302 : MUNICIPALIDAD DISTRITAL DE PARINARI","0101030101","CAF SIMPLIFICADO",null,null,null,null,null,null,null,null,null,null,null,null,null,null,null,null,null,null,107.23,145.47283249348447,"No cumple",308.99,1165.1950999999997,"Cumple",{"$f":"COUNTIF(D113:AA113,\"Cumple\")/2*100","v":50},"Desfavorable","No Cumple","Cumple"]
["160305 : MUNICIPALIDAD DISTRITAL DE URARINAS","0101030101","CAF SIMPLIFICADO",null,null,null,null,null,null,null,null,null,null,null,null,null,null,null,null,null,null,100,56.193581675295654,"Cumple",2711.23,1607.3737699999986,"No cumple",{"$f":"COUNTIF(D114:AA114,\"Cumple\")/2*100","v":50},"Desfavorable","Cumple","Cumple"]
["160502 : MUNICIPALIDAD DISTRITAL DE ALTO TAPICHE","0101030101","CAF SIMPLIFICADO",null,null,null,null,null,null,null,null,null,null,null,null,null,null,null,null,null,null,225.88,253.42527334389987,"No cumple",800,293.86221999999998,"No cumple",{"$f":"COUNTIF(D115:AA115,\"Cumple\")/2*100","v":0},"Desfavorable","No Cumple","Cumple"]
["190103 : MUNICIPALIDAD DISTRITAL DE HUARIACA","0101030101","CAF SIMPLIFICADO",null,null,null,null,null,null,null,null,null,null,null,null,null,null,null,null,null,null,112.03,83.037996242506182,"Cumple",1200,1511.8484100000003,"Cumple",{"$f":"COUNTIF(D116:AA116,\"Cumple\")/2*100","v":100},"Favorable","Cumple","Cumple"]
["190104 : MUNICIPALIDAD DISTRITAL DE HUAYLLAY","0101030101","CAF COMPLETO",11.07,-10.126557252939204,{"$f":"IF(E117>D117,\"Cumple\",\"No cumple\")","v":"No cumple"},0,0,{"$f":"IF(H117>=G117,\"Cumple\",\"No cumple\")","v":"Cumple"},32,36.543750697765475,{"$f":"IF(K117<=J117,\"Cumple\",\"No cumple\")","v":"No cumple"},-19.850000000000001,-8.5568030766569745,{"$f":"IF(N117<=M117,\"Cumple\",\"No cumple\")","v":"No cumple"},2,0,{"$f":"IF(Q117>=2,\"Cumple\",\"No cumple\")","v":"No cumple"},4,0,{"$f":"IF($T117>=3,\"Cumple\",\"No cumple\")","v":"No cumple"},null,null,null,null,null,null,{"$f":"COUNTIF(D117:AA117,\"Cumple\")/6*100","v":16.666666666666664},"Desfavorable","Cumple","Cumple"]
["190110 : MUNICIPALIDAD DISTRITAL DE TICLACAYAN","0101030101","CAF SIMPLIFICADO",null,null,null,null,null,null,null,null,null,null,null,null,null,null,null,null,null,null,155.46,125.41122978692026,"Cumple",5000,4318.2770199999995,"No cumple",{"$f":"COUNTIF(D118:AA118,\"Cumple\")/2*100","v":50},"Desfavorable","No Cumple","Cumple"]
["190111 : MUNICIPALIDAD DISTRITAL DE TINYAHUARCO","0101030101","CAF SIMPLIFICADO",null,null,null,null,null,null,null,null,null,null,null,null,null,null,null,null,null,null,180.66,113.86766871446387,"Cumple",4064.04504,3822.4879600000017,"No cumple",{"$f":"COUNTIF(D119:AA119,\"Cumple\")/2*100","v":50},"Desfavorable","No Cumple","Cumple"]
["190302 : MUNICIPALIDAD DISTRITAL DE CHONTABAMBA","0101030101","CAF SIMPLIFICADO",null,null,null,null,null,null,null,null,null,null,null,null,null,null,null,null,null,null,null,null,"Omiso",null,null,"Omiso",null,"Omiso","Cumple","Cumple"]
["200108 : MUNICIPALIDAD DISTRITAL DE EL TALLAN","0101030101","CAF SIMPLIFICADO",null,null,null,null,null,null,null,null,null,null,null,null,null,null,null,null,null,null,1.1000000000000001,4.0257676626215391,"No cumple",2798.28,477.45691999999991,"No cumple",{"$f":"COUNTIF(D121:AA121,\"Cumple\")/2*100","v":0},{"$f":"IF(AB121>=80,\"Favorable\",\"Desfavorable\")","v":"Desfavorable"},"Cumple","Cumple"]
["200109 : MUNICIPALIDAD DISTRITAL DE LA ARENA","0101030101","CAF SIMPLIFICADO",null,null,null,null,null,null,null,null,null,null,null,null,null,null,null,null,null,null,11.45,5.1498902760093044,"Cumple",550,2587.1312499999981,"Cumple",{"$f":"COUNTIF(D122:AA122,\"Cumple\")/2*100","v":100},{"$f":"IF(AB122>=80,\"Favorable\",\"Desfavorable\")","v":"Favorable"},"Cumple","Cumple"]
["200501 : MUNICIPALIDAD PROVINCIAL DE PAITA","0101030101","CAF COMPLETO",0,4.001372660430782,{"$f":"IF(E123>D123,\"Cumple\",\"No cumple\")","v":"Cumple"},12.18,23.86297515245607,{"$f":"IF(H123>=G123,\"Cumple\",\"No cumple\")","v":"Cumple"},22.98,31.133376688487431,{"$f":"IF(K123<=J123,\"Cumple\",\"No cumple\")","v":"No cumple"},-1,21.166057776954371,{"$f":"IF(N123<=M123,\"Cumple\",\"No cumple\")","v":"No cumple"},2,0,{"$f":"IF(Q123>=2,\"Cumple\",\"No cumple\")","v":"No cumple"},4,0,{"$f":"IF($T123>=3,\"Cumple\",\"No cumple\")","v":"No cumple"},null,null,null,null,null,null,{"$f":"COUNTIF(D123:AA123,\"Cumple\")/6*100","v":33.333333333333329},{"$f":"IF(AB123>=80,\"Favorable\",\"Desfavorable\")","v":"Desfavorable"},"Cumple","Cumple"]
["200602 : MUNICIPALIDAD DISTRITAL DE BELLAVISTA","0101030101","CAF SIMPLIFICADO",null,null,null,null,null,null,null,null,null,null,null,null,null,null,null,null,null,null,249.32,265.34633072100371,"No cumple",3580.25,967.45402000000422,"No cumple",{"$f":"COUNTIF(D124:AA124,\"Cumple\")/2*100","v":0},{"$f":"IF(AB124>=80,\"Favorable\",\"Desfavorable\")","v":"Desfavorable"},"No Cumple","Cumple"]
["200804 : MUNICIPALIDAD DISTRITAL DE CRISTO NOS VALGA","0101030101","CAF SIMPLIFICADO",null,null,null,null,null,null,null,null,null,null,null,null,null,null,null,null,null,null,null,null,"Omiso",null,null,"Omiso",null,"Omiso","Cumple","Cumple"]
["210901 : MUNICIPALIDAD PROVINCIAL DE MOHO","0101030101","CAF SIMPLIFICADO",null,null,null,null,null,null,null,null,null,null,null,null,null,null,null,null,null,null,30,66.656808162436306,"No cumple",1064,5845.8576499999999,"Cumple",{"$f":"COUNTIF(D126:AA126,\"Cumple\")/2*100","v":50},{"$f":"IF(AB126>=80,\"Favorable\",\"Desfavorable\")","v":"Desfavorable"},"Cumple","Cumple"]
["220602 : MUNICIPALIDAD DISTRITAL DE CAMPANILLA","0101030101","CAF SIMPLIFICADO",null,null,null,null,null,null,null,null,null,null,null,null,null,null,null,null,null,null,9.6999999999999993,138.77302735852703,"No cumple",0,891.2713500000001,"Cumple",{"$f":"COUNTIF(D127:AA127,\"Cumple\")/2*100","v":50},"Desfavorable","No Cumple","Cumple"]
["220701 : MUNICIPALIDAD PROVINCIAL DE PICOTA","0101030101","CAF SIMPLIFICADO",null,null,null,null,null,null,null,null,null,null,null,null,null,null,null,null,null,null,22.88,19.495225494828787,"Cumple",650,704.57007000000124,"Cumple",{"$f":"COUNTIF(D128:AA128,\"Cumple\")/2*100","v":100},"Favorable","Cumple","Cumple"]
["220808 : MUNICIPALIDAD DISTRITAL DE YORONGOS","0101030101","CAF SIMPLIFICADO",null,null,null,null,null,null,null,null,null,null,null,null,null,null,null,null,null,null,100,41.192265671390956,"Cumple",100,471.57015999999993,"Cumple",{"$f":"COUNTIF(D129:AA129,\"Cumple\")/2*100","v":100},"Favorable","Cumple","Cumple"]
["230102 : MUNICIPALIDAD DISTRITAL DE ALTO DE LA ALIANZA","0101030101","CAF COMPLETO",0,24.549649842236523,{"$f":"IF(E130>D130,\"Cumple\",\"No cumple\")","v":"Cumple"},4.5999999999999996,14.90062245256089,{"$f":"IF(H130>=G130,\"Cumple\",\"No cumple\")","v":"Cumple"},56.1,46.75898611501075,{"$f":"IF(K130<=J130,\"Cumple\",\"No cumple\")","v":"Cumple"},-4.4000000000000004,30.945996338346085,{"$f":"IF(N130<=M130,\"Cumple\",\"No cumple\")","v":"No cumple"},2,0,{"$f":"IF(Q130>=2,\"Cumple\",\"No cumple\")","v":"No cumple"},6,0,{"$f":"IF($T130>=3,\"Cumple\",\"No cumple\")","v":"No cumple"},null,null,null,null,null,null,{"$f":"COUNTIF(D130:AA130,\"Cumple\")/6*100","v":50},"Desfavorable","No Cumple","Cumple"]
["230104 : MUNICIPALIDAD DISTRITAL DE CIUDAD NUEVA","0101030101","CAF COMPLETO",10,-37.873256426737022,{"$f":"IF(E131>D131,\"Cumple\",\"No cumple\")","v":"No cumple"},12.3,19.54664186855171,{"$f":"IF(H131>=G131,\"Cumple\",\"No cumple\")","v":"Cumple"},20.34,46.337171566246532,{"$f":"IF(K131<=J131,\"Cumple\",\"No cumple\")","v":"No cumple"},0,-16.423081766086128,{"$f":"IF(N131<=M131,\"Cumple\",\"No cumple\")","v":"Cumple"},2,0,{"$f":"IF(Q131>=2,\"Cumple\",\"No cumple\")","v":"No cumple"},3,0,{"$f":"IF($T131>=3,\"Cumple\",\"No cumple\")","v":"No cumple"},null,null,null,null,null,null,{"$f":"COUNTIF(D131:AA131,\"Cumple\")/6*100","v":33.333333333333329},"Desfavorable","Cumple","Cumple"]
["230108 : MUNICIPALIDAD DISTRITAL DE POCOLLAY","0101030101","CAF SIMPLIFICADO",null,null,null,null,null,null,null,null,null,null,null,null,null,null,null,null,null,null,100,87.19355077183819,"Cumple",0,5846.1644599999991,"Cumple",{"$f":"COUNTIF(D132:AA132,\"Cumple\")/2*100","v":100},"Favorable","Cumple","Cumple"]
["230203 : MUNICIPALIDAD DISTRITAL DE CAMILACA","0101030101","CAF SIMPLIFICADO",null,null,null,null,null,null,null,null,null,null,null,null,null,null,null,null,null,null,135.99,91.906670128441718,"Cumple",0,8236.4915400000009,"Cumple",{"$f":"COUNTIF(D133:AA133,\"Cumple\")/2*100","v":100},"Favorable","Cumple","Cumple"]
["230206 : MUNICIPALIDAD DISTRITAL DE QUILAHUANI","0101030101","CAF SIMPLIFICADO",null,null,null,null,null,null,null,null,null,null,null,null,null,null,null,null,null,null,185.95,135.78817780293767,"Cumple",200,2768.0077699999997,"Cumple",{"$f":"COUNTIF(D134:AA134,\"Cumple\")/2*100","v":100},"Favorable","No Cumple","Cumple"]
["230302 : MUNICIPALIDAD DISTRITAL DE ILABAYA","0101030101","CAF COMPLETO",3,-10.497955703048021,{"$f":"IF(E135>D135,\"Cumple\",\"No cumple\")","v":"No cumple"},0,0,{"$f":"IF(H135>=G135,\"Cumple\",\"No cumple\")","v":"Cumple"},120.7,107.8846983598667,{"$f":"IF(K135<=J135,\"Cumple\",\"No cumple\")","v":"Cumple"},100,-75.959255327260465,{"$f":"IF(N135<=M135,\"Cumple\",\"No cumple\")","v":"Cumple"},2,1,{"$f":"IF(Q135>=2,\"Cumple\",\"No cumple\")","v":"No cumple"},3,1,{"$f":"IF($T135>=3,\"Cumple\",\"No cumple\")","v":"No cumple"},null,null,null,null,null,null,{"$f":"COUNTIF(D135:AA135,\"Cumple\")/6*100","v":50},"Desfavorable","No Cumple","Cumple"]
["250105 : MUNICIPALIDAD DISTRITAL DE YARINACOCHA","0101030101","CAF COMPLETO",7.5,-4.7184653961696137,{"$f":"IF(E136>D136,\"Cumple\",\"No cumple\")","v":"No cumple"},14.79,23.998374075401369,{"$f":"IF(H136>=G136,\"Cumple\",\"No cumple\")","v":"Cumple"},40,40.76793518893372,{"$f":"IF(K136<=J136,\"Cumple\",\"No cumple\")","v":"No cumple"},-33.049999999999997,-31.054183285296123,{"$f":"IF(N136<=M136,\"Cumple\",\"No cumple\")","v":"No cumple"},2,0,{"$f":"IF(Q136>=2,\"Cumple\",\"No cumple\")","v":"No cumple"},5,0,{"$f":"IF($T136>=3,\"Cumple\",\"No cumple\")","v":"No cumple"},null,null,null,null,null,null,{"$f":"COUNTIF(D136:AA136,\"Cumple\")/6*100","v":16.666666666666664},"Desfavorable","No Cumple","Cumple"]
["250301 : MUNICIPALIDAD PROVINCIAL DE PADRE ABAD - AGUAITIA","0101030101","CAF SIMPLIFICADO",null,null,null,null,null,null,null,null,null,null,null,null,null,null,null,null,null,null,85,124.54776867110444,"No cumple",9160,2651.6431700000057,"No cumple",{"$f":"COUNTIF(D137:AA137,\"Cumple\")/2*100","v":0},"Desfavorable","No Cumple","Cumple"]
["040000 : GOBIERNO REGIONAL DE AREQUIPA","0101020101","CAF COMPLETO",null,null,null,null,null,null,7.28,6.8230236214562767,{"$f":"IF(K138<=J138,\"Cumple\",\"No cumple\")","v":"Cumple"},-22,-17.017677170604784,{"$f":"IF(N138<=M138,\"Cumple\",\"No cumple\")","v":"No cumple"},2,1,{"$f":"IF(Q138>=2,\"Cumple\",\"No cumple\")","v":"No cumple"},3,3,{"$f":"IF($T138>=3,\"Cumple\",\"No cumple\")","v":"Cumple"},null,null,null,null,null,null,{"$f":"COUNTIF(D138:AA138,\"Cumple\")/4*100","v":50},"Desfavorable","Cumple","Cumple"]
["060000 : GOBIERNO REGIONAL DE CAJAMARCA","0101020101","CAF SIMPLIFICADO",null,null,null,null,null,null,null,null,null,null,null,null,null,null,null,null,null,null,100.3,81.408251413031579,"Cumple",51500,58909.469570002082,"Cumple",{"$f":"COUNTIF(D139:AA139,\"Cumple\")/2*100","v":100},"Favorable","Cumple","Cumple"]
["130000 : GOBIERNO REGIONAL DE LA LIBERTAD","0101020101","CAF SIMPLIFICADO",null,null,null,null,null,null,null,null,null,null,null,null,null,null,null,null,null,null,98,67.086478984246483,"Cumple",127000,128288.47276999569,"Cumple",{"$f":"COUNTIF(D140:AA140,\"Cumple\")/2*100","v":100},"Favorable","Cumple","Cumple"]
["150100 : REGION LIMA METROPOLITANA","0101020101","CAF SIMPLIFICADO",null,null,null,null,null,null,null,null,null,null,null,null,null,null,null,null,null,null,10.83,75.336128903286692,"No cumple",-349.68,5595.7572999999966,"Cumple",{"$f":"COUNTIF(D141:AA141,\"Cumple\")/2*100","v":50},"Desfavorable","Cumple","Cumple"]
["180000 : GOBIERNO REGIONAL DE MOQUEGUA","0101020101","CAF COMPLETO",null,null,null,null,null,null,11.1,11.872918392131687,{"$f":"IF(K142<=J142,\"Cumple\",\"No cumple\")","v":"No cumple"},4.0999999999999996,71.312270057775365,{"$f":"IF(N142<=M142,\"Cumple\",\"No cumple\")","v":"No cumple"},2,1,{"$f":"IF(Q142>=2,\"Cumple\",\"No cumple\")","v":"No cumple"},3,0,{"$f":"IF($T142>=3,\"Cumple\",\"No cumple\")","v":"No cumple"},null,null,null,null,null,null,{"$f":"COUNTIF(D142:AA142,\"Cumple\")/4*100","v":0},"Desfavorable","No Cumple","Cumple"]
["200000 : GOBIERNO REGIONAL DE PIURA","0101020101","CAF COMPLETO",null,null,null,null,null,null,9.5,9.7814608671154932,{"$f":"IF(K143<=J143,\"Cumple\",\"No cumple\")","v":"No cumple"},-12,-49.021622883993409,{"$f":"IF(N143<=M143,\"Cumple\",\"No cumple\")","v":"Cumple"},2,2,{"$f":"IF(Q143>=2,\"Cumple\",\"No cumple\")","v":"Cumple"},7,7,{"$f":"IF($T143>=3,\"Cumple\",\"No cumple\")","v":"Cumple"},null,null,null,null,null,null,{"$f":"COUNTIF(D143:AA143,\"Cumple\")/4*100","v":75},"Desfavorable","No Cumple","Cumple"]
["210000 : GOBIERNO REGIONAL DE PUNO","0101020101","CAF COMPLETO",null,null,null,null,null,null,7.01,6.8873364716595127,{"$f":"IF(K144<=J144,\"Cumple\",\"No cumple\")","v":"Cumple"},-8.5,54.441589350313883,{"$f":"IF(N144<=M144,\"Cumple\",\"No cumple\")","v":"No cumple"},2,0,{"$f":"IF(Q144>=2,\"Cumple\",\"No cumple\")","v":"No cumple"},3,0,{"$f":"IF($T144>=3,\"Cumple\",\"No cumple\")","v":"No cumple"},null,null,null,null,null,null,{"$f":"COUNTIF(D144:AA144,\"Cumple\")/4*100","v":25},"Desfavorable","Cumple","Cumple"]

{"sheet":"TOTAL","index":9,"n_rows":146,"n_cols":16,"rows_kept":146,"cut":false,"hidden":true,"merged":[[2,13,3,13],[2,14,3,14],[2,3,3,3],[2,15,3,15],[2,0,3,0],[2,1,3,1],[2,2,3,2],[2,4,2,11],[2,12,3,12]]}
[]
[]
["UBIGEO","DEPARTAMENTO","MUNICIPALIDAD","Tipo de CAF","CUMPLIMIENTO DE LOS COMPROMISOS DE AJUSTE FISCAL",null,null,null,null,null,null,null,"Logro","Evaluación","Regla Fiscal\nSDT","Regla Fiscal\nACC"]
[null,null,null,null,"CF 1","CF2","CF 3","CF 4","CF 5","CF 6","CF 7","CF 8"]
["010112","AMAZONAS"," MUNICIPALIDAD DISTRITAL DE MAGDALENA","CAF SIMPLIFICADO",null,null,null,null,null,null,"Cumple","Cumple",100,"Favorable","Cumple","Cumple"]
["010120","AMAZONAS"," MUNICIPALIDAD DISTRITAL DE SOLOCO","CAF SIMPLIFICADO",null,null,null,null,null,null,"Cumple","Cumple",100,"Favorable","Cumple","Cumple"]
["010302","AMAZONAS"," MUNICIPALIDAD DISTRITAL DE CHISQUILLA","CAF SIMPLIFICADO",null,null,null,null,null,null,"No cumple","No cumple",0,"Desfavorable","Cumple","Cumple"]
["010503","AMAZONAS"," MUNICIPALIDAD DISTRITAL DE COCABAMBA","CAF SIMPLIFICADO",null,null,null,null,null,null,"No cumple","Cumple",50,"Desfavorable","No Cumple","Cumple"]
["010504","AMAZONAS"," MUNICIPALIDAD DISTRITAL DE COLCAMAR","CAF SIMPLIFICADO",null,null,null,null,null,null,"Cumple","No cumple",50,"Desfavorable","Cumple","Cumple"]
["010522","AMAZONAS"," MUNICIPALIDAD DISTRITAL DE TINGO","CAF SIMPLIFICADO",null,null,null,null,null,null,"Cumple","Cumple",100,"Favorable","Cumple","Cumple"]
["010602","AMAZONAS"," MUNICIPALIDAD DISTRITAL DE CHIRIMOTO","CAF SIMPLIFICADO",null,null,null,null,null,null,"Cumple","Cumple",100,"Favorable","Cumple","Cumple"]
["010605","AMAZONAS"," MUNICIPALIDAD DISTRITAL DE LIMABAMBA","CAF SIMPLIFICADO",null,null,null,null,null,null,"No cumple","Cumple",50,"Desfavorable","No Cumple","Cumple"]
["010606","AMAZONAS"," MUNICIPALIDAD DISTRITAL DE LONGAR","CAF SIMPLIFICADO",null,null,null,null,null,null,"Cumple","Cumple",100,"Favorable","Cumple","Cumple"]
["020513","ANCASH"," MUNICIPALIDAD DISTRITAL DE PACLLON","CAF SIMPLIFICADO",null,null,null,null,null,null,"Cumple","No cumple",50,"Desfavorable","Cumple","Cumple"]
["020515","ANCASH"," MUNICIPALIDAD DISTRITAL DE TICLLOS","CAF SIMPLIFICADO",null,null,null,null,null,null,"Cumple","Cumple",100,"Favorable","Cumple","Cumple"]
["020610","ANCASH"," MUNICIPALIDAD DISTRITAL DE TINCO","CAF SIMPLIFICADO",null,null,null,null,null,null,"Cumple","Cumple",100,"Favorable","Cumple","Cumple"]
["021101","ANCASH"," MUNICIPALIDAD PROVINCIAL DE HUARMEY","CAF SIMPLIFICADO",null,null,null,null,null,null,"No cumple","Cumple",50,"Desfavorable","Cumple","Cumple"]
["021506","ANCASH"," MUNICIPALIDAD DISTRITAL DE LACABAMBA","CAF SIMPLIFICADO",null,null,null,null,null,null,"Cumple","Cumple",100,"Favorable","Cumple","Cumple"]
["021508","ANCASH"," MUNICIPALIDAD DISTRITAL DE PALLASCA","CAF SIMPLIFICADO",null,null,null,null,null,null,"Cumple","Cumple",100,"Favorable","Cumple","Cumple"]
["021803","ANCASH"," MUNICIPALIDAD DISTRITAL DE COISHCO","CAF SIMPLIFICADO",null,null,null,null,null,null,"Cumple","Cumple",100,"Favorable","Cumple","Cumple"]
["021902","ANCASH"," MUNICIPALIDAD DISTRITAL DE ACOBAMBA","CAF SIMPLIFICADO",null,null,null,null,null,null,"Cumple","No cumple",50,"Desfavorable","Cumple","Cumple"]
["030101","APURIMAC"," MUNICIPALIDAD PROVINCIAL DE ABANCAY","CAF COMPLETO","Cumple","Cumple","No cumple","No cumple","No cumple","No cumple",null,null,33.333333333333329,"Desfavorable","No Cumple","Cumple"]
["030106","APURIMAC"," MUNICIPALIDAD DISTRITAL DE LAMBRAMA","CAF SIMPLIFICADO",null,null,null,null,null,null,"Cumple","Cumple",100,"Favorable","Cumple","Cumple"]
["030201","APURIMAC"," MUNICIPALIDAD PROVINCIAL DE ANDAHUAYLAS","CAF COMPLETO","Cumple","No cumple","Cumple","No cumple","No cumple","No cumple",null,null,33.333333333333329,"Desfavorable","No Cumple","Cumple"]
["030402","APURIMAC"," MUNICIPALIDAD DISTRITAL DE CAPAYA","CAF SIMPLIFICADO",null,null,null,null,null,null,"Cumple","No cumple",50,"Desfavorable","Cumple","Cumple"]
["030409","APURIMAC"," MUNICIPALIDAD DISTRITAL DE LUCRE","CAF SIMPLIFICADO",null,null,null,null,null,null,"No cumple","No cumple",0,"Desfavorable","Cumple","Cumple"]
["030413","APURIMAC"," MUNICIPALIDAD DISTRITAL DE SORAYA","CAF SIMPLIFICADO",null,null,null,null,null,null,"No cumple","Cumple",50,"Desfavorable","Cumple","Cumple"]
["030501","APURIMAC"," MUNICIPALIDAD PROVINCIAL DE COTABAMBAS - TAMBOBAMBA","CAF COMPLETO","Cumple","Cumple","No cumple","Cumple","Cumple","Cumple",null,null,83.333333333333343,"Favorable","No Cumple","Cumple"]
["030502","APURIMAC"," MUNICIPALIDAD DISTRITAL DE COTABAMBAS","CAF SIMPLIFICADO",null,null,null,null,null,null,"Cumple","Cumple",100,"Favorable","No Cumple","Cumple"]
["030503","APURIMAC"," MUNICIPALIDAD DISTRITAL DE COYLLURQUI","CAF COMPLETO","No cumple","Cumple","No cumple","Cumple","Cumple","No cumple",null,null,50,"Desfavorable","No Cumple","Cumple"]
["030601","APURIMAC"," MUNICIPALIDAD PROVINCIAL DE CHINCHEROS","CAF SIMPLIFICADO",null,null,null,null,null,null,"No cumple","Cumple",50,"Desfavorable","No Cumple","Cumple"]
["030701","APURIMAC"," MUNICIPALIDAD PROVINCIAL DE GRAU","CAF SIMPLIFICADO",null,null,null,null,null,null,"Cumple","No cumple",50,"Desfavorable","No Cumple","Cumple"]
["030708","APURIMAC"," MUNICIPALIDAD DISTRITAL DE PROGRESO","CAF SIMPLIFICADO",null,null,null,null,null,null,"No cumple","No cumple",0,"Desfavorable","No Cumple","Cumple"]
["040405","AREQUIPA"," MUNICIPALIDAD DISTRITAL DE CHILCAYMARCA","CAF SIMPLIFICADO",null,null,null,null,null,null,"No cumple","Cumple",50,"Desfavorable","Cumple","Cumple"]
["040701","AREQUIPA"," MUNICIPALIDAD PROVINCIAL DE ISLAY - MOLLENDO","CAF COMPLETO","Cumple","Cumple","No cumple","No cumple","No cumple","No cumple",null,null,33.333333333333329,"Desfavorable","No Cumple","Cumple"]
["040802","AREQUIPA"," MUNICIPALIDAD DISTRITAL DE ALCA","CAF SIMPLIFICADO",null,null,null,null,null,null,"Cumple","Cumple",100,"Favorable","Cumple","Cumple"]
["050104","AYACUCHO"," MUNICIPALIDAD DISTRITAL DE CARMEN ALTO","CAF SIMPLIFICADO",null,null,null,null,null,null,"No cumple","No cumple",0,"Desfavorable","Cumple","Cumple"]
["050106","AYACUCHO"," MUNICIPALIDAD DISTRITAL DE OCROS","CAF SIMPLIFICADO",null,null,null,null,null,null,"Cumple","No cumple",50,"Desfavorable","Cumple","Cumple"]
["050201","AYACUCHO"," MUNICIPALIDAD PROVINCIAL DE CANGALLO","CAF SIMPLIFICADO",null,null,null,null,null,null,"Cumple","Cumple",100,"Favorable","Cumple","Cumple"]
["050304","AYACUCHO"," MUNICIPALIDAD DISTRITAL DE SANTIAGO DE LUCANAMARCA","CAF SIMPLIFICADO",null,null,null,null,null,null,"Cumple","Cumple",100,"Favorable","Cumple","Cumple"]
["050405","AYACUCHO"," MUNICIPALIDAD DISTRITAL DE LURICOCHA","CAF SIMPLIFICADO",null,null,null,null,null,null,"No cumple","Cumple",50,"Desfavorable","No Cumple","Cumple"]
["050503","AYACUCHO"," MUNICIPALIDAD DISTRITAL DE AYNA","CAF SIMPLIFICADO",null,null,null,null,null,null,"No cumple","Cumple",50,"Desfavorable","No Cumple","Cumple"]
["050707","AYACUCHO"," MUNICIPALIDAD DISTRITAL DE SAN FRANCISCO DE RAVACAYCO","CAF SIMPLIFICADO",null,null,null,null,null,null,"Cumple","Cumple",100,"Favorable","Cumple","Cumple"]
["051001","AYACUCHO"," MUNICIPALIDAD PROVINCIAL DE VICTOR FAJARDO","CAF SIMPLIFICADO",null,null,null,null,null,null,"Cumple","Cumple",100,"Favorable","No Cumple","Cumple"]
["051108","AYACUCHO"," MUNICIPALIDAD DISTRITAL DE VISCHONGO","CAF SIMPLIFICADO",null,null,null,null,null,null,"No cumple","Cumple",50,"Desfavorable","No Cumple","Cumple"]
["060112","CAJAMARCA"," MUNICIPALIDAD DISTRITAL DE SAN JUAN","CAF SIMPLIFICADO",null,null,null,null,null,null,"No cumple","Cumple",50,"Desfavorable","No Cumple","Cumple"]
["060402","CAJAMARCA"," MUNICIPALIDAD DISTRITAL DE ANGUIA","CAF SIMPLIFICADO",null,null,null,null,null,null,"Cumple","Cumple",100,"Favorable","Cumple","Cumple"]
["060403","CAJAMARCA"," MUNICIPALIDAD DISTRITAL DE CHADIN","CAF SIMPLIFICADO",null,null,null,null,null,null,"Omiso","Omiso",null,"Omiso","No Cumple","Cumple"]
["060406","CAJAMARCA"," MUNICIPALIDAD DISTRITAL DE CHOROPAMPA","CAF SIMPLIFICADO",null,null,null,null,null,null,"No cumple","Cumple",50,"Desfavorable","Cumple","Cumple"]
["060413","CAJAMARCA"," MUNICIPALIDAD DISTRITAL DE PACCHA","CAF SIMPLIFICADO",null,null,null,null,null,null,"Omiso","Omiso",null,"Omiso","No Cumple","Cumple"]
["060414","CAJAMARCA"," MUNICIPALIDAD DISTRITAL DE PION","CAF SIMPLIFICADO",null,null,null,null,null,null,"No cumple","Cumple",50,"Desfavorable","No Cumple","Cumple"]
["061310","CAJAMARCA"," MUNICIPALIDAD DISTRITAL DE UTICYACU","CAF SIMPLIFICADO",null,null,null,null,null,null,"Cumple","No cumple",50,"Desfavorable","No Cumple","Cumple"]
["070101","PROV CONSTIT DEL CALLAO"," MUNICIPALIDAD PROVINCIAL DEL CALLAO","CAF COMPLETO","No cumple","Cumple","No cumple","No cumple","Cumple","Cumple",null,null,50,"Desfavorable","No Cumple","Cumple"]
["070102","PROV CONSTIT DEL CALLAO"," MUNICIPALIDAD DISTRITAL DE BELLAVISTA","CAF COMPLETO","Cumple","No cumple","No cumple","No cumple","No cumple","Cumple",null,null,33.333333333333329,"Desfavorable","No Cumple","Cumple"]
["070103","PROV CONSTIT DEL CALLAO"," MUNICIPALIDAD DISTRITAL DE CARMEN DE LA LEGUA REYNOSO","CAF COMPLETO","Cumple","No cumple","No cumple","No cumple","Cumple","No cumple",null,null,33.333333333333329,"Desfavorable","No Cumple","Cumple"]
["081102","CUSCO"," MUNICIPALIDAD DISTRITAL DE CAICAY","CAF SIMPLIFICADO",null,null,null,null,null,null,"Cumple","Cumple",100,"Favorable","Cumple","Cumple"]
["090202","HUANCAVELICA"," MUNICIPALIDAD DISTRITAL DE ANDABAMBA","CAF SIMPLIFICADO",null,null,null,null,null,null,"No cumple","No cumple",0,"Desfavorable","No Cumple","Cumple"]
["090204","HUANCAVELICA"," MUNICIPALIDAD DISTRITAL DE CAJA","CAF SIMPLIFICADO",null,null,null,null,null,null,"No cumple","No cumple",0,"Desfavorable","No Cumple","Cumple"]
["090302","HUANCAVELICA"," MUNICIPALIDAD DISTRITAL DE ANCHONGA","CAF SIMPLIFICADO",null,null,null,null,null,null,"No cumple","Cumple",50,"Desfavorable","No Cumple","Cumple"]
["090404","HUANCAVELICA"," MUNICIPALIDAD DISTRITAL DE CAPILLAS","CAF SIMPLIFICADO",null,null,null,null,null,null,"Cumple","Cumple",100,"Favorable","Cumple","Cumple"]
["100301","HUANUCO"," MUNICIPALIDAD PROVINCIAL DE DOS DE MAYO","CAF SIMPLIFICADO",null,null,null,null,null,null,"Omiso","Omiso",null,"Omiso","No Cumple","Cumple"]
["100601","HUANUCO"," MUNICIPALIDAD PROVINCIAL DE LEONCIO PRADO - RUPA RUPA","CAF COMPLETO","No cumple","Cumple","No cumple","No cumple","Cumple","Cumple",null,null,50,"Desfavorable","Cumple","Cumple"]
["100608","HUANUCO"," MUNICIPALIDAD DISTRITAL DE CASTILLO GRANDE","CAF SIMPLIFICADO",null,null,null,null,null,null,"No cumple","Cumple",50,"Desfavorable","Cumple","Cumple"]
["110101","ICA"," MUNICIPALIDAD PROVINCIAL DE ICA","CAF COMPLETO","Cumple","No cumple","No cumple","Cumple","No cumple","No cumple",null,null,33.333333333333329,"Desfavorable","No Cumple","Cumple"]
["110106","ICA"," MUNICIPALIDAD DISTRITAL DE PARCONA","CAF COMPLETO","Cumple","No cumple","No cumple","No cumple","Cumple","No cumple",null,null,33.333333333333329,"Desfavorable","No Cumple","Cumple"]
["110211","ICA"," MUNICIPALIDAD DISTRITAL DE TAMBO DE MORA","CAF SIMPLIFICADO",null,null,null,null,null,null,"Cumple","Cumple",100,"Favorable","Cumple","Cumple"]
["110402","ICA"," MUNICIPALIDAD DISTRITAL DE LLIPATA","CAF SIMPLIFICADO",null,null,null,null,null,null,"Cumple","Cumple",100,"Favorable","Cumple","Cumple"]
["110501","ICA"," MUNICIPALIDAD PROVINCIAL DE PISCO","CAF COMPLETO","Cumple","Cumple","No cumple","No cumple","No cumple","No cumple",null,null,33.333333333333329,"Desfavorable","No Cumple","Cumple"]
["110506","ICA"," MUNICIPALIDAD DISTRITAL DE SAN ANDRES","CAF SIMPLIFICADO",null,null,null,null,null,null,"Cumple","Cumple",100,"Favorable","No Cumple","Cumple"]
["120108","JUNIN"," MUNICIPALIDAD DISTRITAL DE CHONGOS ALTO","CAF SIMPLIFICADO",null,null,null,null,null,null,"Omiso","Omiso",null,"Omiso","No Cumple","Cumple"]
["120120","JUNIN"," MUNICIPALIDAD DISTRITAL DE HUASICANCHA","CAF SIMPLIFICADO",null,null,null,null,null,null,"No cumple","Cumple",50,"Desfavorable","No Cumple","Cumple"]
["120205","JUNIN"," MUNICIPALIDAD DISTRITAL DE COCHAS","CAF SIMPLIFICADO",null,null,null,null,null,null,"Omiso","Omiso",null,"Omiso","Cumple","Cumple"]
["120207","JUNIN"," MUNICIPALIDAD DISTRITAL DE HEROINAS TOLEDO","CAF SIMPLIFICADO",null,null,null,null,null,null,"Cumple","Cumple",100,"Favorable","Cumple","Cumple"]
["120402","JUNIN"," MUNICIPALIDAD DISTRITAL DE ACOLLA","CAF SIMPLIFICADO",null,null,null,null,null,null,"Cumple","Cumple",100,"Favorable","Cumple","Cumple"]
["130104","LA LIBERTAD"," MUNICIPALIDAD DISTRITAL DE HUANCHACO","CAF SIMPLIFICADO",null,null,null,null,null,null,"No cumple","Cumple",50,"Desfavorable","Cumple","Cumple"]
["130105","LA LIBERTAD"," MUNICIPALIDAD DISTRITAL DE LA ESPERANZA","CAF COMPLETO","Cumple","Cumple","No cumple","Cumple","Cumple","Cumple",null,null,83.333333333333343,"Favorable","Cumple","Cumple"]
["130106","LA LIBERTAD"," MUNICIPALIDAD DISTRITAL DE LAREDO","CAF SIMPLIFICADO",null,null,null,null,null,null,"No cumple","Cumple",50,"Desfavorable","Cumple","Cumple"]
["130207","LA LIBERTAD"," MUNICIPALIDAD DISTRITAL DE SANTIAGO DE CAO","CAF SIMPLIFICADO",null,null,null,null,null,null,"No cumple","Cumple",50,"Desfavorable","No Cumple","Cumple"]
["130702","LA LIBERTAD"," MUNICIPALIDAD DISTRITAL DE GUADALUPE","CAF COMPLETO","Cumple","Cumple","No cumple","No cumple","Cumple","No cumple",null,null,50,"Desfavorable","No Cumple","Cumple"]
["140101","LAMBAYEQUE"," MUNICIPALIDAD PROVINCIAL DE CHICLAYO","CAF COMPLETO","Cumple","No cumple","No cumple","Cumple","Cumple","Cumple",null,null,66.666666666666657,"Desfavorable","No Cumple","Cumple"]
["140104","LAMBAYEQUE"," MUNICIPALIDAD DISTRITAL DE ETEN PUERTO","CAF SIMPLIFICADO",null,null,null,null,null,null,"No cumple","No cumple",0,"Desfavorable","No Cumple","Cumple"]
["140105","LAMBAYEQUE"," MUNICIPALIDAD DISTRITAL DE JOSE LEONARDO ORTIZ","CAF COMPLETO","Cumple","Cumple","No cumple","Cumple","Cumple","No cumple",null,null,66.666666666666657,"Desfavorable","No Cumple","Cumple"]
["140106","LAMBAYEQUE"," MUNICIPALIDAD DISTRITAL DE LA VICTORIA","CAF COMPLETO","Cumple","No cumple","No cumple","No cumple","No cumple","No cumple",null,null,16.666666666666664,"Desfavorable","No Cumple","Cumple"]
["140111","LAMBAYEQUE"," MUNICIPALIDAD DISTRITAL DE PICSI","CAF SIMPLIFICADO",null,null,null,null,null,null,"Cumple","Cumple",100,"Favorable","No Cumple","No Cumple"]
["140116","LAMBAYEQUE"," MUNICIPALIDAD DISTRITAL DE CAYALTI","CAF SIMPLIFICADO",null,null,null,null,null,null,"Cumple","Cumple",100,"Favorable","Cumple","Cumple"]
["140118","LAMBAYEQUE"," MUNICIPALIDAD DISTRITAL DE POMALCA","CAF SIMPLIFICADO",null,null,null,null,null,null,"No cumple","No cumple",0,"Desfavorable","Cumple","Cumple"]
["140201","LAMBAYEQUE"," MUNICIPALIDAD PROVINCIAL DE FERREÑAFE","CAF COMPLETO","Cumple","Cumple","No cumple","Cumple","Cumple","Cumple",null,null,83.333333333333343,"Favorable","No Cumple","Cumple"]
["140205","LAMBAYEQUE"," MUNICIPALIDAD DISTRITAL DE PITIPO","CAF SIMPLIFICADO",null,null,null,null,null,null,"No cumple","Cumple",50,"Desfavorable","No Cumple","Cumple"]
["140310","LAMBAYEQUE"," MUNICIPALIDAD DISTRITAL DE SALAS","CAF SIMPLIFICADO",null,null,null,null,null,null,"Cumple","Cumple",100,"Favorable","Cumple","Cumple"]
["150102","LIMA"," MUNICIPALIDAD DISTRITAL DE ANCÓN","CAF COMPLETO","Cumple","Cumple","Cumple","No cumple","No cumple","Cumple",null,null,66.666666666666657,"Desfavorable","No Cumple","Cumple"]
["150104","LIMA"," MUNICIPALIDAD DISTRITAL DE BARRANCO","CAF COMPLETO","Cumple","Cumple","Cumple","Cumple","Cumple","Cumple",null,null,100,"Favorable","No Cumple","Cumple"]
["150105","LIMA"," MUNICIPALIDAD DISTRITAL DE BREÑA","CAF COMPLETO","Cumple","No cumple","Cumple","No cumple","Cumple","Cumple",null,null,66.666666666666657,"Desfavorable","No Cumple","Cumple"]
["150110","LIMA"," MUNICIPALIDAD DISTRITAL DE COMAS","CAF SIMPLIFICADO",null,null,null,null,null,null,"No cumple","Cumple",50,"Desfavorable","No Cumple","Cumple"]
["150111","LIMA"," MUNICIPALIDAD DISTRITAL DE EL AGUSTINO","CAF COMPLETO","Cumple","Cumple","No cumple","No cumple","No cumple","No cumple",null,null,33.333333333333329,"Desfavorable","No Cumple","Cumple"]
["150112","LIMA"," MUNICIPALIDAD DISTRITAL DE INDEPENDENCIA","CAF COMPLETO","Cumple","Cumple","No cumple","No cumple","No cumple","No cumple",null,null,33.333333333333329,"Desfavorable","No Cumple","Cumple"]
["150115","LIMA"," MUNICIPALIDAD DISTRITAL DE LA VICTORIA","CAF COMPLETO","Cumple","Cumple","Cumple","No cumple","Cumple","Cumple",null,null,83.333333333333343,"Favorable","No Cumple","Cumple"]
["150121","LIMA"," MUNICIPALIDAD DISTRITAL DE PUEBLO LIBRE","CAF COMPLETO","Cumple","No cumple","Cumple","Cumple","Cumple","Cumple",null,null,83.333333333333343,"Favorable","Cumple","Cumple"]
["150128","LIMA"," MUNICIPALIDAD DISTRITAL DEL RÍMAC","CAF SIMPLIFICADO",null,null,null,null,null,null,"Cumple","Cumple",100,"Favorable","Cumple","Cumple"]
["150129","LIMA"," MUNICIPALIDAD DISTRITAL DE SAN BARTOLO","CAF SIMPLIFICADO",null,null,null,null,null,null,"Cumple","No cumple",50,"Desfavorable","Cumple","Cumple"]
["150132","LIMA"," MUNICIPALIDAD DISTRITAL DE SAN JUAN DE LURIGANCHO","CAF COMPLETO","Cumple","Cumple","Cumple","No cumple","No cumple","No cumple",null,null,50,"Desfavorable","No Cumple","Cumple"]
["150133","LIMA"," MUNICIPALIDAD DISTRITAL DE SAN JUAN DE MIRAFLORES","CAF COMPLETO","No cumple","Cumple","No cumple","Cumple","Cumple","Cumple",null,null,66.666666666666657,"Desfavorable","No Cumple","Cumple"]
["150134","LIMA"," MUNICIPALIDAD DISTRITAL DE SAN LUIS","CAF COMPLETO","Cumple","Cumple","Cumple","No cumple","No cumple","Cumple",null,null,66.666666666666657,"Desfavorable","No Cumple","Cumple"]
["150135","LIMA"," MUNICIPALIDAD DISTRITAL DE SAN MARTÍN DE PORRES","CAF COMPLETO","Cumple","Cumple","No cumple","Cumple","No cumple","No cumple",null,null,50,"Desfavorable","No Cumple","Cumple"]
["150143","LIMA"," MUNICIPALIDAD DISTRITAL DE VILLA MARIA DEL TRIUNFO","CAF COMPLETO","Cumple","Cumple","Cumple","Cumple","No cumple","No cumple",null,null,66.666666666666657,"Desfavorable","No Cumple","Cumple"]
["150201","LIMA"," MUNICIPALIDAD PROVINCIAL DE BARRANCA","CAF SIMPLIFICADO",null,null,null,null,null,null,"Cumple","Cumple",100,"Favorable","Cumple","Cumple"]
["150202","LIMA"," MUNICIPALIDAD DISTRITAL DE PARAMONGA","CAF SIMPLIFICADO",null,null,null,null,null,null,"No cumple","Cumple",50,"Desfavorable","No Cumple","Cumple"]
["150205","LIMA"," MUNICIPALIDAD DISTRITAL DE SUPE PUERTO","CAF SIMPLIFICADO",null,null,null,null,null,null,"Cumple","No cumple",50,"Desfavorable","No Cumple","Cumple"]
["150510","LIMA"," MUNICIPALIDAD DISTRITAL DE NUEVO IMPERIAL","CAF SIMPLIFICADO",null,null,null,null,null,null,"Cumple","Cumple",100,"Favorable","Cumple","Cumple"]
["150601","LIMA"," MUNICIPALIDAD PROVINCIAL DE HUARAL","CAF COMPLETO","Cumple","Cumple","No cumple","No cumple","Cumple","Cumple",null,null,66.666666666666657,"Desfavorable","No Cumple","Cumple"]
["150605","LIMA"," MUNICIPALIDAD DISTRITAL DE CHANCAY","CAF COMPLETO","No cumple","Cumple","Cumple","Cumple","Cumple","Cumple",null,null,83.333333333333343,"Favorable","Cumple","Cumple"]
["150712","LIMA"," MUNICIPALIDAD DISTRITAL DE SAN PEDRO DE LARAOS","CAF SIMPLIFICADO",null,null,null,null,null,null,"Cumple","Cumple",100,"Favorable","Cumple","Cumple"]
["150716","LIMA"," MUNICIPALIDAD DISTRITAL DE SAN ANTONIO","CAF COMPLETO","No cumple","Cumple","No cumple","No cumple","No cumple","No cumple",null,null,16.666666666666664,"Desfavorable","Cumple","Cumple"]
["151009","LIMA"," MUNICIPALIDAD DISTRITAL DE CHOCOS","CAF SIMPLIFICADO",null,null,null,null,null,null,"Cumple","Cumple",100,"Favorable","Cumple","Cumple"]
["160301","LORETO"," MUNICIPALIDAD PROVINCIAL DE LORETO - NAUTA","CAF COMPLETO","No cumple","Cumple","No cumple","No cumple","No cumple","No cumple",null,null,16.666666666666664,"Desfavorable","No Cumple","Cumple"]
["160302","LORETO"," MUNICIPALIDAD DISTRITAL DE PARINARI","CAF SIMPLIFICADO",null,null,null,null,null,null,"No cumple","Cumple",50,"Desfavorable","No Cumple","Cumple"]
["160305","LORETO"," MUNICIPALIDAD DISTRITAL DE URARINAS","CAF SIMPLIFICADO",null,null,null,null,null,null,"Cumple","No cumple",50,"Desfavorable","Cumple","Cumple"]
["160502","LORETO"," MUNICIPALIDAD DISTRITAL DE ALTO TAPICHE","CAF SIMPLIFICADO",null,null,null,null,null,null,"No cumple","No cumple",0,"Desfavorable","No Cumple","Cumple"]
["190103","PASCO"," MUNICIPALIDAD DISTRITAL DE HUARIACA","CAF SIMPLIFICADO",null,null,null,null,null,null,"Cumple","Cumple",100,"Favorable","Cumple","Cumple"]
["190104","PASCO"," MUNICIPALIDAD DISTRITAL DE HUAYLLAY","CAF COMPLETO","No cumple","Cumple","No cumple","No cumple","No cumple","No cumple",null,null,16.666666666666664,"Desfavorable","Cumple","Cumple"]
["190110","PASCO"," MUNICIPALIDAD DISTRITAL DE TICLACAYAN","CAF SIMPLIFICADO",null,null,null,null,null,null,"Cumple","No cumple",50,"Desfavorable","No Cumple","Cumple"]
["190111","PASCO"," MUNICIPALIDAD DISTRITAL DE TINYAHUARCO","CAF SIMPLIFICADO",null,null,null,null,null,null,"Cumple","No cumple",50,"Desfavorable","No Cumple","Cumple"]
["190302","PASCO"," MUNICIPALIDAD DISTRITAL DE CHONTABAMBA","CAF SIMPLIFICADO",null,null,null,null,null,null,"Omiso","Omiso",null,"Omiso","Cumple","Cumple"]
["200108","PIURA"," MUNICIPALIDAD DISTRITAL DE EL TALLAN","CAF SIMPLIFICADO",null,null,null,null,null,null,"No cumple","No cumple",0,"Desfavorable","Cumple","Cumple"]
["200109","PIURA"," MUNICIPALIDAD DISTRITAL DE LA ARENA","CAF SIMPLIFICADO",null,null,null,null,null,null,"Cumple","Cumple",100,"Favorable","Cumple","Cumple"]
["200501","PIURA"," MUNICIPALIDAD PROVINCIAL DE PAITA","CAF COMPLETO","Cumple","Cumple","No cumple","No cumple","No cumple","No cumple",null,null,33.333333333333329,"Desfavorable","Cumple","Cumple"]
["200602","PIURA"," MUNICIPALIDAD DISTRITAL DE BELLAVISTA","CAF SIMPLIFICADO",null,null,null,null,null,null,"No cumple","No cumple",0,"Desfavorable","No Cumple","Cumple"]
["200804","PIURA"," MUNICIPALIDAD DISTRITAL DE CRISTO NOS VALGA","CAF SIMPLIFICADO",null,null,null,null,null,null,"Omiso","Omiso",null,"Omiso","Cumple","Cumple"]
["210901","PUNO"," MUNICIPALIDAD PROVINCIAL DE MOHO","CAF SIMPLIFICADO",null,null,null,null,null,null,"No cumple","Cumple",50,"Desfavorable","Cumple","Cumple"]
["220602","SAN MARTIN"," MUNICIPALIDAD DISTRITAL DE CAMPANILLA","CAF SIMPLIFICADO",null,null,null,null,null,null,"No cumple","Cumple",50,"Desfavorable","No Cumple","Cumple"]
["220701","SAN MARTIN"," MUNICIPALIDAD PROVINCIAL DE PICOTA","CAF SIMPLIFICADO",null,null,null,null,null,null,"Cumple","Cumple",100,"Favorable","Cumple","Cumple"]
["220808","SAN MARTIN"," MUNICIPALIDAD DISTRITAL DE YORONGOS","CAF SIMPLIFICADO",null,null,null,null,null,null,"Cumple","Cumple",100,"Favorable","Cumple","Cumple"]
["230102","TACNA"," MUNICIPALIDAD DISTRITAL DE ALTO DE LA ALIANZA","CAF COMPLETO","Cumple","Cumple","Cumple","No cumple","No cumple","No cumple",null,null,50,"Desfavorable","No Cumple","Cumple"]
["230104","TACNA"," MUNICIPALIDAD DISTRITAL DE CIUDAD NUEVA","CAF COMPLETO","No cumple","Cumple","No cumple","Cumple","No cumple","No cumple",null,null,33.333333333333329,"Desfavorable","Cumple","Cumple"]
["230108","TACNA"," MUNICIPALIDAD DISTRITAL DE POCOLLAY","CAF SIMPLIFICADO",null,null,null,null,null,null,"Cumple","Cumple",100,"Favorable","Cumple","Cumple"]
["230203","TACNA"," MUNICIPALIDAD DISTRITAL DE CAMILACA","CAF SIMPLIFICADO",null,null,null,null,null,null,"Cumple","Cumple",100,"Favorable","Cumple","Cumple"]
["230206","TACNA"," MUNICIPALIDAD DISTRITAL DE QUILAHUANI","CAF SIMPLIFICADO",null,null,null,null,null,null,"Cumple","Cumple",100,"Favorable","No Cumple","Cumple"]
["230302","TACNA"," MUNICIPALIDAD DISTRITAL DE ILABAYA","CAF COMPLETO","No cumple","Cumple","Cumple","Cumple","No cumple","No cumple",null,null,50,"Desfavorable","No Cumple","Cumple"]
["250105","UCAYALI"," MUNICIPALIDAD DISTRITAL DE YARINACOCHA","CAF COMPLETO","No cumple","Cumple","No cumple","No cumple","No cumple","No cumple",null,null,16.666666666666664,"Desfavorable","No Cumple","Cumple"]
["250301","UCAYALI"," MUNICIPALIDAD PROVINCIAL DE PADRE ABAD - AGUAITIA","CAF SIMPLIFICADO",null,null,null,null,null,null,"No cumple","No cumple",0,"Desfavorable","No Cumple","Cumple"]
["040000","AREQUIPA"," GOBIERNO REGIONAL DE AREQUIPA","CAF COMPLETO",null,null,"Cumple","No cumple","No cumple","Cumple",null,null,50,"Desfavorable","Cumple","Cumple"]
["060000","CAJAMARCA"," GOBIERNO REGIONAL DE CAJAMARCA","CAF SIMPLIFICADO",null,null,null,null,null,null,"Cumple","Cumple",100,"Favorable","Cumple","Cumple"]
["130000","LA LIBERTAD"," GOBIERNO REGIONAL DE LA LIBERTAD","CAF SIMPLIFICADO",null,null,null,null,null,null,"Cumple","Cumple",100,"Favorable","Cumple","Cumple"]
["150100","LIMA"," REGION LIMA METROPOLITANA","CAF SIMPLIFICADO",null,null,null,null,null,null,"No cumple","Cumple",50,"Desfavorable","Cumple","Cumple"]
["180000","MOQUEGUA"," GOBIERNO REGIONAL DE MOQUEGUA","CAF COMPLETO",null,null,"No cumple","No cumple","No cumple","No cumple",null,null,0,"Desfavorable","No Cumple","Cumple"]
["200000","PIURA"," GOBIERNO REGIONAL DE PIURA","CAF COMPLETO",null,null,"No cumple","Cumple","Cumple","Cumple",null,null,75,"Desfavorable","No Cumple","Cumple"]
["210000","PUNO"," GOBIERNO REGIONAL DE PUNO","CAF COMPLETO",null,null,"Cumple","No cumple","No cumple","No cumple",null,null,25,"Desfavorable","Cumple","Cumple"]

{"sheet":"ANEXO 1 GL","index":10,"n_rows":118,"n_cols":17,"rows_kept":118,"cut":false,"hidden":false,"merged":[[114,0,114,16],[3,0,3,16],[5,0,6,0],[5,1,6,1],[5,2,6,2],[5,3,6,3],[5,4,6,4],[5,5,5,12],[5,13,6,13],[5,14,6,14],[5,15,6,15],[5,16,6,16]]}
["Anexo N° 1: Cumplimiento de los Compromisos Fiscales contenidos en el documento \"Compromisos de Ajuste Fiscal\" 2025"]
["Gobiernos Locales"]
[]
["CAF Simplificado aplica a los GL que incumplieron las reglas fiscales pertenecientes al primer grupo de la Tipología de la situación fiscal (con promedio de Ingresos Corrientes Totales de los últimos 04 años iguales o superiores a 2300 UIT anuales) con incumplimientos Leves y a los GL pertenecientes al segundo grupo (con promedio de Ingresos Corrientes Totales de los últimos 04 años inferiores a 2300 UIT anuales) con incumplimientos Muy Graves, Graves o Leves. El resto de GL elabora el CAF General."]
[]
["Nº","UBIGEO","DEPARTAMENTO","MUNICIPALIDAD","VERSIÓN","CUMPLIMIENTO DE LOS COMPROMISOS DE AJUSTE FISCAL",null,null,null,null,null,null,null,"LOGRO 9/\n(%)","EVALUACIÓN","REGLA FISCAL 10/\nSDT","REGLAS FISCAL 11/\nACC"]
[null,null,null,null,null,"CF 1 1/","CF2 2/","CF 3 3/","CF 4 4/","CF 5 5/","CF 6 6/","CF 7 7/","CF 8 8/"]
[1,"030101","APURÍMAC","MP DE ABANCAY","General","Cumple","No Cumple","No Cumple","No Cumple","Cumple","Cumple","No aplica","No aplica",0.60000000000000009,"Desfavorable","No Cumple","Si Cumple"]
[2,"030201","APURÍMAC","MP DE ANDAHUAYLAS","General","Cumple","Cumple","Cumple","No Cumple","Cumple","Cumple","No aplica","No aplica",0.89999999999999991,"Favorable","No Cumple","Si Cumple"]
[3,"030601","APURÍMAC","MP DE CHINCHEROS","General","Cumple","Cumple","Cumple","Cumple","No Cumple","Cumple","No aplica","No aplica",0.8,"Favorable","No Cumple","Si Cumple"]
[4,"030502","APURÍMAC","MD DE COTABAMBAS","General","Cumple","No Cumple","Cumple","No Cumple","No Cumple","No Cumple","No aplica","No aplica",0.30000000000000004,"Desfavorable","No Cumple","Si Cumple"]
[5,"030701","APURÍMAC","MP DE GRAU - CHUQUIBAMBILLA","General","Cumple","No Cumple","Cumple","No Cumple","Cumple","Cumple","No aplica","No aplica",0.7,"Desfavorable","No Cumple","Si Cumple"]
[6,"051101","AYACUCHO","MP DE VILCAS HUAMAN","General","No Cumple","Cumple","No Cumple","Cumple","Cumple","No Cumple","No aplica","No aplica",0.5,"Desfavorable","No Cumple","Si Cumple"]
[7,"070102","CALLAO","MD DE BELLAVISTA","General","Cumple","No Cumple","No Cumple","Cumple","Cumple","Cumple","No aplica","No aplica",0.7,"Desfavorable","Si Cumple","Si Cumple"]
[8,"070101","CALLAO","MP DEL CALLAO","General","Cumple","Cumple","Cumple","No Cumple","Cumple","Cumple","No aplica","No aplica",0.89999999999999991,"Favorable","No Cumple","Si Cumple"]
[9,"070103","CALLAO","MD DE CARMEN DE LA LEGUA REYNOSO","General","Cumple","Cumple","Cumple","No Cumple","Cumple","Cumple","No aplica","No aplica",0.89999999999999991,"Favorable","No Cumple","Si Cumple"]
[10,"110501","ICA","MP DE PISCO","General","No Cumple","Cumple","No Cumple","Cumple","Cumple","No Cumple","No aplica","No aplica",0.5,"Desfavorable","No Cumple","Si Cumple"]
[11,"130201","LA LIBERTAD","MP DE ASCOPE","General","No Cumple","No Cumple","Cumple","No Cumple","No Cumple","No Cumple","No aplica","No aplica",0.1,"Desfavorable","No Cumple","Si Cumple"]
[12,"130702","LA LIBERTAD","MD DE GUADALUPE","General","No Cumple","No Cumple","Cumple","Cumple","No Cumple","No Cumple","No aplica","No aplica",0.2,"Desfavorable","No Cumple","Si Cumple"]
[13,"130701","LA LIBERTAD","MP DE PACASMAYO - SAN PEDRO DE LLOC","General","Cumple","No Cumple","Cumple","Cumple","No Cumple","No Cumple","No aplica","No aplica",0.4,"Desfavorable","No Cumple","Si Cumple"]
[14,"140101","LAMBAYEQUE","MP DE CHICLAYO","General","No Cumple","No Cumple","Cumple","No Cumple","Cumple","No Cumple","No aplica","No aplica",0.30000000000000004,"Desfavorable","No Cumple","No Cumple"]
[15,"140105","LAMBAYEQUE","MD DE JOSE LEONARDO ORTIZ","General","No Cumple","No Cumple","No Cumple","No Cumple","Cumple","Cumple","No aplica","No aplica",0.4,"Desfavorable","No Cumple","Si Cumple"]
[16,"140106","LAMBAYEQUE","MD DE LA VICTORIA","General","Cumple","No Cumple","No Cumple","No Cumple","No Cumple","Cumple","No aplica","No aplica",0.4,"Desfavorable","Si Cumple","Si Cumple"]
[17,"140201","LAMBAYEQUE","MP DE FERREÑAFE","General",null,null,null,null,null,null,"No aplica","No aplica",null,"OMISO","No Cumple","Si Cumple"]
[18,"150501","LIMA","MP DE CAÑETE - SAN VICENTE DE CAÑETE","General","Cumple","No Cumple","No Cumple","No Cumple","Cumple","Cumple","No aplica","No aplica",0.60000000000000009,"Desfavorable","No Cumple","Si Cumple"]
[19,"150102","LIMA","MD DE ANCON","General","No Cumple","Cumple","No Cumple","Cumple","Cumple","Cumple","No aplica","No aplica",0.7,"Desfavorable","No Cumple","Si Cumple"]
[20,"150104","LIMA","MD DE BARRANCO","General","Cumple","Cumple","No Cumple","No Cumple","Cumple","Cumple","No aplica","No aplica",0.8,"Favorable","No Cumple","Si Cumple"]
[21,"150105","LIMA","MD DE BREÑA","General","Cumple","Cumple","Cumple","Cumple","Cumple","Cumple","No aplica","No aplica",1,"Favorable","No Cumple","Si Cumple"]
[22,"150110","LIMA","MD DE COMAS","General","No Cumple","Cumple","No Cumple","Cumple","Cumple","Cumple","No aplica","No aplica",0.7,"Desfavorable","Si Cumple","Si Cumple"]
[23,"150115","LIMA","MD DE LA VICTORIA","General","Cumple","Cumple","Cumple","No Cumple","Cumple","No Cumple","No aplica","No aplica",0.7,"Desfavorable","No Cumple","Si Cumple"]
[24,"150121","LIMA","MD DE PUEBLO LIBRE","General","Cumple","Cumple","Cumple","No Cumple","Cumple","Cumple","No aplica","No aplica",0.89999999999999991,"Favorable","No Cumple","Si Cumple"]
[25,"150128","LIMA","MD DE RIMAC","General","No Cumple","No Cumple","No Cumple","Cumple","No Cumple","No Cumple","No aplica","No aplica",0.1,"Desfavorable","No Cumple","Si Cumple"]
[26,"150133","LIMA","MD DE SAN JUAN DE MIRAFLORES","General","Cumple","Cumple","No Cumple","Cumple","Cumple","Cumple","No aplica","No aplica",0.89999999999999991,"Favorable","No Cumple","Si Cumple"]
[27,"150135","LIMA","MD DE SAN MARTIN DE PORRES","General","Cumple","Cumple","Cumple","No Cumple","Cumple","Cumple","No aplica","No aplica",0.89999999999999991,"Favorable","No Cumple","Si Cumple"]
[28,"200602","PIURA","MD DE BELLAVISTA","General","No Cumple","Cumple","Cumple","Cumple","No Cumple","No Cumple","No aplica","No aplica",0.4,"Desfavorable","No Cumple","Si Cumple"]
[29,"240301","TUMBES","MP DE ZARUMILLA","General",null,null,null,null,null,null,"No aplica","No aplica",null,"OMISO","No Cumple","Si Cumple"]
[30,"010105","AMAZONAS","MD DE CHILIQUIN","Simplificado","No aplica","No aplica","No aplica","No aplica","No Cumple","No aplica","Cumple","No Cumple",0.2,"Desfavorable","Si Cumple","No Cumple"]
[31,"010108","AMAZONAS","MD DE HUANCAS","Simplificado","No aplica","No aplica","No aplica","No aplica","No Cumple","No aplica","Cumple","No Cumple",0.2,"Desfavorable","Si Cumple","No Cumple"]
[32,"010109","AMAZONAS","MD DE JALCA GRANDE","Simplificado","No aplica","No aplica","No aplica","No aplica","No Cumple","No aplica","Cumple","No Cumple",0.6,"Desfavorable","Si Cumple","No Cumple"]
[33,"010120","AMAZONAS","MD DE SOLOCO","Simplificado","No aplica","No aplica","No aplica","No aplica","Cumple","No aplica","No Cumple","Cumple",0.4,"Desfavorable","No Cumple","Si Cumple"]
[34,"010515","AMAZONAS","MD DE PROVIDENCIA","Simplificado","No aplica","No aplica","No aplica","No aplica","Cumple","No aplica","Cumple","Cumple",1,"Favorable","Si Cumple","Si Cumple"]
[35,"010604","AMAZONAS","MD DE HUAMBO","Simplificado","No aplica","No aplica","No aplica","No aplica","No Cumple","No aplica","Cumple","Cumple",0.8,"Favorable","Si Cumple","Si Cumple"]
[36,"010605","AMAZONAS","MD DE LIMABAMBA","Simplificado","No aplica","No aplica","No aplica","No aplica",null,"No aplica",null,null,null,"OMISO","No Cumple","Si Cumple"]
[37,"010606","AMAZONAS","MD DE LONGAR","Simplificado","No aplica","No aplica","No aplica","No aplica","Cumple","No aplica","No Cumple","Cumple",0.4,"Desfavorable","No Cumple","Si Cumple"]
[38,"010707","AMAZONAS","MD DE YAMON","Simplificado","No aplica","No aplica","No aplica","No aplica","No Cumple","No aplica","Cumple","Cumple",0.8,"Favorable","Si Cumple","Si Cumple"]
[39,"020502","ÁNCASH","MD DE ABELARDO PARDO LEZAMETA","Simplificado","No aplica","No aplica","No aplica","No aplica","No Cumple","No aplica","Cumple","Cumple",0.8,"Favorable","Si Cumple","Si Cumple"]
[40,"020503","ÁNCASH","MD DE ANTONIO RAYMONDI","Simplificado","No aplica","No aplica","No aplica","No aplica","No Cumple","No aplica","Cumple","No Cumple",0.2,"Desfavorable","Si Cumple","No Cumple"]
[41,"022007","ÁNCASH","MD DE SHUPLUY","Simplificado","No aplica","No aplica","No aplica","No aplica","Cumple","No aplica","Cumple","Cumple",1,"Favorable","Si Cumple","Si Cumple"]
[42,"030406","APURÍMAC","MD DE COTARUSE","Simplificado","No aplica","No aplica","No aplica","No aplica","No Cumple","No aplica","No Cumple","Cumple",0.2,"Desfavorable","No Cumple","Si Cumple"]
[43,"030411","APURÍMAC","MD DE SAN JUAN DE CHACÑA","Simplificado","No aplica","No aplica","No aplica","No aplica","No Cumple","No aplica","Cumple","Cumple",0.8,"Favorable","Si Cumple","Si Cumple"]
[44,"030602","APURÍMAC","MD DE ANCO HUALLO","Simplificado","No aplica","No aplica","No aplica","No aplica","No Cumple","No aplica","Cumple","Cumple",0.8,"Favorable","Si Cumple","Si Cumple"]
[45,"030708","APURÍMAC","MD DE PROGRESO","Simplificado","No aplica","No aplica","No aplica","No aplica","No Cumple","No aplica","No Cumple","Cumple",0.2,"Desfavorable","No Cumple","Si Cumple"]
[46,"040301","AREQUIPA","MP DE CARAVELI","Simplificado","No aplica","No aplica","No aplica","No aplica","No Cumple","No aplica","Cumple","Cumple",0.8,"Favorable","Si Cumple","Si Cumple"]
[47,"040312","AREQUIPA","MD DE QUICACHA","Simplificado","No aplica","No aplica","No aplica","No aplica","No Cumple","No aplica","Cumple","Cumple",0.8,"Favorable","Si Cumple","Si Cumple"]
[48,"050412","AYACUCHO","MD DE CHACA","Simplificado","No aplica","No aplica","No aplica","No aplica","No Cumple","No aplica","Cumple","Cumple",0.8,"Favorable","Si Cumple","Si Cumple"]
[49,"050503","AYACUCHO","MD DE AYNA","Simplificado","No aplica","No aplica","No aplica","No aplica","No Cumple","No aplica","No Cumple","Cumple",0.2,"Desfavorable","No Cumple","Si Cumple"]
[50,"051001","AYACUCHO","MP DE VICTOR FAJARDO - HUANCAPI","Simplificado","No aplica","No aplica","No aplica","No aplica","No Cumple","No aplica","No Cumple","Cumple",0.2,"Desfavorable","No Cumple","Si Cumple"]
[51,"051108","AYACUCHO","MD DE VISCHONGO","Simplificado","No aplica","No aplica","No aplica","No aplica","Cumple","No aplica","No Cumple","Cumple",0.4,"Desfavorable","No Cumple","Si Cumple"]
[52,"060112","CAJAMARCA","MD DE SAN JUAN","Simplificado","No aplica","No aplica","No aplica","No aplica","No Cumple","No aplica","Cumple","Cumple",0.8,"Favorable","Si Cumple","Si Cumple"]
[53,"060410","CAJAMARCA","MD DE LAJAS","Simplificado","No aplica","No aplica","No aplica","No aplica","No Cumple","No aplica","No Cumple","Cumple",0.2,"Desfavorable","No Cumple","Si Cumple"]
[54,"060805","CAJAMARCA","MD DE HUABAL","Simplificado","No aplica","No aplica","No aplica","No aplica","No Cumple","No aplica","No Cumple","Cumple",0.2,"Desfavorable","No Cumple","Si Cumple"]
[55,"061110","CAJAMARCA","MD DE SAN GREGORIO","Simplificado","No aplica","No aplica","No aplica","No aplica","No Cumple","No aplica","Cumple","Cumple",0.8,"Favorable","Si Cumple","Si Cumple"]
[56,"061308","CAJAMARCA","MD DE SAUCEPAMPA","Simplificado","No aplica","No aplica","No aplica","No aplica","No Cumple","No aplica","No Cumple","Cumple",0.2,"Desfavorable","No Cumple","Si Cumple"]
[57,"090204","HUANCAVELICA","MD DE CAJA","Simplificado","No aplica","No aplica","No aplica","No aplica","No Cumple","No aplica","No Cumple","Cumple",0.2,"Desfavorable","No Cumple","Si Cumple"]
[58,"090718","HUANCAVELICA","MD DE TINTAY PUNCU","Simplificado","No aplica","No aplica","No aplica","No aplica","No Cumple","No aplica","Cumple","Cumple",0.8,"Favorable","Si Cumple","Si Cumple"]
[59,"100203","HUÁNUCO","MD DE COLPAS","Simplificado","No aplica","No aplica","No aplica","No aplica","No Cumple","No aplica","Cumple","Cumple",0.8,"Favorable","Si Cumple","Si Cumple"]
[60,"100301","HUÁNUCO","MP DE DOS DE MAYO - LA UNION","Simplificado","No aplica","No aplica","No aplica","No aplica","No Cumple","No aplica","No Cumple","Cumple",0.2,"Desfavorable","No Cumple","Si Cumple"]
[61,"100403","HUÁNUCO","MD DE COCHABAMBA","Simplificado","No aplica","No aplica","No aplica","No aplica","No Cumple","No aplica","Cumple","Cumple",0.8,"Favorable","Si Cumple","Si Cumple"]
[62,"100506","HUÁNUCO","MD DE MIRAFLORES","Simplificado","No aplica","No aplica","No aplica","No aplica","No Cumple","No aplica","Cumple","Cumple",0.8,"Favorable","Si Cumple","Si Cumple"]
[63,"100107","HUÁNUCO","MD DE SAN FRANCISCO DE CAYRAN","Simplificado","No aplica","No aplica","No aplica","No aplica","No Cumple","No aplica","Cumple","Cumple",0.8,"Favorable","Si Cumple","Si Cumple"]
[64,"120303","JUNÍN","MD DE PICHANAQUI","Simplificado","No aplica","No aplica","No aplica","No aplica","No Cumple","No aplica","Cumple","Cumple",0.8,"Favorable","Si Cumple","Si Cumple"]
[65,"120108","JUNÍN","MD DE CHONGOS ALTO","Simplificado","No aplica","No aplica","No aplica","No aplica","No Cumple","No aplica","No Cumple","Cumple",0.2,"Desfavorable","No Cumple","Si Cumple"]
[66,"120112","JUNÍN","MD DE COLCA","Simplificado","No aplica","No aplica","No aplica","No aplica","No Cumple","No aplica","Cumple","Cumple",0.8,"Favorable","Si Cumple","Si Cumple"]
[67,"120119","JUNÍN","MD DE HUANCAN","Simplificado","No aplica","No aplica","No aplica","No aplica","Cumple","No aplica","Cumple","Cumple",1,"Favorable","Si Cumple","Si Cumple"]
[68,"120120","JUNÍN","MD DE HUASICANCHA","Simplificado","No aplica","No aplica","No aplica","No aplica","No Cumple","No aplica","Cumple","Cumple",0.8,"Favorable","Si Cumple","Si Cumple"]
[69,"120126","JUNÍN","MD DE PUCARA","Simplificado","No aplica","No aplica","No aplica","No aplica","Cumple","No aplica","Cumple","Cumple",1,"Favorable","Si Cumple","Si Cumple"]
[70,"120136","JUNÍN","MD DE VIQUES","Simplificado","No aplica","No aplica","No aplica","No aplica","No Cumple","No aplica","Cumple","Cumple",0.8,"Favorable","Si Cumple","Si Cumple"]
[71,"120407","JUNÍN","MD DE EL MANTARO","Simplificado","No aplica","No aplica","No aplica","No aplica","No Cumple","No aplica","Cumple","Cumple",0.8,"Favorable","Si Cumple","Si Cumple"]
[72,"140116","LAMBAYEQUE","MD DE CAYALTI","Simplificado","No aplica","No aplica","No aplica","No aplica","Cumple","No aplica","Cumple","Cumple",1,"Favorable","Si Cumple","Si Cumple"]
[73,"140102","LAMBAYEQUE","MD DE CHONGOYAPE","Simplificado","No aplica","No aplica","No aplica","No aplica","Cumple","No aplica","Cumple","Cumple",1,"Favorable","Si Cumple","Si Cumple"]
[74,"140104","LAMBAYEQUE","MD DE ETEN PUERTO","Simplificado","No aplica","No aplica","No aplica","No aplica","No Cumple","No aplica","Cumple","Cumple",0.8,"Favorable","No Cumple","Si Cumple"]
[75,"140108","LAMBAYEQUE","MD DE MONSEFU","Simplificado","No aplica","No aplica","No aplica","No aplica","No Cumple","No aplica","Cumple","Cumple",0.8,"Favorable","No Cumple","Si Cumple"]
[76,"140111","LAMBAYEQUE","MD DE PICSI","Simplificado","No aplica","No aplica","No aplica","No aplica","Cumple","No aplica","No Cumple","Cumple",0.4,"Desfavorable","No Cumple","Si Cumple"]
[77,"140118","LAMBAYEQUE","MD DE POMALCA","Simplificado","No aplica","No aplica","No aplica","No aplica",null,"No aplica",null,null,null,"OMISO","Si Cumple","Si Cumple"]
[78,"140119","LAMBAYEQUE","MD DE PUCALA","Simplificado","No aplica","No aplica","No aplica","No aplica","Cumple","No aplica","Cumple","No Cumple",0.4,"Desfavorable","Si Cumple","No Cumple"]
[79,"140113","LAMBAYEQUE","MD DE REQUE","Simplificado","No aplica","No aplica","No aplica","No aplica","Cumple","No aplica","Cumple","No Cumple",0.4,"Desfavorable","Si Cumple","No Cumple"]
[80,"140205","LAMBAYEQUE","MD DE PITIPO","Simplificado","No aplica","No aplica","No aplica","No aplica","Cumple","No aplica","No Cumple","No Cumple",0.2,"Desfavorable","No Cumple","No Cumple"]
[81,"140309","LAMBAYEQUE","MD DE PACORA","Simplificado","No aplica","No aplica","No aplica","No aplica","Cumple","No aplica","Cumple","No Cumple",0.4,"Desfavorable","Si Cumple","No Cumple"]
[82,"150202","LIMA","MD DE PARAMONGA","Simplificado","No aplica","No aplica","No aplica","No aplica","No Cumple","No aplica","Cumple","Cumple",0.8,"Favorable","No Cumple","Si Cumple"]
[83,"150205","LIMA","MD DE SUPE PUERTO","Simplificado","No aplica","No aplica","No aplica","No aplica","Cumple","No aplica","No Cumple","Cumple",0.4,"Desfavorable","No Cumple","Si Cumple"]
[84,"150402","LIMA","MD DE ARAHUAY","Simplificado","No aplica","No aplica","No aplica","No aplica","Cumple","No aplica","Cumple","No Cumple",0.8,"Favorable","Si Cumple","No Cumple"]
[85,"150405","LIMA","MD DE LACHAQUI","Simplificado","No aplica","No aplica","No aplica","No aplica","No Cumple","No aplica","Cumple","Cumple",0.8,"Favorable","Si Cumple","Si Cumple"]
[86,"150603","LIMA","MD DE ATAVILLOS BAJO","Simplificado","No aplica","No aplica","No aplica","No aplica","No Cumple","No aplica","Cumple","Cumple",0.8,"Favorable","Si Cumple","Si Cumple"]
[87,"150803","LIMA","MD DE CALETA DE CARQUIN","Simplificado","No aplica","No aplica","No aplica","No aplica","No Cumple","No aplica","No Cumple","Cumple",0.2,"Desfavorable","No Cumple","Si Cumple"]
[88,"150112","LIMA","MD DE INDEPENDENCIA","Simplificado","No aplica","No aplica","No aplica","No aplica","Cumple","No aplica","Cumple","No Cumple",0.8,"Favorable","Si Cumple","No Cumple"]
[89,"150134","LIMA","MD DE SAN LUIS","Simplificado","No aplica","No aplica","No aplica","No aplica",null,"No aplica",null,null,null,"OMISO","Si Cumple","Si Cumple"]
[90,"151004","LIMA","MD DE AYAVIRI","Simplificado","No aplica","No aplica","No aplica","No aplica","No Cumple","No aplica","Cumple","No Cumple",0.2,"Desfavorable","Si Cumple","No Cumple"]
[91,"151005","LIMA","MD DE AZANGARO","Simplificado","No aplica","No aplica","No aplica","No aplica","No Cumple","No aplica","Cumple","Cumple",0.8,"Favorable","Si Cumple","Si Cumple"]
[92,"151016","LIMA","MD DE HUANTAN","Simplificado","No aplica","No aplica","No aplica","No aplica",null,"No aplica",null,null,null,"OMISO","Si Cumple","No Cumple"]
[93,"170302","MADRE DE DIOS","MD DE IBERIA","Simplificado","No aplica","No aplica","No aplica","No aplica","No Cumple","No aplica","Cumple","Cumple",0.8,"Favorable","Si Cumple","Si Cumple"]
[94,"170104","MADRE DE DIOS","MD DE LABERINTO","Simplificado","No aplica","No aplica","No aplica","No aplica","No Cumple","No aplica","Cumple","Cumple",0.8,"Favorable","Si Cumple","Si Cumple"]
[95,"190204","PASCO","MD DE PAUCAR","Simplificado","No aplica","No aplica","No aplica","No aplica","Cumple","No aplica","Cumple","Cumple",1,"Favorable","Si Cumple","Si Cumple"]
[96,"190110","PASCO","MD DE TICLACAYAN","Simplificado","No aplica","No aplica","No aplica","No aplica","No Cumple","No aplica","No Cumple","Cumple",0.2,"Desfavorable","No Cumple","Si Cumple"]
[97,"230402","TACNA","MD DE HEROES ALBARRACIN-CHUCATAMANI","Simplificado","No aplica","No aplica","No aplica","No aplica",null,"No aplica",null,null,null,"OMISO","Si Cumple","Si Cumple"]
[98,"250401","UCAYALI","MP DE PURUS","Simplificado","No aplica","No aplica","No aplica","No aplica","No Cumple","No aplica","No Cumple","Cumple",0.2,"Desfavorable","No Cumple","Si Cumple"]
[]
["1/ CF 1: Incremento de ingresos de recaudación propia"]
["2/ CF 2: Incremento del procentaje de ingresos por arbitrios de limpieza, parques y jardines y serenazgo que financia el gasto en los mismos rubros"]
["3/ CF 3: Límite del gasto en personal respecto al ingreso corriente (sin incluir transferencias de canon, sobrecanon y regalías)"]
["4/ CF 4: Disminución del saldo de pasivos corrientes respecto al año fiscal anterior "]
["5/ CF 5: Análisis y corrección de brechas contables y errores de registro de pasivos"]
["6/ CF 6: Cumplimiento de las acciones relacionadas al fortalecimiento de la gestión institucional"]
["7/ CF 7: Convergencia de la Regla Fiscal del Saldo de Deuda Total"]
["8/ CF 8: Convergencia de la Regla Fiscal Ahorro en Cuenta Corriente (S/)"]
["9/ Para la determinación del porcentaje de cumplimiento de los compromisos fiscales, los compromisos fiscales establecidos dentro del CAF de cada Gobierno Regional o Gobierno Local se ponderan conforme a lo establecido en el Anexo 4: \"Ponderadores para la evaluación de los compromisos fiscales\", incorporado por el artículo 2 de la modificación de la Directiva N° 001-2019-EF/60.05, aprobado por Resolución Directoral N° 001-2023-EF/60.05."]
["10/ Cumplimiento de la Regla Fiscal de Saldo de Deuda Total año 2024."]
["11/ Cumplimiento de la Regla Fiscal de Ahorro en Cuenta Corriente año 2024."]
["Fuente: MEF- SICON, Aplicativo Web: https://apps4.mineco.gob.pe/simgf/#. "]